BODY,BODY NAME,SERVICE CODE,ORGANISATIONAL UNIT,ORGANISATIONAL UNIT CODE,EXPENDITURE CATEGORY,EXPENDITURE CODE,DATE (POSTING DATE),TRANSACTION NUMBER,AMOUNT,SUPPLIER NAME,SUPPLIER ID
WARRINGTON BOROUGH COUNCIL,http://opendatacommunities.org/id/unitary-authority/warrington ,CYP,Childrens Other,81004,Equipment Purchase & Contract,400000,07-Jan-14,1900135788,2000.00,Bibby Factors Northwest Limited,100007
WARRINGTON BOROUGH COUNCIL,http://opendatacommunities.org/id/unitary-authority/warrington ,FWB,Care Purchase - Learning Disability,54450,CP Adult Placement,443450,28-Jan-14,1900137360,1510.00,Redacted Personal Data,100044
WARRINGTON BOROUGH COUNCIL,http://opendatacommunities.org/id/unitary-authority/warrington ,FWB,Care Purchase - PD,54440,Direct Payments,552000,07-Jan-14,1900135906,2768.00,Redacted Personal Data,100049
WARRINGTON BOROUGH COUNCIL,http://opendatacommunities.org/id/unitary-authority/warrington ,FWB,Care Purchase - PD,54440,CP Adult Placement,443450,27-Jan-14,1900137314,2961.00,Redacted Personal Data,100052
WARRINGTON BOROUGH COUNCIL,http://opendatacommunities.org/id/unitary-authority/warrington ,FWB,Care Purchase Budget,54490,CP ExternalOther Exp,440800,07-Jan-14,1900135732,17000.00,Heathfield Residental Home,100059
WARRINGTON BOROUGH COUNCIL,http://opendatacommunities.org/id/unitary-authority/warrington ,RSC,Coroners Service,11100,Reimbursement for Deputy Coroner,440400,23-Jan-14,1900137126,3461.00,Dr J E Napier,100061
WARRINGTON BOROUGH COUNCIL,http://opendatacommunities.org/id/unitary-authority/warrington ,FWB,Care Purchase - Learning Disability,54450,CP-LongStayExternal,441150,17-Jan-14,1900136867,8418.00,Voyage Care,100099
WARRINGTON BOROUGH COUNCIL,http://opendatacommunities.org/id/unitary-authority/warrington ,FWB,Care Purchase - OP & OT Central,54420,CP-LongStayExternal,441150,17-Jan-14,1900136868,5800.00,Voyage Care,100099
WARRINGTON BOROUGH COUNCIL,http://opendatacommunities.org/id/unitary-authority/warrington ,FWB,Care Purchase - PD,54440,CP-Nursing Care-External,441200,17-Jan-14,1900136869,5680.00,Voyage Care,100099
WARRINGTON BOROUGH COUNCIL,http://opendatacommunities.org/id/unitary-authority/warrington ,FWB,Care Purchase AMH,54135,CP-LongStayExternal,441150,17-Jan-14,1900136870,6685.00,Voyage Care,100099
WARRINGTON BOROUGH COUNCIL,http://opendatacommunities.org/id/unitary-authority/warrington ,FWB,Care Purchase - ABI,54260,CP-LongStayExternal,441150,27-Jan-14,1900137278,6428.00,Voyage Care,100099
WARRINGTON BOROUGH COUNCIL,http://opendatacommunities.org/id/unitary-authority/warrington ,FWB,Care Purchase -OP & OT East,54430,CP-Nursing Care-External,441200,10-Jan-14,1900136391,1812.00,Community Integrated Care (Cic),100171
WARRINGTON BOROUGH COUNCIL,http://opendatacommunities.org/id/unitary-authority/warrington ,FWB,Care Purchase AMH,54135,CP-Domicil.External,440950,29-Jan-14,1900137424,9563.00,Community Integrated Care (Cic),100171
WARRINGTON BOROUGH COUNCIL,http://opendatacommunities.org/id/unitary-authority/warrington ,FWB,Care Purchase AMH,54135,CP-Domicil.External,440950,29-Jan-14,1900137427,9380.00,Community Integrated Care (Cic),100171
WARRINGTON BOROUGH COUNCIL,http://opendatacommunities.org/id/unitary-authority/warrington ,FWB,Care Purchase AMH,54135,CP-Domicil.External,440950,29-Jan-14,1900137428,9380.00,Community Integrated Care (Cic),100171
WARRINGTON BOROUGH COUNCIL,http://opendatacommunities.org/id/unitary-authority/warrington ,FWB,Care Purchase AMH,54135,CP-Domicil.External,440950,29-Jan-14,1900137436,9380.00,Community Integrated Care (Cic),100171
WARRINGTON BOROUGH COUNCIL,http://opendatacommunities.org/id/unitary-authority/warrington ,FWB,Care Purchase AMH,54135,CP-Domicil.External,440950,29-Jan-14,1900137447,9380.00,Community Integrated Care (Cic),100171
WARRINGTON BOROUGH COUNCIL,http://opendatacommunities.org/id/unitary-authority/warrington ,FWB,Care Purchase AMH,54135,CP-Domicil.External,440950,29-Jan-14,1900137448,11295.00,Community Integrated Care (Cic),100171
WARRINGTON BOROUGH COUNCIL,http://opendatacommunities.org/id/unitary-authority/warrington ,FWB,Care Purchase AMH,54135,CP-Domicil.External,440950,29-Jan-14,1900137450,10501.00,Community Integrated Care (Cic),100171
WARRINGTON BOROUGH COUNCIL,http://opendatacommunities.org/id/unitary-authority/warrington ,ENO,Housing Projects,82008,Disabled Persons Grant 1996,554000,28-Jan-14,1900137337,603.00,Your Housing Group,100233
WARRINGTON BOROUGH COUNCIL,http://opendatacommunities.org/id/unitary-authority/warrington ,FWB,Care Purchase - Learning Disability,54450,Direct Payments,552000,07-Jan-14,1900135908,717.00,Redacted Personal Data,100270
WARRINGTON BOROUGH COUNCIL,http://opendatacommunities.org/id/unitary-authority/warrington ,FWB,Care Purchase -OP & OT East,54430,CP-LongStayExternal,441150,16-Jan-14,1900136647,1392.00,The Nugent Care Society,100277
WARRINGTON BOROUGH COUNCIL,http://opendatacommunities.org/id/unitary-authority/warrington ,FWB,Care Purchase -OP & OT East,54430,CP-LongStayExternal,441150,16-Jan-14,1900136648,1752.00,The Nugent Care Society,100277
WARRINGTON BOROUGH COUNCIL,http://opendatacommunities.org/id/unitary-authority/warrington ,FWB,Care Purchase -OP & OT East,54430,CP-LongStayExternal,441150,16-Jan-14,1900136649,1392.00,The Nugent Care Society,100277
WARRINGTON BOROUGH COUNCIL,http://opendatacommunities.org/id/unitary-authority/warrington ,ENO,Housing Projects,82008,Disabled Persons Grant 1996,554000,14-Jan-14,1900136524,3088.00,A A Moving Solutions,100287
WARRINGTON BOROUGH COUNCIL,http://opendatacommunities.org/id/unitary-authority/warrington ,ENO,Housing Projects,82008,Disabled Persons Grant 1996,554000,28-Jan-14,1900137375,1861.00,A A Moving Solutions,100287
WARRINGTON BOROUGH COUNCIL,http://opendatacommunities.org/id/unitary-authority/warrington ,FWB,Care Purchase Budget,54490,CP ExternalOther Exp,440800,07-Jan-14,1900135729,42000.00,European Care (Uk) Ltd,100320
WARRINGTON BOROUGH COUNCIL,http://opendatacommunities.org/id/unitary-authority/warrington ,FWB,Care Purchase Budget,54490,CP ExternalOther Exp,440800,29-Jan-14,1900137452,10153.00,European Care (Uk) Ltd,100320
WARRINGTON BOROUGH COUNCIL,http://opendatacommunities.org/id/unitary-authority/warrington ,FWB,Care Purchase - PD,54440,Direct Payments,552000,07-Jan-14,1900135909,1797.00,Redacted Personal Data,100338
WARRINGTON BOROUGH COUNCIL,http://opendatacommunities.org/id/unitary-authority/warrington ,FWB,Care Purchase - PD,54440,Direct Payments,552000,07-Jan-14,1900135910,1061.00,Redacted Personal Data,100340
WARRINGTON BOROUGH COUNCIL,http://opendatacommunities.org/id/unitary-authority/warrington ,RSC,Coroners Service,11100,Post Mortem Fees-Rep,440250,23-Jan-14,1900137112,1191.00,Dr B.N.A Hamid,100354
WARRINGTON BOROUGH COUNCIL,http://opendatacommunities.org/id/unitary-authority/warrington ,FWB,Care Purchase - PD,54440,CP-Nursing Care-External,441200,02-Jan-14,1900135501,2780.00,Leonard Cheshire Disability,100370
WARRINGTON BOROUGH COUNCIL,http://opendatacommunities.org/id/unitary-authority/warrington ,FWB,Care Purchase - PD,54440,CP-Nursing Care-External,441200,16-Jan-14,1900136692,2780.00,Leonard Cheshire Disability,100370
WARRINGTON BOROUGH COUNCIL,http://opendatacommunities.org/id/unitary-authority/warrington ,FWB,Care Purchase - PD,54440,CP-Nursing Care-External,441200,16-Jan-14,1900136694,4899.00,Leonard Cheshire Disability,100370
WARRINGTON BOROUGH COUNCIL,http://opendatacommunities.org/id/unitary-authority/warrington ,RSC,Coroners Service,11100,Post Mortem Fees-Rep,440250,23-Jan-14,1900137130,1063.00,Dr J Krajacevic,100409
WARRINGTON BOROUGH COUNCIL,http://opendatacommunities.org/id/unitary-authority/warrington ,EG0,Urban Traffic Management Control,44370,Signal Management,531600,09-Jan-14,1900136347,5772.00,Bt Red Care,100411
WARRINGTON BOROUGH COUNCIL,http://opendatacommunities.org/id/unitary-authority/warrington ,FWB,Care Purchase - Learning Disability,54450,CP-Nursing Care-External,441200,15-Jan-14,1900136598,2576.00,Chadderton Total-Care Unit Ltd,100425
WARRINGTON BOROUGH COUNCIL,http://opendatacommunities.org/id/unitary-authority/warrington ,RSC,Coroners Service,11100,Post Mortem Fees-Rep,440250,28-Jan-14,1900137349,1584.00,Dr J.S Stafford,100426
WARRINGTON BOROUGH COUNCIL,http://opendatacommunities.org/id/unitary-authority/warrington ,FWB,Care Purchase - Learning Disability,54450,Direct Payments,552000,07-Jan-14,1900135912,720.00,Redacted Personal Data,100452
WARRINGTON BOROUGH COUNCIL,http://opendatacommunities.org/id/unitary-authority/warrington ,FWB,Care Purchase - OP & OT South,54480,CP-Nursing Care-External,441200,02-Jan-14,1900135514,1500.00,BUPA -Crawfords Walk,100460
WARRINGTON BOROUGH COUNCIL,http://opendatacommunities.org/id/unitary-authority/warrington ,FWB,Care Purchase - OP & OT South,54480,CP-Nursing Care-External,441200,22-Jan-14,1900137063,1500.00,BUPA -Crawfords Walk,100460
WARRINGTON BOROUGH COUNCIL,http://opendatacommunities.org/id/unitary-authority/warrington ,HOL,Single Billing Holding Account,91130,Gas,210050,14-Jan-14,1900136492,106798.00,British Gas Trading Limited,100484
WARRINGTON BOROUGH COUNCIL,http://opendatacommunities.org/id/unitary-authority/warrington ,HOL,Single Billing Holding Account,91130,Gas,210050,14-Jan-14,1900136492,1551.00,British Gas Trading Limited,100484
WARRINGTON BOROUGH COUNCIL,http://opendatacommunities.org/id/unitary-authority/warrington ,FWB,Care Purchase - PD,54440,Direct Payments,552000,07-Jan-14,1900135914,737.00,Redacted Personal Data,100508
WARRINGTON BOROUGH COUNCIL,http://opendatacommunities.org/id/unitary-authority/warrington ,EG0,Estates & Valuation,43520,Agency Supply - GF,180000,13-Jan-14,1900136459,536.00,Anderselite,100563
WARRINGTON BOROUGH COUNCIL,http://opendatacommunities.org/id/unitary-authority/warrington ,RSC,Warrington Against Business Crime,16020,Consult.& Prof. Serv,440000,03-Jan-14,1900135591,1910.00,Cheshire Probation Board,100573
WARRINGTON BOROUGH COUNCIL,http://opendatacommunities.org/id/unitary-authority/warrington ,RSC,Coroners Service,11100,Post Mortem Fees-Rep,440250,23-Jan-14,1900137082,857.00,Walton Centre For Neurology & Neuro,100578
WARRINGTON BOROUGH COUNCIL,http://opendatacommunities.org/id/unitary-authority/warrington ,RSC,Coroners Service,11100,Post Mortem Fees-Rep,440250,23-Jan-14,1900137083,1117.00,Walton Centre For Neurology & Neuro,100578
WARRINGTON BOROUGH COUNCIL,http://opendatacommunities.org/id/unitary-authority/warrington ,FWB,Care Purchase - Learning Disability,54450,CP-LongStayExternal,441150,02-Jan-14,1900135519,2797.00,Redacted Personal Data,100583
WARRINGTON BOROUGH COUNCIL,http://opendatacommunities.org/id/unitary-authority/warrington ,FWB,Care Purchase - OP & OT West,54470,CP-LongStayExternal,441150,24-Jan-14,1900137246,2797.00,Redacted Personal Data,100583
WARRINGTON BOROUGH COUNCIL,http://opendatacommunities.org/id/unitary-authority/warrington ,FWB,Care Purchase - Learning Disability,54450,Direct Payments,552000,07-Jan-14,1900135915,1120.00,Redacted Personal Data,100607
WARRINGTON BOROUGH COUNCIL,http://opendatacommunities.org/id/unitary-authority/warrington ,FWB,Care Purchase - PD,54440,Direct Payments,552000,07-Jan-14,1900135917,1907.00,Redacted Personal Data,100666
WARRINGTON BOROUGH COUNCIL,http://opendatacommunities.org/id/unitary-authority/warrington ,FWB,Care Purchase - PD,54440,Direct Payments,552000,07-Jan-14,1900135918,1778.00,Redacted Personal Data,100667
WARRINGTON BOROUGH COUNCIL,http://opendatacommunities.org/id/unitary-authority/warrington ,FWB,Care Purchase - OP & OT South,54480,CP-LongStayExternal,441150,10-Jan-14,1900136388,1540.00,Alexandra Care Home,100708
WARRINGTON BOROUGH COUNCIL,http://opendatacommunities.org/id/unitary-authority/warrington ,FWB,Care Purchase - OP & OT South,54480,CP-LongStayExternal,441150,23-Jan-14,1900137189,1540.00,Alexandra Care Home,100708
WARRINGTON BOROUGH COUNCIL,http://opendatacommunities.org/id/unitary-authority/warrington ,FWB,Care Purchase AMH,54135,CP-Domicil.External,440950,02-Jan-14,1900135505,8341.00,Independent Living Alliance,100726
WARRINGTON BOROUGH COUNCIL,http://opendatacommunities.org/id/unitary-authority/warrington ,FWB,Care Purchase - ABI,54260,CP-Domicil.External,440950,02-Jan-14,1900135505,2357.00,Independent Living Alliance,100726
WARRINGTON BOROUGH COUNCIL,http://opendatacommunities.org/id/unitary-authority/warrington ,FWB,Care Purchase Budget,54490,CP - Cont Care - External,441350,02-Jan-14,1900135505,8702.00,Independent Living Alliance,100726
WARRINGTON BOROUGH COUNCIL,http://opendatacommunities.org/id/unitary-authority/warrington ,FWB,Care Purchase AMH,54135,CP-Domicil.External,440950,02-Jan-14,1900135506,10042.00,Independent Living Alliance,100726
WARRINGTON BOROUGH COUNCIL,http://opendatacommunities.org/id/unitary-authority/warrington ,FWB,Care Purchase AMH,54135,Supporting People - External,441250,02-Jan-14,1900135506,5329.00,Independent Living Alliance,100726
WARRINGTON BOROUGH COUNCIL,http://opendatacommunities.org/id/unitary-authority/warrington ,FWB,Care Purchase AMH,54135,CP-Domicil.External,440950,02-Jan-14,1900135507,10257.00,Independent Living Alliance,100726
WARRINGTON BOROUGH COUNCIL,http://opendatacommunities.org/id/unitary-authority/warrington ,FWB,Care Purchase - PD,54440,CP-Domicil.External,440950,02-Jan-14,1900135507,2564.00,Independent Living Alliance,100726
WARRINGTON BOROUGH COUNCIL,http://opendatacommunities.org/id/unitary-authority/warrington ,FWB,Care Purchase AMH,54135,Supporting People - External,441250,02-Jan-14,1900135507,5453.00,Independent Living Alliance,100726
WARRINGTON BOROUGH COUNCIL,http://opendatacommunities.org/id/unitary-authority/warrington ,FWB,Care Purchase - PD,54440,Supporting People - External,441250,02-Jan-14,1900135507,1363.00,Independent Living Alliance,100726
WARRINGTON BOROUGH COUNCIL,http://opendatacommunities.org/id/unitary-authority/warrington ,FWB,Care Purchase AMH,54135,CP-Domicil.External,440950,02-Jan-14,1900135508,15655.00,Independent Living Alliance,100726
WARRINGTON BOROUGH COUNCIL,http://opendatacommunities.org/id/unitary-authority/warrington ,FWB,Care Purchase AMH,54135,Supporting People - External,441250,02-Jan-14,1900135508,2470.00,Independent Living Alliance,100726
WARRINGTON BOROUGH COUNCIL,http://opendatacommunities.org/id/unitary-authority/warrington ,FWB,Care Purchase - Learning Disability,54450,CP-Domicil.External,440950,02-Jan-14,1900135509,4538.00,Independent Living Alliance,100726
WARRINGTON BOROUGH COUNCIL,http://opendatacommunities.org/id/unitary-authority/warrington ,FWB,Care Purchase AMH,54135,CP-Domicil.External,440950,02-Jan-14,1900135510,3086.00,Independent Living Alliance,100726
WARRINGTON BOROUGH COUNCIL,http://opendatacommunities.org/id/unitary-authority/warrington ,FWB,Care Purchase AMH,54135,CP-Domicil.External,440950,02-Jan-14,1900135522,16055.00,Independent Living Alliance,100726
WARRINGTON BOROUGH COUNCIL,http://opendatacommunities.org/id/unitary-authority/warrington ,FWB,Care Purchase - ABI,54260,CP-Domicil.External,440950,02-Jan-14,1900135522,1605.00,Independent Living Alliance,100726
WARRINGTON BOROUGH COUNCIL,http://opendatacommunities.org/id/unitary-authority/warrington ,FWB,Care Purchase AMH,54135,CP-Domicil.External,440950,23-Jan-14,1900137171,16489.00,Independent Living Alliance,100726
WARRINGTON BOROUGH COUNCIL,http://opendatacommunities.org/id/unitary-authority/warrington ,FWB,Care Purchase - ABI,54260,CP-Domicil.External,440950,23-Jan-14,1900137171,1605.00,Independent Living Alliance,100726
WARRINGTON BOROUGH COUNCIL,http://opendatacommunities.org/id/unitary-authority/warrington ,FWB,Care Purchase AMH,54135,CP-Domicil.External,440950,23-Jan-14,1900137178,8040.00,Independent Living Alliance,100726
WARRINGTON BOROUGH COUNCIL,http://opendatacommunities.org/id/unitary-authority/warrington ,FWB,Care Purchase - ABI,54260,CP-Domicil.External,440950,23-Jan-14,1900137178,2182.00,Independent Living Alliance,100726
WARRINGTON BOROUGH COUNCIL,http://opendatacommunities.org/id/unitary-authority/warrington ,FWB,Care Purchase Budget,54490,CP - Cont Care - External,441350,23-Jan-14,1900137178,8702.00,Independent Living Alliance,100726
WARRINGTON BOROUGH COUNCIL,http://opendatacommunities.org/id/unitary-authority/warrington ,FWB,Care Purchase AMH,54135,CP-Domicil.External,440950,23-Jan-14,1900137180,10257.00,Independent Living Alliance,100726
WARRINGTON BOROUGH COUNCIL,http://opendatacommunities.org/id/unitary-authority/warrington ,FWB,Care Purchase - PD,54440,CP-Domicil.External,440950,23-Jan-14,1900137180,2564.00,Independent Living Alliance,100726
WARRINGTON BOROUGH COUNCIL,http://opendatacommunities.org/id/unitary-authority/warrington ,FWB,Care Purchase AMH,54135,Supporting People - External,441250,23-Jan-14,1900137180,5453.00,Independent Living Alliance,100726
WARRINGTON BOROUGH COUNCIL,http://opendatacommunities.org/id/unitary-authority/warrington ,FWB,Care Purchase - PD,54440,Supporting People - External,441250,23-Jan-14,1900137180,1363.00,Independent Living Alliance,100726
WARRINGTON BOROUGH COUNCIL,http://opendatacommunities.org/id/unitary-authority/warrington ,FWB,Care Purchase AMH,54135,CP-Domicil.External,440950,23-Jan-14,1900137183,3086.00,Independent Living Alliance,100726
WARRINGTON BOROUGH COUNCIL,http://opendatacommunities.org/id/unitary-authority/warrington ,FWB,Care Purchase AMH,54135,CP-Domicil.External,440950,23-Jan-14,1900137184,15655.00,Independent Living Alliance,100726
WARRINGTON BOROUGH COUNCIL,http://opendatacommunities.org/id/unitary-authority/warrington ,FWB,Care Purchase AMH,54135,Supporting People - External,441250,23-Jan-14,1900137184,2470.00,Independent Living Alliance,100726
WARRINGTON BOROUGH COUNCIL,http://opendatacommunities.org/id/unitary-authority/warrington ,FWB,Care Purchase - Learning Disability,54450,CP-Domicil.External,440950,23-Jan-14,1900137185,4538.00,Independent Living Alliance,100726
WARRINGTON BOROUGH COUNCIL,http://opendatacommunities.org/id/unitary-authority/warrington ,FWB,Care Purchase AMH,54135,CP-Domicil.External,440950,23-Jan-14,1900137186,10042.00,Independent Living Alliance,100726
WARRINGTON BOROUGH COUNCIL,http://opendatacommunities.org/id/unitary-authority/warrington ,FWB,Care Purchase AMH,54135,Supporting People - External,441250,23-Jan-14,1900137186,5329.00,Independent Living Alliance,100726
WARRINGTON BOROUGH COUNCIL,http://opendatacommunities.org/id/unitary-authority/warrington ,RSC,Coroners Service,11100,Post Mortem Fees-Rep,440250,28-Jan-14,1900137334,678.00,Dr D Butterworth,100765
WARRINGTON BOROUGH COUNCIL,http://opendatacommunities.org/id/unitary-authority/warrington ,FWB,Care Purchase - PD,54440,Direct Payments,552000,07-Jan-14,1900135919,851.00,Redacted Personal Data,100766
WARRINGTON BOROUGH COUNCIL,http://opendatacommunities.org/id/unitary-authority/warrington ,FWB,Care Purchase -OP & OT East,54430,CP-Domicil.External,440950,09-Jan-14,1900135876,3913.00,Allied Healthcare Group Ltd,100796
WARRINGTON BOROUGH COUNCIL,http://opendatacommunities.org/id/unitary-authority/warrington ,FWB,Care Purchase - OP & OT Central,54420,CP-Domicil.External,440950,09-Jan-14,1900135876,2717.00,Allied Healthcare Group Ltd,100796
WARRINGTON BOROUGH COUNCIL,http://opendatacommunities.org/id/unitary-authority/warrington ,FWB,Care Purchase - PD,54440,CP-Domicil.External,440950,09-Jan-14,1900135876,950.00,Allied Healthcare Group Ltd,100796
WARRINGTON BOROUGH COUNCIL,http://opendatacommunities.org/id/unitary-authority/warrington ,FWB,Care Purchase - PD,54440,CP-Domicil.External,440950,09-Jan-14,1900135878,4258.00,Allied Healthcare Group Ltd,100796
WARRINGTON BOROUGH COUNCIL,http://opendatacommunities.org/id/unitary-authority/warrington ,FWB,Care Purchase - PD,54440,Supporting People - External,441250,09-Jan-14,1900135878,718.00,Allied Healthcare Group Ltd,100796
WARRINGTON BOROUGH COUNCIL,http://opendatacommunities.org/id/unitary-authority/warrington ,FWB,Care Purchase - PD,54440,CP-Domicil.External,440950,24-Jan-14,1900137244,3776.00,Allied Healthcare Group Ltd,100796
WARRINGTON BOROUGH COUNCIL,http://opendatacommunities.org/id/unitary-authority/warrington ,FWB,Care Purchase - PD,54440,Supporting People - External,441250,24-Jan-14,1900137244,718.00,Allied Healthcare Group Ltd,100796
WARRINGTON BOROUGH COUNCIL,http://opendatacommunities.org/id/unitary-authority/warrington ,FWB,Care Purchase -OP & OT East,54430,CP-Domicil.External,440950,27-Jan-14,1900137293,3215.00,Allied Healthcare Group Ltd,100796
WARRINGTON BOROUGH COUNCIL,http://opendatacommunities.org/id/unitary-authority/warrington ,FWB,Care Purchase - OP & OT Central,54420,CP-Domicil.External,440950,27-Jan-14,1900137293,2465.00,Allied Healthcare Group Ltd,100796
WARRINGTON BOROUGH COUNCIL,http://opendatacommunities.org/id/unitary-authority/warrington ,FWB,Care Purchase - PD,54440,CP-Domicil.External,440950,27-Jan-14,1900137293,784.00,Allied Healthcare Group Ltd,100796
WARRINGTON BOROUGH COUNCIL,http://opendatacommunities.org/id/unitary-authority/warrington ,FWB,Care Purchase - Learning Disability,54450,CP ExternalOther Exp,440800,28-Jan-14,1900137376,945.00,Frontis Homes Management Accounts,100837
WARRINGTON BOROUGH COUNCIL,http://opendatacommunities.org/id/unitary-authority/warrington ,FWB,Care Purchase - PD,54440,Direct Payments,552000,07-Jan-14,1900135920,3059.00,Redacted Personal Data,100879
WARRINGTON BOROUGH COUNCIL,http://opendatacommunities.org/id/unitary-authority/warrington ,FWB,Care Purchase - PD,54440,Direct Payments,552000,07-Jan-14,1900135921,1231.00,Redacted Personal Data,100890
WARRINGTON BOROUGH COUNCIL,http://opendatacommunities.org/id/unitary-authority/warrington ,CYP,Childrens Other,81004,ICT Comms - Equipment Purchase,450100,08-Jan-14,1900135793,5400.00,Edac Solutions North West,100899
WARRINGTON BOROUGH COUNCIL,http://opendatacommunities.org/id/unitary-authority/warrington ,CYP,Childrens Other,81004,ICT Comms - Equipment Purchase,450100,08-Jan-14,1900135794,2035.00,Edac Solutions North West,100899
WARRINGTON BOROUGH COUNCIL,http://opendatacommunities.org/id/unitary-authority/warrington ,FWB,Care Purchase - Learning Disability,54450,CP-Domicil.External,440950,10-Jan-14,1900136375,2469.00,Creative Support Ltd,100902
WARRINGTON BOROUGH COUNCIL,http://opendatacommunities.org/id/unitary-authority/warrington ,FWB,Care Purchase - Learning Disability,54450,Supporting People - External,441250,10-Jan-14,1900136375,6430.00,Creative Support Ltd,100902
WARRINGTON BOROUGH COUNCIL,http://opendatacommunities.org/id/unitary-authority/warrington ,FWB,Care Purchase - PD,54440,CP-Domicil.External,440950,27-Jan-14,1900137299,2720.00,Creative Support Ltd,100902
WARRINGTON BOROUGH COUNCIL,http://opendatacommunities.org/id/unitary-authority/warrington ,FWB,Care Purchase AMH,54135,CP-Domicil.External,440950,27-Jan-14,1900137301,1588.00,Creative Support Ltd,100902
WARRINGTON BOROUGH COUNCIL,http://opendatacommunities.org/id/unitary-authority/warrington ,FWB,Care Purchase - ABI,54260,CP-Domicil.External,440950,27-Jan-14,1900137303,2239.00,Creative Support Ltd,100902
WARRINGTON BOROUGH COUNCIL,http://opendatacommunities.org/id/unitary-authority/warrington ,FWB,Care Purchase - ABI,54260,CP-Domicil.External,440950,29-Jan-14,1900137426,3031.00,Creative Support Ltd,100902
WARRINGTON BOROUGH COUNCIL,http://opendatacommunities.org/id/unitary-authority/warrington ,FWB,Care Purchase - PD,54440,CP-Domicil.External,440950,29-Jan-14,1900137426,9093.00,Creative Support Ltd,100902
WARRINGTON BOROUGH COUNCIL,http://opendatacommunities.org/id/unitary-authority/warrington ,FWB,Care Purchase Budget,54490,CP - Cont Care - External,441350,29-Jan-14,1900137426,2706.00,Creative Support Ltd,100902
WARRINGTON BOROUGH COUNCIL,http://opendatacommunities.org/id/unitary-authority/warrington ,FWB,Care Purchase Budget,54490,Voids,515150,29-Jan-14,1900137426,6387.00,Creative Support Ltd,100902
WARRINGTON BOROUGH COUNCIL,http://opendatacommunities.org/id/unitary-authority/warrington ,FWB,Care Purchase - PD,54440,Supporting People - External,441250,29-Jan-14,1900137433,5058.00,Creative Support Ltd,100902
WARRINGTON BOROUGH COUNCIL,http://opendatacommunities.org/id/unitary-authority/warrington ,FWB,Care Purchase Budget,54490,Voids,515150,29-Jan-14,1900137433,1973.00,Creative Support Ltd,100902
WARRINGTON BOROUGH COUNCIL,http://opendatacommunities.org/id/unitary-authority/warrington ,FWB,Care Purchase - Learning Disability,54450,CP-Domicil.External,440950,29-Jan-14,1900137454,2036.00,Creative Support Ltd,100902
WARRINGTON BOROUGH COUNCIL,http://opendatacommunities.org/id/unitary-authority/warrington ,FWB,Care Purchase - Learning Disability,54450,Supporting People - External,441250,29-Jan-14,1900137454,6430.00,Creative Support Ltd,100902
WARRINGTON BOROUGH COUNCIL,http://opendatacommunities.org/id/unitary-authority/warrington ,FWB,Care Purchase AMH,54135,CP-Domicil.External,440950,29-Jan-14,1900137456,1048.00,Creative Support Ltd,100902
WARRINGTON BOROUGH COUNCIL,http://opendatacommunities.org/id/unitary-authority/warrington ,FWB,Care Purchase - Learning Disability,54450,CP-Domicil.External,440950,29-Jan-14,1900137456,599.00,Creative Support Ltd,100902
WARRINGTON BOROUGH COUNCIL,http://opendatacommunities.org/id/unitary-authority/warrington ,FWB,Care Purchase - Learning Disability,54450,Supporting People - External,441250,29-Jan-14,1900137456,8085.00,Creative Support Ltd,100902
WARRINGTON BOROUGH COUNCIL,http://opendatacommunities.org/id/unitary-authority/warrington ,FWB,Care Purchase - ABI,54260,CP-Domicil.External,440950,29-Jan-14,1900137460,761.00,Creative Support Ltd,100902
WARRINGTON BOROUGH COUNCIL,http://opendatacommunities.org/id/unitary-authority/warrington ,FWB,Care Purchase - Learning Disability,54450,Supporting People - External,441250,29-Jan-14,1900137460,6787.00,Creative Support Ltd,100902
WARRINGTON BOROUGH COUNCIL,http://opendatacommunities.org/id/unitary-authority/warrington ,FWB,Care Purchase - Learning Disability,54450,CP-Domicil.External,440950,29-Jan-14,1900137461,6713.00,Creative Support Ltd,100902
WARRINGTON BOROUGH COUNCIL,http://opendatacommunities.org/id/unitary-authority/warrington ,FWB,Care Purchase - Learning Disability,54450,Supporting People - External,441250,29-Jan-14,1900137461,1116.00,Creative Support Ltd,100902
WARRINGTON BOROUGH COUNCIL,http://opendatacommunities.org/id/unitary-authority/warrington ,FWB,Care Purchase -OP & OT East,54430,Direct Payments,552000,07-Jan-14,1900135922,1142.00,Redacted Personal Data,100907
WARRINGTON BOROUGH COUNCIL,http://opendatacommunities.org/id/unitary-authority/warrington ,FWB,Care Purchase - OP & OT South,54480,Direct Payments,552000,07-Jan-14,1900135924,661.00,Redacted Personal Data,100934
WARRINGTON BOROUGH COUNCIL,http://opendatacommunities.org/id/unitary-authority/warrington ,FWB,Care Purchase - Learning Disability,54450,Direct Payments,552000,07-Jan-14,1900135925,1120.00,Redacted Personal Data,100945
WARRINGTON BOROUGH COUNCIL,http://opendatacommunities.org/id/unitary-authority/warrington ,RSC,Postal & Courier Services,52130,Postages,450000,08-Jan-14,1900135818,1200.00,Logistex Express Ltd,100946
WARRINGTON BOROUGH COUNCIL,http://opendatacommunities.org/id/unitary-authority/warrington ,FWB,Care Purchase - Learning Disability,54450,Direct Payments,552000,07-Jan-14,1900135926,2026.00,Redacted Personal Data,100954
WARRINGTON BOROUGH COUNCIL,http://opendatacommunities.org/id/unitary-authority/warrington ,FWB,Strategic Director,30000,Events Costs,490000,16-Jan-14,1900136678,634.00,Warrington Cultural Trust,100957
WARRINGTON BOROUGH COUNCIL,http://opendatacommunities.org/id/unitary-authority/warrington ,RSC,Corporate Performance & Policy,12300,DT - Room Hire,298001,16-Jan-14,1900136808,518.00,Warrington Cultural Trust,100957
WARRINGTON BOROUGH COUNCIL,http://opendatacommunities.org/id/unitary-authority/warrington ,FWB,Care Purchase - Learning Disability,54450,Supporting People - External,441250,07-Jan-14,1900135927,1360.00,Redacted Personal Data,100959
WARRINGTON BOROUGH COUNCIL,http://opendatacommunities.org/id/unitary-authority/warrington ,FWB,Care Purchase - Learning Disability,54450,Direct Payments,552000,07-Jan-14,1900135927,3787.00,Redacted Personal Data,100959
WARRINGTON BOROUGH COUNCIL,http://opendatacommunities.org/id/unitary-authority/warrington ,RSC,Coroners Service,11100,Post Mortem Fees-Rep,440250,28-Jan-14,1900137342,2081.00,Dr S A Hales,100988
WARRINGTON BOROUGH COUNCIL,http://opendatacommunities.org/id/unitary-authority/warrington ,FWB,EIG Funding - Callands Childrens Centre,31513,Specific Work,200200,20-Jan-14,1900136879,675.00,Apec Environmental Ltd,101001
WARRINGTON BOROUGH COUNCIL,http://opendatacommunities.org/id/unitary-authority/warrington ,FWB,EIG Funding - Callands Childrens Centre,31513,Specific Work,200200,29-Jan-14,1900137480,675.00,Apec Environmental Ltd,101001
WARRINGTON BOROUGH COUNCIL,http://opendatacommunities.org/id/unitary-authority/warrington ,COR,Benefit Payments,10420,HRA Rent Rebates,553200,29-Jan-14,1900137496,800.00,Golden Gates Housing Trust,101005
WARRINGTON BOROUGH COUNCIL,http://opendatacommunities.org/id/unitary-authority/warrington ,FWB,Care Purchase - PD,54440,Direct Payments,552000,07-Jan-14,1900135928,1146.00,Redacted Personal Data,101007
WARRINGTON BOROUGH COUNCIL,http://opendatacommunities.org/id/unitary-authority/warrington ,FWB,Care Purchase - ABI,54260,Direct Payments,552000,07-Jan-14,1900135929,2390.00,Redacted Personal Data,101016
WARRINGTON BOROUGH COUNCIL,http://opendatacommunities.org/id/unitary-authority/warrington ,FWB,Care Purchase - Learning Disability,54450,Direct Payments,552000,07-Jan-14,1900135931,1760.00,Redacted Personal Data,101045
WARRINGTON BOROUGH COUNCIL,http://opendatacommunities.org/id/unitary-authority/warrington ,FWB,Care Purchase Budget,54490,CP ExternalOther Exp,440800,08-Jan-14,1900135825,51000.00,Ashberry Healthcare Ltd,101061
WARRINGTON BOROUGH COUNCIL,http://opendatacommunities.org/id/unitary-authority/warrington ,FWB,Care Purchase Budget,54490,CP ExternalOther Exp,440800,22-Jan-14,1900137064,7112.00,Ashberry Healthcare Ltd,101061
WARRINGTON BOROUGH COUNCIL,http://opendatacommunities.org/id/unitary-authority/warrington ,FWB,Care Purchase - Learning Disability,54450,Direct Payments,552000,07-Jan-14,1900135933,9048.00,Redacted Personal Data,101104
WARRINGTON BOROUGH COUNCIL,http://opendatacommunities.org/id/unitary-authority/warrington ,RSC,Electoral Registration,11500,Equipment Purchase & Contract,400000,22-Jan-14,1900137020,5047.00,Electoral Reform Services,101138
WARRINGTON BOROUGH COUNCIL,http://opendatacommunities.org/id/unitary-authority/warrington ,FWB,Care Purchase - PD,54440,Direct Payments,552000,07-Jan-14,1900135935,1117.00,Redacted Personal Data,101147
WARRINGTON BOROUGH COUNCIL,http://opendatacommunities.org/id/unitary-authority/warrington ,FWB,Care Purchase -OP & OT East,54430,Direct Payments,552000,07-Jan-14,1900135937,812.00,Redacted Personal Data,101174
WARRINGTON BOROUGH COUNCIL,http://opendatacommunities.org/id/unitary-authority/warrington ,FWB,Care Purchase - Learning Disability,54450,CP Adult Placement,443450,27-Jan-14,1900137316,1510.00,Redacted Personal Data,101175
WARRINGTON BOROUGH COUNCIL,http://opendatacommunities.org/id/unitary-authority/warrington ,FWB,LD Supported Tenancies,54730,ICT Comms - Line Rental,450200,06-Jan-14,1900135683,520.00,Cdn Networks,101189
WARRINGTON BOROUGH COUNCIL,http://opendatacommunities.org/id/unitary-authority/warrington ,RSC,ICT Networks,23400,ICT Comms - Line Rental,450200,23-Jan-14,1900137159,520.00,Cdn Networks,101189
WARRINGTON BOROUGH COUNCIL,http://opendatacommunities.org/id/unitary-authority/warrington ,ENO,Housing Projects,82008,Disabled Persons Grant 1996,554000,03-Jan-14,1900135603,768.00,Warrington Housing Current Acc,101208
WARRINGTON BOROUGH COUNCIL,http://opendatacommunities.org/id/unitary-authority/warrington ,FWB,Equipment Store,54930,Minor Adaptations<750,400700,20-Jan-14,1900136909,2643.00,Warrington Housing Current Acc,101208
WARRINGTON BOROUGH COUNCIL,http://opendatacommunities.org/id/unitary-authority/warrington ,FWB,Equipment Store,54930,Minor Adaptations<750,400700,21-Jan-14,1900136965,2643.00,Warrington Housing Current Acc,101208
WARRINGTON BOROUGH COUNCIL,http://opendatacommunities.org/id/unitary-authority/warrington ,ENO,Housing Projects,82008,Disabled Persons Grant 1996,554000,21-Jan-14,1900136979,634.00,Warrington Housing Current Acc,101208
WARRINGTON BOROUGH COUNCIL,http://opendatacommunities.org/id/unitary-authority/warrington ,ENO,Housing Projects,82008,Disabled Persons Grant 1996,554000,23-Jan-14,1900137200,777.00,Warrington Housing Current Acc,101208
WARRINGTON BOROUGH COUNCIL,http://opendatacommunities.org/id/unitary-authority/warrington ,ENO,Housing Projects,82008,Disabled Persons Grant 1996,554000,27-Jan-14,1900137310,1208.00,Warrington Housing Current Acc,101208
WARRINGTON BOROUGH COUNCIL,http://opendatacommunities.org/id/unitary-authority/warrington ,ENO,Housing Projects,82008,Disabled Persons Grant 1996,554000,27-Jan-14,1900137324,872.00,Warrington Housing Current Acc,101208
WARRINGTON BOROUGH COUNCIL,http://opendatacommunities.org/id/unitary-authority/warrington ,FWB,Care Purchase - Learning Disability,54450,CP-LongStayExternal,441150,02-Jan-14,1900135545,10471.00,Pendleton Care Limited,101213
WARRINGTON BOROUGH COUNCIL,http://opendatacommunities.org/id/unitary-authority/warrington ,FWB,Care Purchase AMH,54135,CP-Domicil.External,440950,17-Jan-14,1900136838,2155.00,Next Stage A Way Forward Ltd,101217
WARRINGTON BOROUGH COUNCIL,http://opendatacommunities.org/id/unitary-authority/warrington ,FWB,Care Purchase AMH,54135,CP-Domicil.External,440950,17-Jan-14,1900136839,4028.00,Next Stage A Way Forward Ltd,101217
WARRINGTON BOROUGH COUNCIL,http://opendatacommunities.org/id/unitary-authority/warrington ,FWB,Care Purchase AMH,54135,CP-Domicil.External,440950,17-Jan-14,1900136840,1099.00,Next Stage A Way Forward Ltd,101217
WARRINGTON BOROUGH COUNCIL,http://opendatacommunities.org/id/unitary-authority/warrington ,FWB,Care Purchase AMH,54135,CP-Domicil.External,440950,17-Jan-14,1900136842,549.00,Next Stage A Way Forward Ltd,101217
WARRINGTON BOROUGH COUNCIL,http://opendatacommunities.org/id/unitary-authority/warrington ,FWB,Care Purchase AMH,54135,CP-Domicil.External,440950,17-Jan-14,1900136843,549.00,Next Stage A Way Forward Ltd,101217
WARRINGTON BOROUGH COUNCIL,http://opendatacommunities.org/id/unitary-authority/warrington ,FWB,Care Purchase AMH,54135,CP-Domicil.External,440950,17-Jan-14,1900136844,1305.00,Next Stage A Way Forward Ltd,101217
WARRINGTON BOROUGH COUNCIL,http://opendatacommunities.org/id/unitary-authority/warrington ,FWB,Care Purchase AMH,54135,CP-Domicil.External,440950,17-Jan-14,1900136845,1923.00,Next Stage A Way Forward Ltd,101217
WARRINGTON BOROUGH COUNCIL,http://opendatacommunities.org/id/unitary-authority/warrington ,FWB,Care Purchase AMH,54135,CP-Domicil.External,440950,17-Jan-14,1900136846,1465.00,Next Stage A Way Forward Ltd,101217
WARRINGTON BOROUGH COUNCIL,http://opendatacommunities.org/id/unitary-authority/warrington ,FWB,Care Purchase AMH,54135,CP-Domicil.External,440950,17-Jan-14,1900136847,824.00,Next Stage A Way Forward Ltd,101217
WARRINGTON BOROUGH COUNCIL,http://opendatacommunities.org/id/unitary-authority/warrington ,FWB,Care Purchase AMH,54135,CP-Domicil.External,440950,17-Jan-14,1900136848,1145.00,Next Stage A Way Forward Ltd,101217
WARRINGTON BOROUGH COUNCIL,http://opendatacommunities.org/id/unitary-authority/warrington ,FWB,Care Purchase AMH,54135,CP-Domicil.External,440950,17-Jan-14,1900136849,916.00,Next Stage A Way Forward Ltd,101217
WARRINGTON BOROUGH COUNCIL,http://opendatacommunities.org/id/unitary-authority/warrington ,FWB,Care Purchase AMH,54135,CP-Domicil.External,440950,17-Jan-14,1900136850,1053.00,Next Stage A Way Forward Ltd,101217
WARRINGTON BOROUGH COUNCIL,http://opendatacommunities.org/id/unitary-authority/warrington ,FWB,Care Purchase AMH,54135,CP-Domicil.External,440950,17-Jan-14,1900136851,1648.00,Next Stage A Way Forward Ltd,101217
WARRINGTON BOROUGH COUNCIL,http://opendatacommunities.org/id/unitary-authority/warrington ,FWB,Care Purchase AMH,54135,CP-Domicil.External,440950,17-Jan-14,1900136852,1465.00,Next Stage A Way Forward Ltd,101217
WARRINGTON BOROUGH COUNCIL,http://opendatacommunities.org/id/unitary-authority/warrington ,FWB,Care Purchase AMH,54135,CP-Domicil.External,440950,17-Jan-14,1900136854,1190.00,Next Stage A Way Forward Ltd,101217
WARRINGTON BOROUGH COUNCIL,http://opendatacommunities.org/id/unitary-authority/warrington ,FWB,Care Purchase AMH,54135,CP-Domicil.External,440950,17-Jan-14,1900136855,1862.00,Next Stage A Way Forward Ltd,101217
WARRINGTON BOROUGH COUNCIL,http://opendatacommunities.org/id/unitary-authority/warrington ,RSC,Coroners Service,11100,Post Mortem Fees-Rep,440250,28-Jan-14,1900137346,616.00,Dr Jackie Elder,101240
WARRINGTON BOROUGH COUNCIL,http://opendatacommunities.org/id/unitary-authority/warrington ,FWB,Care Purchase - Learning Disability,54450,Direct Payments,552000,07-Jan-14,1900135940,2815.00,Redacted Personal Data,101246
WARRINGTON BOROUGH COUNCIL,http://opendatacommunities.org/id/unitary-authority/warrington ,FWB,Care Purchase - Learning Disability,54450,Direct Payments,552000,07-Jan-14,1900135941,520.00,Redacted Personal Data,101261
WARRINGTON BOROUGH COUNCIL,http://opendatacommunities.org/id/unitary-authority/warrington ,FWB,Care Purchase - PD,54440,CP - Cont Care - External,441350,07-Jan-14,1900135942,1797.00,Redacted Personal Data,101276
WARRINGTON BOROUGH COUNCIL,http://opendatacommunities.org/id/unitary-authority/warrington ,FWB,Care Purchase - PD,54440,Direct Payments,552000,07-Jan-14,1900135942,1797.00,Redacted Personal Data,101276
WARRINGTON BOROUGH COUNCIL,http://opendatacommunities.org/id/unitary-authority/warrington ,FWB,Child Disability,32212,Direct Payments,552000,07-Jan-14,1900135943,666.00,Redacted Personal Data,101322
WARRINGTON BOROUGH COUNCIL,http://opendatacommunities.org/id/unitary-authority/warrington ,FWB,Care Purchase - PD,54440,Direct Payments,552000,07-Jan-14,1900135945,2328.00,Redacted Personal Data,101335
WARRINGTON BOROUGH COUNCIL,http://opendatacommunities.org/id/unitary-authority/warrington ,FWB,Care Purchase - PD,54440,Direct Payments,552000,07-Jan-14,1900135946,939.00,Redacted Personal Data,101336
WARRINGTON BOROUGH COUNCIL,http://opendatacommunities.org/id/unitary-authority/warrington ,FWB,Care Purchase - Learning Disability,54450,Direct Payments,552000,07-Jan-14,1900135947,4063.00,Redacted Personal Data,101341
WARRINGTON BOROUGH COUNCIL,http://opendatacommunities.org/id/unitary-authority/warrington ,FWB,Care Purchase - PD,54440,Direct Payments,552000,07-Jan-14,1900135948,1231.00,Redacted Personal Data,101354
WARRINGTON BOROUGH COUNCIL,http://opendatacommunities.org/id/unitary-authority/warrington ,FWB,Care Purchase - Learning Disability,54450,Direct Payments,552000,07-Jan-14,1900135949,800.00,Redacted Personal Data,101396
WARRINGTON BOROUGH COUNCIL,http://opendatacommunities.org/id/unitary-authority/warrington ,FWB,Child Disability,32212,Direct Payments,552000,07-Jan-14,1900135950,984.00,Redacted Personal Data,101407
WARRINGTON BOROUGH COUNCIL,http://opendatacommunities.org/id/unitary-authority/warrington ,FWB,Care Purchase - Learning Disability,54450,Direct Payments,552000,07-Jan-14,1900135951,1370.00,Redacted Personal Data,101420
WARRINGTON BOROUGH COUNCIL,http://opendatacommunities.org/id/unitary-authority/warrington ,FWB,Care Purchase - PD,54440,Supporting People - External,441250,07-Jan-14,1900135952,637.00,Redacted Personal Data,101431
WARRINGTON BOROUGH COUNCIL,http://opendatacommunities.org/id/unitary-authority/warrington ,FWB,Care Purchase - PD,54440,Direct Payments,552000,07-Jan-14,1900135952,764.00,Redacted Personal Data,101431
WARRINGTON BOROUGH COUNCIL,http://opendatacommunities.org/id/unitary-authority/warrington ,RSC,Electoral Registration,11500,Postages,450000,07-Jan-14,1900135723,1913.00,Royal Mail,101445
WARRINGTON BOROUGH COUNCIL,http://opendatacommunities.org/id/unitary-authority/warrington ,RSC,Electoral Registration,11500,Postages,450000,21-Jan-14,1900137000,3998.00,Royal Mail,101445
WARRINGTON BOROUGH COUNCIL,http://opendatacommunities.org/id/unitary-authority/warrington ,RSC,Electoral Registration,11500,Postages,450000,22-Jan-14,1900137021,939.00,Royal Mail,101445
WARRINGTON BOROUGH COUNCIL,http://opendatacommunities.org/id/unitary-authority/warrington ,RSC,Postal & Courier Services,52130,Postages,450000,22-Jan-14,1900137024,1193.00,Royal Mail,101445
WARRINGTON BOROUGH COUNCIL,http://opendatacommunities.org/id/unitary-authority/warrington ,COR,Corporate Planning Items,61020,Consult.& Prof. Serv,440000,23-Jan-14,1900137204,1110.00,Weightmans Office AC,101452
WARRINGTON BOROUGH COUNCIL,http://opendatacommunities.org/id/unitary-authority/warrington ,FWB,Central Schools,32502,Legal Costs Incurred,440200,23-Jan-14,1900137205,732.00,Weightmans Office AC,101452
WARRINGTON BOROUGH COUNCIL,http://opendatacommunities.org/id/unitary-authority/warrington ,FWB,Care Purchase - Learning Disability,54450,CP - Cont Care - External,441350,07-Jan-14,1900135953,8560.00,Redacted Personal Data,101463
WARRINGTON BOROUGH COUNCIL,http://opendatacommunities.org/id/unitary-authority/warrington ,FWB,Care Purchase - Learning Disability,54450,Direct Payments,552000,07-Jan-14,1900135955,4802.00,Redacted Personal Data,101472
WARRINGTON BOROUGH COUNCIL,http://opendatacommunities.org/id/unitary-authority/warrington ,FWB,Care Purchase Budget,54490,CP ExternalOther Exp,440800,07-Jan-14,1900135731,40000.00,St Marys Care Centre,101503
WARRINGTON BOROUGH COUNCIL,http://opendatacommunities.org/id/unitary-authority/warrington ,FWB,Care Purchase Budget,54490,CP - Cont Care - External,441350,10-Jan-14,1900136392,3960.00,St Marys Care Centre,101503
WARRINGTON BOROUGH COUNCIL,http://opendatacommunities.org/id/unitary-authority/warrington ,FWB,Care Purchase - ABI,54260,CP-Nursing Care-External,441200,15-Jan-14,1900136579,5000.00,St Marys Care Centre,101503
WARRINGTON BOROUGH COUNCIL,http://opendatacommunities.org/id/unitary-authority/warrington ,FWB,Care Purchase Budget,54490,CP ExternalOther Exp,440800,22-Jan-14,1900137062,7641.00,St Marys Care Centre,101503
WARRINGTON BOROUGH COUNCIL,http://opendatacommunities.org/id/unitary-authority/warrington ,FWB,Contracts - OM HPHL Team,55940,Public Health Contribution Payments,540010,21-Jan-14,1900136999,1600.00,Warrington Wolves Foundation,101508
WARRINGTON BOROUGH COUNCIL,http://opendatacommunities.org/id/unitary-authority/warrington ,ENO,Highways LTP,82004,Legal Costs Incurred,440200,21-Jan-14,1900137009,1012.00,Dwf LLP,101511
WARRINGTON BOROUGH COUNCIL,http://opendatacommunities.org/id/unitary-authority/warrington ,FWB,Care Purchase - PD,54440,Direct Payments,552000,07-Jan-14,1900135957,729.00,Redacted Personal Data,101515
WARRINGTON BOROUGH COUNCIL,http://opendatacommunities.org/id/unitary-authority/warrington ,FWB,Care Purchase - Learning Disability,54450,Direct Payments,552000,07-Jan-14,1900135958,1513.00,Redacted Personal Data,101516
WARRINGTON BOROUGH COUNCIL,http://opendatacommunities.org/id/unitary-authority/warrington ,FWB,Care Purchase - PD,54440,Direct Payments,552000,07-Jan-14,1900135959,1188.00,Redacted Personal Data,101528
WARRINGTON BOROUGH COUNCIL,http://opendatacommunities.org/id/unitary-authority/warrington ,FWB,Care Purchase - PD,54440,Direct Payments,552000,07-Jan-14,1900135961,912.00,Redacted Personal Data,101541
WARRINGTON BOROUGH COUNCIL,http://opendatacommunities.org/id/unitary-authority/warrington ,FWB,Care Purchase - ABI,54260,Direct Payments,552000,07-Jan-14,1900135962,849.00,Redacted Personal Data,101542
WARRINGTON BOROUGH COUNCIL,http://opendatacommunities.org/id/unitary-authority/warrington ,FWB,Care Purchase - Learning Disability,54450,Direct Payments,552000,07-Jan-14,1900135963,934.00,Redacted Personal Data,101547
WARRINGTON BOROUGH COUNCIL,http://opendatacommunities.org/id/unitary-authority/warrington ,FWB,Care Purchase - Learning Disability,54450,CP - Cont Care - External,441350,07-Jan-14,1900135964,1542.00,Redacted Personal Data,101551
WARRINGTON BOROUGH COUNCIL,http://opendatacommunities.org/id/unitary-authority/warrington ,FWB,Care Purchase - Learning Disability,54450,Direct Payments,552000,07-Jan-14,1900135964,1542.00,Redacted Personal Data,101551
WARRINGTON BOROUGH COUNCIL,http://opendatacommunities.org/id/unitary-authority/warrington ,FWB,Care Purchase - PD,54440,Direct Payments,552000,07-Jan-14,1900135966,509.00,Redacted Personal Data,101558
WARRINGTON BOROUGH COUNCIL,http://opendatacommunities.org/id/unitary-authority/warrington ,FWB,Care Purchase - Learning Disability,54450,Direct Payments,552000,07-Jan-14,1900135967,2462.00,Redacted Personal Data,101568
WARRINGTON BOROUGH COUNCIL,http://opendatacommunities.org/id/unitary-authority/warrington ,FWB,Care Purchase - Learning Disability,54450,Direct Payments,552000,07-Jan-14,1900135968,1698.00,Redacted Personal Data,101584
WARRINGTON BOROUGH COUNCIL,http://opendatacommunities.org/id/unitary-authority/warrington ,FWB,Care Purchase - OP & OT West,54470,Direct Payments,552000,07-Jan-14,1900135969,856.00,Redacted Personal Data,101592
WARRINGTON BOROUGH COUNCIL,http://opendatacommunities.org/id/unitary-authority/warrington ,FWB,Child Disability,32212,Direct Payments,552000,07-Jan-14,1900135970,622.00,Redacted Personal Data,101595
WARRINGTON BOROUGH COUNCIL,http://opendatacommunities.org/id/unitary-authority/warrington ,FWB,Care Purchase - Learning Disability,54450,Direct Payments,552000,07-Jan-14,1900135971,1417.00,Redacted Personal Data,101614
WARRINGTON BOROUGH COUNCIL,http://opendatacommunities.org/id/unitary-authority/warrington ,FWB,Care Purchase - Learning Disability,54450,Direct Payments,552000,07-Jan-14,1900135972,1019.00,Redacted Personal Data,101625
WARRINGTON BOROUGH COUNCIL,http://opendatacommunities.org/id/unitary-authority/warrington ,FWB,Child Disability,32212,CP - Cont Care - External,441350,07-Jan-14,1900135974,580.00,Redacted Personal Data,101630
WARRINGTON BOROUGH COUNCIL,http://opendatacommunities.org/id/unitary-authority/warrington ,FWB,Child Disability,32212,Direct Payments,552000,07-Jan-14,1900135974,580.00,Redacted Personal Data,101630
WARRINGTON BOROUGH COUNCIL,http://opendatacommunities.org/id/unitary-authority/warrington ,FWB,Care Purchase - Learning Disability,54450,CP-LongStayExternal,441150,02-Jan-14,1900135534,12348.00,Griffin Care Ltd,101672
WARRINGTON BOROUGH COUNCIL,http://opendatacommunities.org/id/unitary-authority/warrington ,FWB,Care Purchase - Learning Disability,54450,CP-LongStayExternal,441150,02-Jan-14,1900135535,12348.00,Griffin Care Ltd,101672
WARRINGTON BOROUGH COUNCIL,http://opendatacommunities.org/id/unitary-authority/warrington ,FWB,Care Purchase - Learning Disability,54450,CP-LongStayExternal,441150,27-Jan-14,1900137296,12348.00,Griffin Care Ltd,101672
WARRINGTON BOROUGH COUNCIL,http://opendatacommunities.org/id/unitary-authority/warrington ,FWB,Care Purchase - Learning Disability,54450,CP-LongStayExternal,441150,27-Jan-14,1900137305,12348.00,Griffin Care Ltd,101672
WARRINGTON BOROUGH COUNCIL,http://opendatacommunities.org/id/unitary-authority/warrington ,FWB,Care Purchase - PD,54440,Direct Payments,552000,07-Jan-14,1900135977,560.00,Redacted Personal Data,101677
WARRINGTON BOROUGH COUNCIL,http://opendatacommunities.org/id/unitary-authority/warrington ,FWB,Care Purchase - Learning Disability,54450,Direct Payments,552000,07-Jan-14,1900135978,2177.00,Redacted Personal Data,101686
WARRINGTON BOROUGH COUNCIL,http://opendatacommunities.org/id/unitary-authority/warrington ,RSC,Coroners Service,11100,Post Mortem Fees-Rep,440250,09-Jan-14,1900135850,1117.00,Dr Daniel Crooks,101689
WARRINGTON BOROUGH COUNCIL,http://opendatacommunities.org/id/unitary-authority/warrington ,FWB,Care Purchase - Learning Disability,54450,Direct Payments,552000,07-Jan-14,1900135979,3533.00,Redacted Personal Data,101701
WARRINGTON BOROUGH COUNCIL,http://opendatacommunities.org/id/unitary-authority/warrington ,FWB,Care Purchase - Learning Disability,54450,Direct Payments,552000,07-Jan-14,1900135980,3533.00,Redacted Personal Data,101704
WARRINGTON BOROUGH COUNCIL,http://opendatacommunities.org/id/unitary-authority/warrington ,RSC,Coroners Service,11100,Post Mortem Fees-Rep,440250,28-Jan-14,1900137348,678.00,Dr Natalie Meara,101727
WARRINGTON BOROUGH COUNCIL,http://opendatacommunities.org/id/unitary-authority/warrington ,FWB,Care Purchase - Learning Disability,54450,Direct Payments,552000,07-Jan-14,1900135982,1347.00,Redacted Personal Data,101730
WARRINGTON BOROUGH COUNCIL,http://opendatacommunities.org/id/unitary-authority/warrington ,FWB,DSG Independent School Fees,32011,Independent School Fees,490200,23-Jan-14,1900137163,1561.00,The Priory,101736
WARRINGTON BOROUGH COUNCIL,http://opendatacommunities.org/id/unitary-authority/warrington ,FWB,DSG Independent School Fees,32011,Independent School Fees,490200,23-Jan-14,1900137165,1510.00,The Priory,101736
WARRINGTON BOROUGH COUNCIL,http://opendatacommunities.org/id/unitary-authority/warrington ,FWB,DSG Independent School Fees,32011,Independent School Fees,490200,23-Jan-14,1900137179,1561.00,The Priory,101736
WARRINGTON BOROUGH COUNCIL,http://opendatacommunities.org/id/unitary-authority/warrington ,FWB,DSG Independent School Fees,32011,Independent School Fees,490200,23-Jan-14,1900137182,1561.00,The Priory,101736
WARRINGTON BOROUGH COUNCIL,http://opendatacommunities.org/id/unitary-authority/warrington ,FWB,DSG Independent School Fees,32011,Independent School Fees,490200,24-Jan-14,1900137254,1510.00,The Priory,101736
WARRINGTON BOROUGH COUNCIL,http://opendatacommunities.org/id/unitary-authority/warrington ,FWB,Care Purchase Budget,54490,CP ExternalOther Exp,440800,07-Jan-14,1900135727,33000.00,Wcl - Heathside Mews,101742
WARRINGTON BOROUGH COUNCIL,http://opendatacommunities.org/id/unitary-authority/warrington ,FWB,P.F.I.,43630,PFI,480000,17-Jan-14,1900136876,76125.00,Arena Options,101746
WARRINGTON BOROUGH COUNCIL,http://opendatacommunities.org/id/unitary-authority/warrington ,FWB,Care Purchase - Learning Disability,54450,Direct Payments,552000,07-Jan-14,1900135983,509.00,Redacted Personal Data,101748
WARRINGTON BOROUGH COUNCIL,http://opendatacommunities.org/id/unitary-authority/warrington ,FWB,Care Purchase - PD,54440,Direct Payments,552000,07-Jan-14,1900135984,594.00,Redacted Personal Data,101752
WARRINGTON BOROUGH COUNCIL,http://opendatacommunities.org/id/unitary-authority/warrington ,FWB,Child Disability,32212,Direct Payments,552000,07-Jan-14,1900135985,1002.00,Redacted Personal Data,101758
WARRINGTON BOROUGH COUNCIL,http://opendatacommunities.org/id/unitary-authority/warrington ,FWB,Care Purchase - Learning Disability,54450,Direct Payments,552000,07-Jan-14,1900135986,509.00,Redacted Personal Data,101759
WARRINGTON BOROUGH COUNCIL,http://opendatacommunities.org/id/unitary-authority/warrington ,FWB,Care Purchase - PD,54440,CP-Domicil.External,440950,02-Jan-14,1900135537,3746.00,Homelife Leeds Ltd,101794
WARRINGTON BOROUGH COUNCIL,http://opendatacommunities.org/id/unitary-authority/warrington ,FWB,Care Purchase - OP & OT Central,54420,Direct Payments,552000,07-Jan-14,1900135987,3828.00,Redacted Personal Data,101808
WARRINGTON BOROUGH COUNCIL,http://opendatacommunities.org/id/unitary-authority/warrington ,FWB,Care Purchase - PD,54440,CP-Nursing Care-External,441200,15-Jan-14,1900136595,4136.00,Abbey Lawns Care Home Ltd,101816
WARRINGTON BOROUGH COUNCIL,http://opendatacommunities.org/id/unitary-authority/warrington ,FWB,Care Purchase - Learning Disability,54450,CP-LongStayExternal,441150,15-Jan-14,1900136631,11238.00,Progress Adult Services Ltd,101817
WARRINGTON BOROUGH COUNCIL,http://opendatacommunities.org/id/unitary-authority/warrington ,FWB,Care Purchase - Learning Disability,54450,CP-Domicil.External,440950,16-Jan-14,1900136683,687.00,Progress Adult Services Ltd,101817
WARRINGTON BOROUGH COUNCIL,http://opendatacommunities.org/id/unitary-authority/warrington ,FWB,Care Purchase - Learning Disability,54450,CP-LongStayExternal,441150,16-Jan-14,1900136683,11238.00,Progress Adult Services Ltd,101817
WARRINGTON BOROUGH COUNCIL,http://opendatacommunities.org/id/unitary-authority/warrington ,FWB,Care Purchase - OP & OT South,54480,Direct Payments,552000,07-Jan-14,1900135988,912.00,Redacted Personal Data,101825
WARRINGTON BOROUGH COUNCIL,http://opendatacommunities.org/id/unitary-authority/warrington ,FWB,Inclusion,32207,Computer Software - Maintenance,450850,14-Jan-14,1900136520,11880.00,Tribal Education Ltd,101828
WARRINGTON BOROUGH COUNCIL,http://opendatacommunities.org/id/unitary-authority/warrington ,RSC,Coroners Service,11100,Consult.& Prof. Serv,440000,23-Jan-14,1900137094,6298.00,Geoff Roberts Assoc Ltd,101833
WARRINGTON BOROUGH COUNCIL,http://opendatacommunities.org/id/unitary-authority/warrington ,RSC,Coroners Service,11100,Consult.& Prof. Serv,440000,23-Jan-14,1900137095,872.00,Geoff Roberts Assoc Ltd,101833
WARRINGTON BOROUGH COUNCIL,http://opendatacommunities.org/id/unitary-authority/warrington ,FWB,Care Purchase - Learning Disability,54450,CP-LongStayExternal,441150,07-Jan-14,1900135760,1258.00,Inclusive Lifestyles Ltd,101840
WARRINGTON BOROUGH COUNCIL,http://opendatacommunities.org/id/unitary-authority/warrington ,FWB,Care Purchase - Learning Disability,54450,CP-LongStayExternal,441150,07-Jan-14,1900135761,12744.00,Inclusive Lifestyles Ltd,101840
WARRINGTON BOROUGH COUNCIL,http://opendatacommunities.org/id/unitary-authority/warrington ,FWB,Care Purchase - Learning Disability,54450,CP-LongStayExternal,441150,07-Jan-14,1900135762,1482.00,Inclusive Lifestyles Ltd,101840
WARRINGTON BOROUGH COUNCIL,http://opendatacommunities.org/id/unitary-authority/warrington ,FWB,Care Purchase - Learning Disability,54450,CP-LongStayExternal,441150,07-Jan-14,1900135765,12532.00,Inclusive Lifestyles Ltd,101840
WARRINGTON BOROUGH COUNCIL,http://opendatacommunities.org/id/unitary-authority/warrington ,FWB,Care Purchase - OP & OT West,54470,CP-LongStayExternal,441150,16-Jan-14,1900136640,1848.00,Meridian Healthcare Ltd,101845
WARRINGTON BOROUGH COUNCIL,http://opendatacommunities.org/id/unitary-authority/warrington ,FWB,Care Purchase - OP & OT South,54480,CP-Nursing Care-External,441200,16-Jan-14,1900136641,1965.00,Meridian Healthcare Ltd,101845
WARRINGTON BOROUGH COUNCIL,http://opendatacommunities.org/id/unitary-authority/warrington ,FWB,Care Purchase - OP & OT South,54480,CP-LongStayExternal,441150,16-Jan-14,1900136642,1507.00,Meridian Healthcare Ltd,101845
WARRINGTON BOROUGH COUNCIL,http://opendatacommunities.org/id/unitary-authority/warrington ,FWB,Care Purchase - Learning Disability,54450,Direct Payments,552000,07-Jan-14,1900135990,1916.00,Redacted Personal Data,101849
WARRINGTON BOROUGH COUNCIL,http://opendatacommunities.org/id/unitary-authority/warrington ,HOL,Single Billing Holding Account,91130,Electricity,210000,14-Jan-14,1900136493,54458.00,Npower Electricity,101884
WARRINGTON BOROUGH COUNCIL,http://opendatacommunities.org/id/unitary-authority/warrington ,HOL,Single Billing Holding Account,91130,Electricity,210000,14-Jan-14,1900136494,75273.00,Npower Electricity,101884
WARRINGTON BOROUGH COUNCIL,http://opendatacommunities.org/id/unitary-authority/warrington ,HOL,Single Billing Holding Account,91130,Electricity,210000,14-Jan-14,1900136495,46708.00,Npower Electricity,101884
WARRINGTON BOROUGH COUNCIL,http://opendatacommunities.org/id/unitary-authority/warrington ,HOL,Single Billing Holding Account,91130,Electricity,210000,14-Jan-14,1900136495,740.00,Npower Electricity,101884
WARRINGTON BOROUGH COUNCIL,http://opendatacommunities.org/id/unitary-authority/warrington ,HOL,Single Billing Holding Account,91130,Electricity,210000,14-Jan-14,1900136497,56587.00,Npower Electricity,101884
WARRINGTON BOROUGH COUNCIL,http://opendatacommunities.org/id/unitary-authority/warrington ,HOL,Single Billing Holding Account,91130,Electricity,210000,14-Jan-14,1900136515,75273.00,Npower Electricity,101884
WARRINGTON BOROUGH COUNCIL,http://opendatacommunities.org/id/unitary-authority/warrington ,EG0,Street Lighting Client,44241,Lighting Energy Char,531550,23-Jan-14,1900137076,24322.00,Npower Electricity,101884
WARRINGTON BOROUGH COUNCIL,http://opendatacommunities.org/id/unitary-authority/warrington ,HOL,Single Billing Holding Account,91130,Electricity,210000,24-Jan-14,1900137206,32830.00,Npower Electricity,101884
WARRINGTON BOROUGH COUNCIL,http://opendatacommunities.org/id/unitary-authority/warrington ,HOL,Single Billing Holding Account,91130,Electricity,210000,24-Jan-14,1900137206,3050.00,Npower Electricity,101884
WARRINGTON BOROUGH COUNCIL,http://opendatacommunities.org/id/unitary-authority/warrington ,FWB,Contracts - OM HPHL Team,55940,Public Health Contribution Payments,540010,29-Jan-14,1900137470,705.00,2 Co Ltd,101952
WARRINGTON BOROUGH COUNCIL,http://opendatacommunities.org/id/unitary-authority/warrington ,FWB,Contracts - OM HPHL Team,55940,Public Health Contribution Payments,540010,29-Jan-14,1900137472,1155.00,2 Co Ltd,101952
WARRINGTON BOROUGH COUNCIL,http://opendatacommunities.org/id/unitary-authority/warrington ,FWB,Care Purchase - OP & OT South,54480,CP-Domicil.External,440950,02-Jan-14,1900135531,13366.00,Dh Homecare,101961
WARRINGTON BOROUGH COUNCIL,http://opendatacommunities.org/id/unitary-authority/warrington ,FWB,Care Purchase - OP & OT Central,54420,CP-Domicil.External,440950,02-Jan-14,1900135531,2149.00,Dh Homecare,101961
WARRINGTON BOROUGH COUNCIL,http://opendatacommunities.org/id/unitary-authority/warrington ,FWB,Care Purchase - PD,54440,CP-Domicil.External,440950,02-Jan-14,1900135531,3575.00,Dh Homecare,101961
WARRINGTON BOROUGH COUNCIL,http://opendatacommunities.org/id/unitary-authority/warrington ,FWB,Contracts - OM HPHL Team,55940,Public Health Contract Payments,540000,13-Jan-14,1900136434,2915.00,St Helens & Knowsley Hosp Nhs Trust,102001
WARRINGTON BOROUGH COUNCIL,http://opendatacommunities.org/id/unitary-authority/warrington ,FWB,Contracts - OM HPHL Team,55940,Public Health Contract Payments,540000,13-Jan-14,1900136435,2915.00,St Helens & Knowsley Hosp Nhs Trust,102001
WARRINGTON BOROUGH COUNCIL,http://opendatacommunities.org/id/unitary-authority/warrington ,FWB,Contracts - OM HPHL Team,55940,Public Health Contract Payments,540000,13-Jan-14,1900136436,2915.00,St Helens & Knowsley Hosp Nhs Trust,102001
WARRINGTON BOROUGH COUNCIL,http://opendatacommunities.org/id/unitary-authority/warrington ,FWB,Contracts - OM HPHL Team,55940,Public Health Contract Payments,540000,13-Jan-14,1900136437,2915.00,St Helens & Knowsley Hosp Nhs Trust,102001
WARRINGTON BOROUGH COUNCIL,http://opendatacommunities.org/id/unitary-authority/warrington ,FWB,Contracts - OM HPHL Team,55940,Public Health Contract Payments,540000,13-Jan-14,1900136443,2915.00,St Helens & Knowsley Hosp Nhs Trust,102001
WARRINGTON BOROUGH COUNCIL,http://opendatacommunities.org/id/unitary-authority/warrington ,FWB,Care Purchase - PD,54440,Direct Payments,552000,07-Jan-14,1900135993,524.00,Redacted Personal Data,102010
WARRINGTON BOROUGH COUNCIL,http://opendatacommunities.org/id/unitary-authority/warrington ,FWB,Care Purchase - OP & OT South,54480,CP-LongStayExternal,441150,02-Jan-14,1900135521,7294.00,Bondcare (Spinney),102023
WARRINGTON BOROUGH COUNCIL,http://opendatacommunities.org/id/unitary-authority/warrington ,FWB,Care Purchase - OP & OT South,54480,CP-LongStayExternal,441150,16-Jan-14,1900136689,1765.00,Bondcare (Spinney),102023
WARRINGTON BOROUGH COUNCIL,http://opendatacommunities.org/id/unitary-authority/warrington ,ENO,Housing Projects,82008,Disabled Persons Grant 1996,554000,27-Jan-14,1900137315,1224.00,Redacted Personal Data,102051
WARRINGTON BOROUGH COUNCIL,http://opendatacommunities.org/id/unitary-authority/warrington ,FWB,Child Disability,32212,Direct Payments,552000,07-Jan-14,1900135995,510.00,Redacted Personal Data,102107
WARRINGTON BOROUGH COUNCIL,http://opendatacommunities.org/id/unitary-authority/warrington ,FWB,Care Purchase - OP & OT West,54470,CP-LongStayExternal,441150,16-Jan-14,1900136639,2544.00,The Turner Home,102163
WARRINGTON BOROUGH COUNCIL,http://opendatacommunities.org/id/unitary-authority/warrington ,FWB,Care Purchase -OP & OT East,54430,CP-Nursing Care-External,441200,16-Jan-14,1900136650,2580.00,The Turner Home,102163
WARRINGTON BOROUGH COUNCIL,http://opendatacommunities.org/id/unitary-authority/warrington ,FWB,Care Purchase - OP & OT West,54470,CP-Nursing Care-External,441200,16-Jan-14,1900136652,2628.00,The Turner Home,102163
WARRINGTON BOROUGH COUNCIL,http://opendatacommunities.org/id/unitary-authority/warrington ,FWB,Care Purchase - ABI,54260,CP-LongStayExternal,441150,02-Jan-14,1900135488,5660.00,Thames Health Care Ltd,102170
WARRINGTON BOROUGH COUNCIL,http://opendatacommunities.org/id/unitary-authority/warrington ,FWB,Care Purchase - ABI,54260,CP-LongStayExternal,441150,23-Jan-14,1900137092,5660.00,Thames Health Care Ltd,102170
WARRINGTON BOROUGH COUNCIL,http://opendatacommunities.org/id/unitary-authority/warrington ,FWB,Care Purchase - OP & OT Central,54420,Direct Payments,552000,07-Jan-14,1900135997,610.00,Redacted Personal Data,102183
WARRINGTON BOROUGH COUNCIL,http://opendatacommunities.org/id/unitary-authority/warrington ,FWB,Care Purchase - OP & OT West,54470,CP-Domicil.External,440950,10-Jan-14,1900136390,635.00,M-Power Activity Services Ltd,102186
WARRINGTON BOROUGH COUNCIL,http://opendatacommunities.org/id/unitary-authority/warrington ,FWB,Care Purchase - Learning Disability,54450,CP-Domicil.External,440950,10-Jan-14,1900136390,1917.00,M-Power Activity Services Ltd,102186
WARRINGTON BOROUGH COUNCIL,http://opendatacommunities.org/id/unitary-authority/warrington ,FWB,Care Purchase - Learning Disability,54450,CP-Domicil.External,440950,17-Jan-14,1900136873,2340.00,M-Power Activity Services Ltd,102186
WARRINGTON BOROUGH COUNCIL,http://opendatacommunities.org/id/unitary-authority/warrington ,RSC,Coroners Service,11100,Post Mortem Fees-Rep,440250,09-Jan-14,1900135872,3450.00,Dr P Simcock,102209
WARRINGTON BOROUGH COUNCIL,http://opendatacommunities.org/id/unitary-authority/warrington ,RSC,Coroners Service,11100,Post Mortem Fees-Rep,440250,23-Jan-14,1900137147,2039.00,Dr P Simcock,102209
WARRINGTON BOROUGH COUNCIL,http://opendatacommunities.org/id/unitary-authority/warrington ,FWB,Care Purchase - Learning Disability,54450,Direct Payments,552000,07-Jan-14,1900135998,719.00,Redacted Personal Data,102217
WARRINGTON BOROUGH COUNCIL,http://opendatacommunities.org/id/unitary-authority/warrington ,FWB,Care Purchase - PD,54440,Direct Payments,552000,07-Jan-14,1900135999,1051.00,Redacted Personal Data,102222
WARRINGTON BOROUGH COUNCIL,http://opendatacommunities.org/id/unitary-authority/warrington ,EG0,Time Square,43551,Service Charges,220050,03-Jan-14,1900135566,16369.00,Knight Frank Llp,102232
WARRINGTON BOROUGH COUNCIL,http://opendatacommunities.org/id/unitary-authority/warrington ,FWB,Care Purchase - PD,54440,CP Adult Placement,443450,27-Jan-14,1900137325,1510.00,Redacted Personal Data,102249
WARRINGTON BOROUGH COUNCIL,http://opendatacommunities.org/id/unitary-authority/warrington ,RSC,Council Tax & Recovery,10320,Court Costs,460100,21-Jan-14,1900136969,1632.00,Hmcs North Cheshire Collections,102261
WARRINGTON BOROUGH COUNCIL,http://opendatacommunities.org/id/unitary-authority/warrington ,RSC,Coroners Service,11100,Consult.& Prof. Serv,440000,28-Jan-14,1900137362,800.00,Redacted Personal Data,102292
WARRINGTON BOROUGH COUNCIL,http://opendatacommunities.org/id/unitary-authority/warrington ,FWB,Care Purchase - OP & OT South,54480,CP-Nursing Care-External,441200,29-Jan-14,1900137412,1532.00,Flightcare Limited,102299
WARRINGTON BOROUGH COUNCIL,http://opendatacommunities.org/id/unitary-authority/warrington ,RSC,Third Sector,53130,Payment of Grants,470050,30-Jan-14,1900137570,3000.00,Latchford West Community Forum,102342
WARRINGTON BOROUGH COUNCIL,http://opendatacommunities.org/id/unitary-authority/warrington ,FWB,Care Purchase - Learning Disability,54450,Direct Payments,552000,07-Jan-14,1900136001,1103.00,Redacted Personal Data,102348
WARRINGTON BOROUGH COUNCIL,http://opendatacommunities.org/id/unitary-authority/warrington ,EG0,Estates & Valuation,43520,Agency Supply - GF,180000,13-Jan-14,1900136460,1094.00,Nuttallroberts Ltd,102450
WARRINGTON BOROUGH COUNCIL,http://opendatacommunities.org/id/unitary-authority/warrington ,EG0,Estates & Valuation,43520,Agency Supply - GF,180000,13-Jan-14,1900136461,1025.00,Nuttallroberts Ltd,102450
WARRINGTON BOROUGH COUNCIL,http://opendatacommunities.org/id/unitary-authority/warrington ,FWB,Care Purchase - Learning Disability,54450,CP-LongStayExternal,441150,08-Jan-14,1900135844,3508.00,Potens Ltd TA Heath Lodge,102481
WARRINGTON BOROUGH COUNCIL,http://opendatacommunities.org/id/unitary-authority/warrington ,FWB,Care Purchase - Learning Disability,54450,CP-LongStayExternal,441150,16-Jan-14,1900136667,3508.00,Potens Ltd TA Heath Lodge,102481
WARRINGTON BOROUGH COUNCIL,http://opendatacommunities.org/id/unitary-authority/warrington ,FWB,Care Purchase AMH,54135,CP-LongStayExternal,441150,10-Jan-14,1900136382,2436.00,Ttp Counselling Centre Ltd,102499
WARRINGTON BOROUGH COUNCIL,http://opendatacommunities.org/id/unitary-authority/warrington ,FWB,Care Purchase AMH,54135,CP-LongStayExternal,441150,10-Jan-14,1900136393,2436.00,Ttp Counselling Centre Ltd,102499
WARRINGTON BOROUGH COUNCIL,http://opendatacommunities.org/id/unitary-authority/warrington ,FWB,Care Purchase AMH,54135,CP-LongStayExternal,441150,17-Jan-14,1900136863,1114.00,Ttp Counselling Centre Ltd,102499
WARRINGTON BOROUGH COUNCIL,http://opendatacommunities.org/id/unitary-authority/warrington ,FWB,Care Purchase AMH,54135,CP-LongStayExternal,441150,17-Jan-14,1900136864,2879.00,Ttp Counselling Centre Ltd,102499
WARRINGTON BOROUGH COUNCIL,http://opendatacommunities.org/id/unitary-authority/warrington ,FWB,Care Purchase - Learning Disability,54450,CP-Nursing Care-External,441200,24-Jan-14,1900137247,3588.00,Stocks Hall Care Homes Ltd,102512
WARRINGTON BOROUGH COUNCIL,http://opendatacommunities.org/id/unitary-authority/warrington ,FWB,Care Purchase Budget,54490,CP ExternalOther Exp,440800,08-Jan-14,1900135821,173000.00,Leyton Healthcare,102517
WARRINGTON BOROUGH COUNCIL,http://opendatacommunities.org/id/unitary-authority/warrington ,FWB,Care Purchase Budget,54490,CP ExternalOther Exp,440800,13-Jan-14,1900136489,9202.00,Leyton Healthcare,102517
WARRINGTON BOROUGH COUNCIL,http://opendatacommunities.org/id/unitary-authority/warrington ,FWB,Care Purchase - OP & OT West,54470,CP-LongStayExternal,441150,10-Jan-14,1900136373,1904.00,Orchard Care Homes,102524
WARRINGTON BOROUGH COUNCIL,http://opendatacommunities.org/id/unitary-authority/warrington ,FWB,Care Purchase - OP & OT South,54480,CP-LongStayExternal,441150,10-Jan-14,1900136374,1764.00,Orchard Care Homes,102524
WARRINGTON BOROUGH COUNCIL,http://opendatacommunities.org/id/unitary-authority/warrington ,FWB,Care Purchase - Learning Disability,54450,Direct Payments,552000,07-Jan-14,1900136002,637.00,Redacted Personal Data,102547
WARRINGTON BOROUGH COUNCIL,http://opendatacommunities.org/id/unitary-authority/warrington ,ENO,Housing Projects,82008,Disabled Persons Grant 1996,554000,23-Jan-14,1900137199,1725.00,R Hough & Co,102596
WARRINGTON BOROUGH COUNCIL,http://opendatacommunities.org/id/unitary-authority/warrington ,FWB,Foster Allowances,31106,Fostering Allowance,550050,21-Jan-14,1900136988,840.00,Redacted Personal Data,102648
WARRINGTON BOROUGH COUNCIL,http://opendatacommunities.org/id/unitary-authority/warrington ,FWB,Care Purchase - Learning Disability,54450,Direct Payments,552000,07-Jan-14,1900136005,849.00,Redacted Personal Data,102667
WARRINGTON BOROUGH COUNCIL,http://opendatacommunities.org/id/unitary-authority/warrington ,FWB,Care Purchase - Learning Disability,54450,Supporting People - External,441250,15-Jan-14,1900136582,4263.00,Warrington Mencap,102670
WARRINGTON BOROUGH COUNCIL,http://opendatacommunities.org/id/unitary-authority/warrington ,FWB,Care Purchase - Learning Disability,54450,Supporting People - External,441250,15-Jan-14,1900136583,6280.00,Warrington Mencap,102670
WARRINGTON BOROUGH COUNCIL,http://opendatacommunities.org/id/unitary-authority/warrington ,FWB,Care Purchase - Learning Disability,54450,Supporting People - External,441250,15-Jan-14,1900136584,4584.00,Warrington Mencap,102670
WARRINGTON BOROUGH COUNCIL,http://opendatacommunities.org/id/unitary-authority/warrington ,FWB,Care Purchase - Learning Disability,54450,CP-Domicil.External,440950,22-Jan-14,1900137054,5180.00,Warrington Mencap,102670
WARRINGTON BOROUGH COUNCIL,http://opendatacommunities.org/id/unitary-authority/warrington ,FWB,Care Purchase - Learning Disability,54450,Direct Payments,552000,07-Jan-14,1900136006,1273.00,Redacted Personal Data,102710
WARRINGTON BOROUGH COUNCIL,http://opendatacommunities.org/id/unitary-authority/warrington ,FWB,Care Purchase - Learning Disability,54450,Direct Payments,552000,07-Jan-14,1900136007,849.00,Redacted Personal Data,102718
WARRINGTON BOROUGH COUNCIL,http://opendatacommunities.org/id/unitary-authority/warrington ,FWB,Care Purchase - Learning Disability,54450,Direct Payments,552000,07-Jan-14,1900136008,900.00,Redacted Personal Data,102759
WARRINGTON BOROUGH COUNCIL,http://opendatacommunities.org/id/unitary-authority/warrington ,FWB,Care Purchase - Learning Disability,54450,CP-Nursing Care-External,441200,07-Jan-14,1900135741,8212.00,Community Care Matters Limited,102791
WARRINGTON BOROUGH COUNCIL,http://opendatacommunities.org/id/unitary-authority/warrington ,FWB,Care Purchase Budget,54490,CP - Cont Care - External,441350,07-Jan-14,1900135741,19408.00,Community Care Matters Limited,102791
WARRINGTON BOROUGH COUNCIL,http://opendatacommunities.org/id/unitary-authority/warrington ,FWB,Care Purchase - Learning Disability,54450,CP-LongStayExternal,441150,07-Jan-14,1900135742,8464.00,Community Care Matters Limited,102791
WARRINGTON BOROUGH COUNCIL,http://opendatacommunities.org/id/unitary-authority/warrington ,FWB,Care Purchase Budget,54490,CP - Cont Care - External,441350,07-Jan-14,1900135742,20100.00,Community Care Matters Limited,102791
WARRINGTON BOROUGH COUNCIL,http://opendatacommunities.org/id/unitary-authority/warrington ,FWB,DSG Inter Authority Recoupment,32009,Recoupment Charges,490700,14-Jan-14,1900136531,1819.00,The City Of Liverpool,102883
WARRINGTON BOROUGH COUNCIL,http://opendatacommunities.org/id/unitary-authority/warrington ,FWB,Care Purchase - Learning Disability,54450,CP-Day Care-External,441100,07-Jan-14,1900135743,23204.00,Walton Lea Project,102953
WARRINGTON BOROUGH COUNCIL,http://opendatacommunities.org/id/unitary-authority/warrington ,FWB,Care Purchase - Learning Disability,54450,CP-Day Care-External,441100,29-Jan-14,1900137429,23255.00,Walton Lea Project,102953
WARRINGTON BOROUGH COUNCIL,http://opendatacommunities.org/id/unitary-authority/warrington ,EG0,Public Health-Env Control,41543,Materials,400500,20-Jan-14,1900136939,8611.00,Assist Streetcare,102956
WARRINGTON BOROUGH COUNCIL,http://opendatacommunities.org/id/unitary-authority/warrington ,EG0,Hatters Row,43710,Electricity,210000,06-Jan-14,1900135664,1010.00,Scottish Power Manweb,103031
WARRINGTON BOROUGH COUNCIL,http://opendatacommunities.org/id/unitary-authority/warrington ,EG0,Markets,43711,Electricity,210000,10-Jan-14,1900136389,1062.00,Scottish Power Manweb,103031
WARRINGTON BOROUGH COUNCIL,http://opendatacommunities.org/id/unitary-authority/warrington ,EG0,Hatters Row,43710,Electricity,210000,13-Jan-14,1900136463,700.00,Scottish Power Manweb,103031
WARRINGTON BOROUGH COUNCIL,http://opendatacommunities.org/id/unitary-authority/warrington ,FWB,EIG Funding - Westy Childrens Centre,31541,Electricity,210000,27-Jan-14,1900137312,517.00,Scottish Power Manweb,103031
WARRINGTON BOROUGH COUNCIL,http://opendatacommunities.org/id/unitary-authority/warrington ,EG0,Public Health-Env Control,41543,Agency Supply - GF,180000,20-Jan-14,1900136930,2039.00,Animal Wardens Ltd,103042
WARRINGTON BOROUGH COUNCIL,http://opendatacommunities.org/id/unitary-authority/warrington ,EG0,Public Health-Env Control,41543,Agency Supply - GF,180000,20-Jan-14,1900136945,2039.00,Animal Wardens Ltd,103042
WARRINGTON BOROUGH COUNCIL,http://opendatacommunities.org/id/unitary-authority/warrington ,EG0,Public Health-Env Control,41543,Agency Supply - GF,180000,20-Jan-14,1900136948,2039.00,Animal Wardens Ltd,103042
WARRINGTON BOROUGH COUNCIL,http://opendatacommunities.org/id/unitary-authority/warrington ,FWB,Residence / Special Guardianship,31114,Residence Orders,550350,07-Jan-14,1900135779,559.00,Redacted Personal Data,103047
WARRINGTON BOROUGH COUNCIL,http://opendatacommunities.org/id/unitary-authority/warrington ,FWB,Care Purchase Budget,54490,CP - Cont Care - External,441350,29-Jan-14,1900137464,712.00,Seashell Trust,103082
WARRINGTON BOROUGH COUNCIL,http://opendatacommunities.org/id/unitary-authority/warrington ,FWB,Care Purchase Budget,54490,CP - Cont Care - External,441350,29-Jan-14,1900137465,956.00,Seashell Trust,103082
WARRINGTON BOROUGH COUNCIL,http://opendatacommunities.org/id/unitary-authority/warrington ,FWB,Homelessness,43650,Training,190150,27-Jan-14,1900137302,540.00,Homeless Link,103103
WARRINGTON BOROUGH COUNCIL,http://opendatacommunities.org/id/unitary-authority/warrington ,FWB,Strategic Director,30000,Events Costs,490000,27-Jan-14,1900137330,826.00,Harrogate Majestic Hotel,103128
WARRINGTON BOROUGH COUNCIL,http://opendatacommunities.org/id/unitary-authority/warrington ,FWB,Care Purchase - OP & OT Central,54420,CP-Domicil.External,440950,17-Jan-14,1900136866,10464.00,Safehands Network Ltd,103226
WARRINGTON BOROUGH COUNCIL,http://opendatacommunities.org/id/unitary-authority/warrington ,FWB,Care Purchase - OP & OT West,54470,CP-Domicil.External,440950,17-Jan-14,1900136866,10268.00,Safehands Network Ltd,103226
WARRINGTON BOROUGH COUNCIL,http://opendatacommunities.org/id/unitary-authority/warrington ,FWB,Care Purchase -OP & OT East,54430,CP-Domicil.External,440950,17-Jan-14,1900136866,9842.00,Safehands Network Ltd,103226
WARRINGTON BOROUGH COUNCIL,http://opendatacommunities.org/id/unitary-authority/warrington ,FWB,Care Purchase - OP & OT South,54480,CP-Domicil.External,440950,17-Jan-14,1900136866,4542.00,Safehands Network Ltd,103226
WARRINGTON BOROUGH COUNCIL,http://opendatacommunities.org/id/unitary-authority/warrington ,FWB,Care Purchase - Learning Disability,54450,CP-Domicil.External,440950,17-Jan-14,1900136866,549.00,Safehands Network Ltd,103226
WARRINGTON BOROUGH COUNCIL,http://opendatacommunities.org/id/unitary-authority/warrington ,FWB,Care Purchase - PD,54440,CP-Domicil.External,440950,17-Jan-14,1900136866,4060.00,Safehands Network Ltd,103226
WARRINGTON BOROUGH COUNCIL,http://opendatacommunities.org/id/unitary-authority/warrington ,FWB,Care Purchase Budget,54490,CP - Cont Care - External,441350,17-Jan-14,1900136866,693.00,Safehands Network Ltd,103226
WARRINGTON BOROUGH COUNCIL,http://opendatacommunities.org/id/unitary-authority/warrington ,FWB,Care Purchase - PD,54440,Direct Payments,552000,07-Jan-14,1900136017,935.00,Redacted Personal Data,103320
WARRINGTON BOROUGH COUNCIL,http://opendatacommunities.org/id/unitary-authority/warrington ,FWB,Care Purchase - PD,54440,Direct Payments,552000,07-Jan-14,1900136018,1740.00,Redacted Personal Data,103372
WARRINGTON BOROUGH COUNCIL,http://opendatacommunities.org/id/unitary-authority/warrington ,FWB,Care Purchase - PD,54440,Direct Payments,552000,07-Jan-14,1900136019,1732.00,Redacted Personal Data,103404
WARRINGTON BOROUGH COUNCIL,http://opendatacommunities.org/id/unitary-authority/warrington ,ENP,Environment & Regeneration,82000,Specific Work,200200,16-Jan-14,1900136702,4200.00,Sutcliffe,103561
WARRINGTON BOROUGH COUNCIL,http://opendatacommunities.org/id/unitary-authority/warrington ,FWB,Care Purchase - Learning Disability,54450,Direct Payments,552000,07-Jan-14,1900136023,696.00,Redacted Personal Data,103573
WARRINGTON BOROUGH COUNCIL,http://opendatacommunities.org/id/unitary-authority/warrington ,FWB,Care Purchase - OP & OT West,54470,CP-Nursing Care-External,441200,15-Jan-14,1900136621,1427.00,Four Seasons Ta Cherry Trees,103592
WARRINGTON BOROUGH COUNCIL,http://opendatacommunities.org/id/unitary-authority/warrington ,FWB,Care Purchase - PD,54440,Direct Payments,552000,07-Jan-14,1900136026,1046.00,Redacted Personal Data,103593
WARRINGTON BOROUGH COUNCIL,http://opendatacommunities.org/id/unitary-authority/warrington ,FWB,Care Purchase - OP & OT South,54480,CP-LongStayExternal,441150,02-Jan-14,1900135517,1898.00,Lady Elsie Finney House Lancashire,103595
WARRINGTON BOROUGH COUNCIL,http://opendatacommunities.org/id/unitary-authority/warrington ,FWB,Care Purchase - Learning Disability,54450,Direct Payments,552000,07-Jan-14,1900136027,1167.00,Redacted Personal Data,103611
WARRINGTON BOROUGH COUNCIL,http://opendatacommunities.org/id/unitary-authority/warrington ,FWB,Care Purchase - PD,54440,Direct Payments,552000,07-Jan-14,1900136028,1594.00,Redacted Personal Data,103613
WARRINGTON BOROUGH COUNCIL,http://opendatacommunities.org/id/unitary-authority/warrington ,FWB,Care Purchase - Learning Disability,54450,Direct Payments,552000,07-Jan-14,1900136029,1401.00,Redacted Personal Data,103614
WARRINGTON BOROUGH COUNCIL,http://opendatacommunities.org/id/unitary-authority/warrington ,COR,Corporate Planning Items,61020,Consult.& Prof. Serv,440000,13-Jan-14,1900136433,32261.00,CIPFA Business Limited,103650
WARRINGTON BOROUGH COUNCIL,http://opendatacommunities.org/id/unitary-authority/warrington ,FWB,Care Purchase - Learning Disability,54450,Direct Payments,552000,07-Jan-14,1900136031,964.00,Redacted Personal Data,103660
WARRINGTON BOROUGH COUNCIL,http://opendatacommunities.org/id/unitary-authority/warrington ,FWB,Care Purchase - PD,54440,Direct Payments,552000,07-Jan-14,1900136032,637.00,Redacted Personal Data,103674
WARRINGTON BOROUGH COUNCIL,http://opendatacommunities.org/id/unitary-authority/warrington ,FWB,Care Purchase - Learning Disability,54450,CP-LongStayExternal,441150,15-Jan-14,1900136601,10388.00,Bank Hall Farm,103693
WARRINGTON BOROUGH COUNCIL,http://opendatacommunities.org/id/unitary-authority/warrington ,FWB,Care Purchase - Learning Disability,54450,Direct Payments,552000,07-Jan-14,1900136033,2060.00,Redacted Personal Data,103696
WARRINGTON BOROUGH COUNCIL,http://opendatacommunities.org/id/unitary-authority/warrington ,FWB,Care Purchase - Learning Disability,54450,Direct Payments,552000,07-Jan-14,1900136034,1146.00,Redacted Personal Data,103697
WARRINGTON BOROUGH COUNCIL,http://opendatacommunities.org/id/unitary-authority/warrington ,FWB,Care Purchase -OP & OT East,54430,Direct Payments,552000,07-Jan-14,1900136036,881.00,Redacted Personal Data,103723
WARRINGTON BOROUGH COUNCIL,http://opendatacommunities.org/id/unitary-authority/warrington ,FWB,Care Purchase - OP & OT West,54470,CP-LongStayExternal,441150,10-Jan-14,1900136386,1095.00,Croftwood Care Limited,103738
WARRINGTON BOROUGH COUNCIL,http://opendatacommunities.org/id/unitary-authority/warrington ,FWB,Care Purchase - Learning Disability,54450,Direct Payments,552000,07-Jan-14,1900136041,9177.00,Redacted Personal Data,103771
WARRINGTON BOROUGH COUNCIL,http://opendatacommunities.org/id/unitary-authority/warrington ,FWB,Care Purchase - PD,54440,Supporting People - External,441250,07-Jan-14,1900136042,849.00,Redacted Personal Data,103794
WARRINGTON BOROUGH COUNCIL,http://opendatacommunities.org/id/unitary-authority/warrington ,FWB,Child Disability,32212,Direct Payments,552000,07-Jan-14,1900136043,502.00,Redacted Personal Data,103820
WARRINGTON BOROUGH COUNCIL,http://opendatacommunities.org/id/unitary-authority/warrington ,FWB,Care Purchase - Learning Disability,54450,CP-LongStayExternal,441150,15-Jan-14,1900136599,3564.00,Manor Care Centre,103831
WARRINGTON BOROUGH COUNCIL,http://opendatacommunities.org/id/unitary-authority/warrington ,FWB,Care Purchase - OP & OT South,54480,CP-Domicil.External,440950,02-Jan-14,1900135492,4046.00,St Monica Trust,104021
WARRINGTON BOROUGH COUNCIL,http://opendatacommunities.org/id/unitary-authority/warrington ,FWB,Care Purchase - OP & OT South,54480,CP-Nursing Care-External,441200,27-Jan-14,1900137306,2064.00,St Monica Trust,104021
WARRINGTON BOROUGH COUNCIL,http://opendatacommunities.org/id/unitary-authority/warrington ,FWB,Care Purchase - OP & OT West,54470,CP-Domicil.External,440950,24-Jan-14,1900137207,14533.00,Bluebird Care Warrington,104094
WARRINGTON BOROUGH COUNCIL,http://opendatacommunities.org/id/unitary-authority/warrington ,FWB,Care Purchase - OP & OT South,54480,CP-Domicil.External,440950,24-Jan-14,1900137207,11792.00,Bluebird Care Warrington,104094
WARRINGTON BOROUGH COUNCIL,http://opendatacommunities.org/id/unitary-authority/warrington ,FWB,Care Purchase - OP & OT Central,54420,CP-Domicil.External,440950,24-Jan-14,1900137207,4166.00,Bluebird Care Warrington,104094
WARRINGTON BOROUGH COUNCIL,http://opendatacommunities.org/id/unitary-authority/warrington ,FWB,Care Purchase AMH,54135,CP-Domicil.External,440950,24-Jan-14,1900137207,1562.00,Bluebird Care Warrington,104094
WARRINGTON BOROUGH COUNCIL,http://opendatacommunities.org/id/unitary-authority/warrington ,FWB,Care Purchase - PD,54440,CP-Domicil.External,440950,24-Jan-14,1900137207,16010.00,Bluebird Care Warrington,104094
WARRINGTON BOROUGH COUNCIL,http://opendatacommunities.org/id/unitary-authority/warrington ,FWB,Care Purchase - PD,54440,CP-Domicil.External,440950,24-Jan-14,1900137207,11527.00,Bluebird Care Warrington,104094
WARRINGTON BOROUGH COUNCIL,http://opendatacommunities.org/id/unitary-authority/warrington ,FWB,Care Purchase - PD,54440,Supporting People - External,441250,24-Jan-14,1900137207,1325.00,Bluebird Care Warrington,104094
WARRINGTON BOROUGH COUNCIL,http://opendatacommunities.org/id/unitary-authority/warrington ,FWB,Care Purchase - PD,54440,Direct Payments,552000,07-Jan-14,1900136051,1179.00,Redacted Personal Data,104205
WARRINGTON BOROUGH COUNCIL,http://opendatacommunities.org/id/unitary-authority/warrington ,FWB,DAT Pooled Budget,53860,Drug Action,443600,16-Jan-14,1900136787,501.00,Medicx Pharmacy Ltd,104278
WARRINGTON BOROUGH COUNCIL,http://opendatacommunities.org/id/unitary-authority/warrington ,FWB,Care Purchase - OP & OT Central,54420,CP-Nursing Care-External,441200,10-Jan-14,1900136385,2208.00,HC1 Ltd County Homes,104325
WARRINGTON BOROUGH COUNCIL,http://opendatacommunities.org/id/unitary-authority/warrington ,FWB,Care Purchase - OP & OT Central,54420,CP-Nursing Care-External,441200,16-Jan-14,1900136686,2208.00,HC1 Ltd County Homes,104325
WARRINGTON BOROUGH COUNCIL,http://opendatacommunities.org/id/unitary-authority/warrington ,FWB,Care Purchase - PD,54440,Direct Payments,552000,07-Jan-14,1900136053,849.00,Redacted Personal Data,104327
WARRINGTON BOROUGH COUNCIL,http://opendatacommunities.org/id/unitary-authority/warrington ,FWB,Care Purchase -OP & OT East,54430,CP-LongStayExternal,441150,16-Jan-14,1900136673,1540.00,Abbeydale Residential Home,104446
WARRINGTON BOROUGH COUNCIL,http://opendatacommunities.org/id/unitary-authority/warrington ,FWB,Care Purchase -OP & OT East,54430,CP-LongStayExternal,441150,16-Jan-14,1900136675,1540.00,Abbeydale Residential Home,104446
WARRINGTON BOROUGH COUNCIL,http://opendatacommunities.org/id/unitary-authority/warrington ,FWB,Care Purchase AMH,54135,CP-Domicil.External,440950,08-Jan-14,1900135841,996.00,Alternative Futures Group,104468
WARRINGTON BOROUGH COUNCIL,http://opendatacommunities.org/id/unitary-authority/warrington ,FWB,Care Purchase - Learning Disability,54450,CP-Domicil.External,440950,17-Jan-14,1900136857,3163.00,Alternative Futures Group,104468
WARRINGTON BOROUGH COUNCIL,http://opendatacommunities.org/id/unitary-authority/warrington ,FWB,Care Purchase - Learning Disability,54450,CP-Domicil.External,440950,20-Jan-14,1900136901,66033.00,Alternative Futures Group,104468
WARRINGTON BOROUGH COUNCIL,http://opendatacommunities.org/id/unitary-authority/warrington ,FWB,Care Purchase - Learning Disability,54450,Supporting People - External,441250,20-Jan-14,1900136901,7200.00,Alternative Futures Group,104468
WARRINGTON BOROUGH COUNCIL,http://opendatacommunities.org/id/unitary-authority/warrington ,FWB,Care Purchase Budget,54490,Voids,515150,20-Jan-14,1900136901,2600.00,Alternative Futures Group,104468
WARRINGTON BOROUGH COUNCIL,http://opendatacommunities.org/id/unitary-authority/warrington ,FWB,Care Purchase - Learning Disability,54450,CP-Domicil.External,440950,24-Jan-14,1900137249,66905.00,Alternative Futures Group,104468
WARRINGTON BOROUGH COUNCIL,http://opendatacommunities.org/id/unitary-authority/warrington ,FWB,Care Purchase - Learning Disability,54450,Supporting People - External,441250,24-Jan-14,1900137249,7300.00,Alternative Futures Group,104468
WARRINGTON BOROUGH COUNCIL,http://opendatacommunities.org/id/unitary-authority/warrington ,FWB,Care Purchase Budget,54490,Voids,515150,24-Jan-14,1900137249,1427.00,Alternative Futures Group,104468
WARRINGTON BOROUGH COUNCIL,http://opendatacommunities.org/id/unitary-authority/warrington ,FWB,Care Purchase - Learning Disability,54450,CP-Domicil.External,440950,24-Jan-14,1900137250,66033.00,Alternative Futures Group,104468
WARRINGTON BOROUGH COUNCIL,http://opendatacommunities.org/id/unitary-authority/warrington ,FWB,Care Purchase - Learning Disability,54450,Supporting People - External,441250,24-Jan-14,1900137250,7200.00,Alternative Futures Group,104468
WARRINGTON BOROUGH COUNCIL,http://opendatacommunities.org/id/unitary-authority/warrington ,FWB,Care Purchase Budget,54490,Voids,515150,24-Jan-14,1900137250,2855.00,Alternative Futures Group,104468
WARRINGTON BOROUGH COUNCIL,http://opendatacommunities.org/id/unitary-authority/warrington ,FWB,Care Purchase Budget,54490,CP ExternalOther Exp,440800,07-Jan-14,1900135737,22000.00,Arlington House,104491
WARRINGTON BOROUGH COUNCIL,http://opendatacommunities.org/id/unitary-authority/warrington ,FWB,Care Purchase Budget,54490,CP ExternalOther Exp,440800,22-Jan-14,1900137052,4660.00,Arlington House,104491
WARRINGTON BOROUGH COUNCIL,http://opendatacommunities.org/id/unitary-authority/warrington ,FWB,Care Purchase - Learning Disability,54450,CP-LongStayExternal,441150,23-Jan-14,1900137188,4496.00,Autism Initiatives,104503
WARRINGTON BOROUGH COUNCIL,http://opendatacommunities.org/id/unitary-authority/warrington ,FWB,Care Purchase - Learning Disability,54450,CP-Domicil.External,440950,24-Jan-14,1900137261,6926.00,Autism Initiatives,104503
WARRINGTON BOROUGH COUNCIL,http://opendatacommunities.org/id/unitary-authority/warrington ,FWB,Care Purchase - Learning Disability,54450,CP-Day Care-External,441100,24-Jan-14,1900137262,1905.00,Autism Initiatives,104503
WARRINGTON BOROUGH COUNCIL,http://opendatacommunities.org/id/unitary-authority/warrington ,FWB,Care Purchase - Learning Disability,54450,CP-Domicil.External,440950,24-Jan-14,1900137265,5685.00,Autism Initiatives,104503
WARRINGTON BOROUGH COUNCIL,http://opendatacommunities.org/id/unitary-authority/warrington ,FWB,Care Purchase - Learning Disability,54450,CP-Domicil.External,440950,24-Jan-14,1900137266,4316.00,Autism Initiatives,104503
WARRINGTON BOROUGH COUNCIL,http://opendatacommunities.org/id/unitary-authority/warrington ,FWB,Care Purchase - Learning Disability,54450,CP-Domicil.External,440950,24-Jan-14,1900137267,6659.00,Autism Initiatives,104503
WARRINGTON BOROUGH COUNCIL,http://opendatacommunities.org/id/unitary-authority/warrington ,FWB,Care Purchase - Learning Disability,54450,CP-Day Care-External,441100,24-Jan-14,1900137268,1319.00,Autism Initiatives,104503
WARRINGTON BOROUGH COUNCIL,http://opendatacommunities.org/id/unitary-authority/warrington ,FWB,Care Purchase - Learning Disability,54450,CP-Day Care-External,441100,24-Jan-14,1900137269,2373.00,Autism Initiatives,104503
WARRINGTON BOROUGH COUNCIL,http://opendatacommunities.org/id/unitary-authority/warrington ,FWB,Care Purchase - Learning Disability,54450,CP-Day Care-External,441100,24-Jan-14,1900137270,1905.00,Autism Initiatives,104503
WARRINGTON BOROUGH COUNCIL,http://opendatacommunities.org/id/unitary-authority/warrington ,FWB,Care Purchase - OP & OT Central,54420,CP-LongStayExternal,441150,15-Jan-14,1900136594,1764.00,Bupa Care Homes - Broadoak Manor,104546
WARRINGTON BOROUGH COUNCIL,http://opendatacommunities.org/id/unitary-authority/warrington ,FWB,Care Purchase - OP & OT South,54480,CP-LongStayExternal,441150,02-Jan-14,1900135493,1882.00,Barchester Healthcare Brookfield,104548
WARRINGTON BOROUGH COUNCIL,http://opendatacommunities.org/id/unitary-authority/warrington ,FWB,Care Purchase - OP & OT South,54480,CP-LongStayExternal,441150,02-Jan-14,1900135496,1093.00,Barchester Healthcare Brookfield,104548
WARRINGTON BOROUGH COUNCIL,http://opendatacommunities.org/id/unitary-authority/warrington ,FWB,Care Purchase - OP & OT South,54480,CP-LongStayExternal,441150,02-Jan-14,1900135497,1700.00,Barchester Healthcare Brookfield,104548
WARRINGTON BOROUGH COUNCIL,http://opendatacommunities.org/id/unitary-authority/warrington ,FWB,Care Purchase - OP & OT Central,54420,CP-LongStayExternal,441150,02-Jan-14,1900135498,1032.00,Barchester Healthcare Brookfield,104548
WARRINGTON BOROUGH COUNCIL,http://opendatacommunities.org/id/unitary-authority/warrington ,FWB,Care Purchase - OP & OT South,54480,CP-LongStayExternal,441150,02-Jan-14,1900135499,1700.00,Barchester Healthcare Brookfield,104548
WARRINGTON BOROUGH COUNCIL,http://opendatacommunities.org/id/unitary-authority/warrington ,FWB,Care Purchase - OP & OT South,54480,CP-LongStayExternal,441150,02-Jan-14,1900135502,1700.00,Barchester Healthcare Brookfield,104548
WARRINGTON BOROUGH COUNCIL,http://opendatacommunities.org/id/unitary-authority/warrington ,FWB,Care Purchase - OP & OT South,54480,CP-LongStayExternal,441150,02-Jan-14,1900135511,1700.00,Barchester Healthcare Brookfield,104548
WARRINGTON BOROUGH COUNCIL,http://opendatacommunities.org/id/unitary-authority/warrington ,FWB,Care Purchase - OP & OT South,54480,CP-LongStayExternal,441150,02-Jan-14,1900135512,1700.00,Barchester Healthcare Brookfield,104548
WARRINGTON BOROUGH COUNCIL,http://opendatacommunities.org/id/unitary-authority/warrington ,FWB,Care Purchase - OP & OT South,54480,CP-LongStayExternal,441150,02-Jan-14,1900135513,1700.00,Barchester Healthcare Brookfield,104548
WARRINGTON BOROUGH COUNCIL,http://opendatacommunities.org/id/unitary-authority/warrington ,FWB,Care Purchase - OP & OT Central,54420,CP-LongStayExternal,441150,15-Jan-14,1900136610,1700.00,Barchester Healthcare Brookfield,104548
WARRINGTON BOROUGH COUNCIL,http://opendatacommunities.org/id/unitary-authority/warrington ,FWB,Care Purchase - OP & OT South,54480,CP-LongStayExternal,441150,15-Jan-14,1900136612,1700.00,Barchester Healthcare Brookfield,104548
WARRINGTON BOROUGH COUNCIL,http://opendatacommunities.org/id/unitary-authority/warrington ,FWB,Care Purchase - OP & OT South,54480,CP-LongStayExternal,441150,15-Jan-14,1900136613,1700.00,Barchester Healthcare Brookfield,104548
WARRINGTON BOROUGH COUNCIL,http://opendatacommunities.org/id/unitary-authority/warrington ,FWB,Care Purchase - OP & OT South,54480,CP-LongStayExternal,441150,15-Jan-14,1900136614,1700.00,Barchester Healthcare Brookfield,104548
WARRINGTON BOROUGH COUNCIL,http://opendatacommunities.org/id/unitary-authority/warrington ,FWB,Care Purchase - OP & OT South,54480,CP-LongStayExternal,441150,15-Jan-14,1900136615,1700.00,Barchester Healthcare Brookfield,104548
WARRINGTON BOROUGH COUNCIL,http://opendatacommunities.org/id/unitary-authority/warrington ,FWB,Care Purchase - OP & OT South,54480,CP-LongStayExternal,441150,15-Jan-14,1900136616,1700.00,Barchester Healthcare Brookfield,104548
WARRINGTON BOROUGH COUNCIL,http://opendatacommunities.org/id/unitary-authority/warrington ,FWB,Care Purchase - OP & OT South,54480,CP-LongStayExternal,441150,15-Jan-14,1900136617,1700.00,Barchester Healthcare Brookfield,104548
WARRINGTON BOROUGH COUNCIL,http://opendatacommunities.org/id/unitary-authority/warrington ,FWB,EIG Funding - Westy Childrens Centre,31541,Servicing Contracts,200150,27-Jan-14,1900137311,612.00,Cannon Hygiene Ltd,104565
WARRINGTON BOROUGH COUNCIL,http://opendatacommunities.org/id/unitary-authority/warrington ,FWB,Care Purchase - OP & OT Central,54420,CP-Nursing Care-External,441200,02-Jan-14,1900135515,1628.00,BUPA - Bedford Res,104569
WARRINGTON BOROUGH COUNCIL,http://opendatacommunities.org/id/unitary-authority/warrington ,FWB,Care Purchase -OP & OT East,54430,CP-Nursing Care-External,441200,02-Jan-14,1900135516,1679.00,BUPA - Bedford Res,104569
WARRINGTON BOROUGH COUNCIL,http://opendatacommunities.org/id/unitary-authority/warrington ,FWB,Care Purchase -OP & OT East,54430,CP-Nursing Care-External,441200,29-Jan-14,1900137413,1679.00,BUPA - Bedford Res,104569
WARRINGTON BOROUGH COUNCIL,http://opendatacommunities.org/id/unitary-authority/warrington ,FWB,Care Purchase - OP & OT Central,54420,CP-Nursing Care-External,441200,29-Jan-14,1900137414,1628.00,BUPA - Bedford Res,104569
WARRINGTON BOROUGH COUNCIL,http://opendatacommunities.org/id/unitary-authority/warrington ,FWB,Care Purchase Budget,54490,CP ExternalOther Exp,440800,08-Jan-14,1900135814,180000.00,Bupa Care Homes,104572
WARRINGTON BOROUGH COUNCIL,http://opendatacommunities.org/id/unitary-authority/warrington ,FWB,Care Purchase Budget,54490,CP ExternalOther Exp,440800,17-Jan-14,1900136865,13834.00,Bupa Care Homes,104572
WARRINGTON BOROUGH COUNCIL,http://opendatacommunities.org/id/unitary-authority/warrington ,FWB,Care Purchase Budget,54490,CP - Cont Care - External,441350,22-Jan-14,1900137067,3279.00,Bupa Care Homes,104572
WARRINGTON BOROUGH COUNCIL,http://opendatacommunities.org/id/unitary-authority/warrington ,FWB,Care Purchase -OP & OT East,54430,CP-Domicil.External,440950,15-Jan-14,1900136634,11933.00,Carewatch North Cheshire,104573
WARRINGTON BOROUGH COUNCIL,http://opendatacommunities.org/id/unitary-authority/warrington ,FWB,Care Purchase - Learning Disability,54450,CP-Domicil.External,440950,15-Jan-14,1900136634,5374.00,Carewatch North Cheshire,104573
WARRINGTON BOROUGH COUNCIL,http://opendatacommunities.org/id/unitary-authority/warrington ,FWB,Care Purchase - PD,54440,CP-Domicil.External,440950,15-Jan-14,1900136634,2285.00,Carewatch North Cheshire,104573
WARRINGTON BOROUGH COUNCIL,http://opendatacommunities.org/id/unitary-authority/warrington ,FWB,Care Purchase - Learning Disability,54450,Supporting People - External,441250,15-Jan-14,1900136634,533.00,Carewatch North Cheshire,104573
WARRINGTON BOROUGH COUNCIL,http://opendatacommunities.org/id/unitary-authority/warrington ,RSC,Legal Services,11200,Training,190150,20-Jan-14,1900136916,650.00,Central Law Training Ltd,104585
WARRINGTON BOROUGH COUNCIL,http://opendatacommunities.org/id/unitary-authority/warrington ,FWB,Care Purchase Budget,54490,CP ExternalOther Exp,440800,02-Jan-14,1900135526,7644.00,Cls Care Services Ltd,104615
WARRINGTON BOROUGH COUNCIL,http://opendatacommunities.org/id/unitary-authority/warrington ,FWB,Care Purchase Budget,54490,CP ExternalOther Exp,440800,08-Jan-14,1900135817,70000.00,Cls Care Services Ltd,104615
WARRINGTON BOROUGH COUNCIL,http://opendatacommunities.org/id/unitary-authority/warrington ,FWB,Care Purchase - OP & OT South,54480,CP-LongStayExternal,441150,02-Jan-14,1900135529,4248.00,Cotebrook,104638
WARRINGTON BOROUGH COUNCIL,http://opendatacommunities.org/id/unitary-authority/warrington ,FWB,Care Purchase - ABI,54260,CP-LongStayExternal,441150,02-Jan-14,1900135529,2924.00,Cotebrook,104638
WARRINGTON BOROUGH COUNCIL,http://opendatacommunities.org/id/unitary-authority/warrington ,FWB,Care Purchase - Learning Disability,54450,CP-LongStayExternal,441150,02-Jan-14,1900135529,2503.00,Cotebrook,104638
WARRINGTON BOROUGH COUNCIL,http://opendatacommunities.org/id/unitary-authority/warrington ,FWB,Care Purchase - PD,54440,CP-LongStayExternal,441150,02-Jan-14,1900135529,14034.00,Cotebrook,104638
WARRINGTON BOROUGH COUNCIL,http://opendatacommunities.org/id/unitary-authority/warrington ,FWB,Care Purchase - OP & OT South,54480,CP-LongStayExternal,441150,15-Jan-14,1900136635,8496.00,Cotebrook,104638
WARRINGTON BOROUGH COUNCIL,http://opendatacommunities.org/id/unitary-authority/warrington ,FWB,Care Purchase - PD,54440,CP-Day Care-External,441100,15-Jan-14,1900136636,788.00,Cotebrook,104638
WARRINGTON BOROUGH COUNCIL,http://opendatacommunities.org/id/unitary-authority/warrington ,FWB,Care Purchase - OP & OT South,54480,CP-LongStayExternal,441150,16-Jan-14,1900136660,4248.00,Cotebrook,104638
WARRINGTON BOROUGH COUNCIL,http://opendatacommunities.org/id/unitary-authority/warrington ,FWB,Care Purchase - ABI,54260,CP-LongStayExternal,441150,16-Jan-14,1900136660,2924.00,Cotebrook,104638
WARRINGTON BOROUGH COUNCIL,http://opendatacommunities.org/id/unitary-authority/warrington ,FWB,Care Purchase - Learning Disability,54450,CP-LongStayExternal,441150,16-Jan-14,1900136660,2124.00,Cotebrook,104638
WARRINGTON BOROUGH COUNCIL,http://opendatacommunities.org/id/unitary-authority/warrington ,FWB,Care Purchase - PD,54440,CP-LongStayExternal,441150,16-Jan-14,1900136660,10620.00,Cotebrook,104638
WARRINGTON BOROUGH COUNCIL,http://opendatacommunities.org/id/unitary-authority/warrington ,FWB,Care Purchase Budget,54490,CP-LongStayExternal,441150,22-Jan-14,1900137060,13269.00,Cotebrook,104638
WARRINGTON BOROUGH COUNCIL,http://opendatacommunities.org/id/unitary-authority/warrington ,FWB,Care Purchase - Learning Disability,54450,CP-LongStayExternal,441150,29-Jan-14,1900137423,3186.00,Cotebrook,104638
WARRINGTON BOROUGH COUNCIL,http://opendatacommunities.org/id/unitary-authority/warrington ,FWB,Care Purchase - PD,54440,CP-LongStayExternal,441150,29-Jan-14,1900137423,4476.00,Cotebrook,104638
WARRINGTON BOROUGH COUNCIL,http://opendatacommunities.org/id/unitary-authority/warrington ,FWB,Care Purchase - Learning Disability,54450,CP-Day Care-External,441100,07-Jan-14,1900135738,2217.00,Deafness Support Network,104657
WARRINGTON BOROUGH COUNCIL,http://opendatacommunities.org/id/unitary-authority/warrington ,FWB,Care Purchase - Learning Disability,54450,CP-Day Care-External,441100,29-Jan-14,1900137458,2217.00,Deafness Support Network,104657
WARRINGTON BOROUGH COUNCIL,http://opendatacommunities.org/id/unitary-authority/warrington ,FWB,Care Purchase - PD,54440,CP ExternalOther Exp,440800,13-Jan-14,1900136457,3952.00,Edge Hill University,104687
WARRINGTON BOROUGH COUNCIL,http://opendatacommunities.org/id/unitary-authority/warrington ,EG0,Local Bus Contracts,44430,Payments To Operator,530150,03-Jan-14,1900135595,3282.00,Fairbrothers Limited,104709
WARRINGTON BOROUGH COUNCIL,http://opendatacommunities.org/id/unitary-authority/warrington ,HOL,Insurance Fund,91100,Insurance Claims,443400,16-Jan-14,1900136815,4987.00,Gallagher Bassett International Ltd,104739
WARRINGTON BOROUGH COUNCIL,http://opendatacommunities.org/id/unitary-authority/warrington ,ENO,Housing Projects,82008,Payment of Grants,470050,29-Jan-14,1900137511,527.00,Gt Builders,104761
WARRINGTON BOROUGH COUNCIL,http://opendatacommunities.org/id/unitary-authority/warrington ,FWB,Care Purchase Budget,54490,CP ExternalOther Exp,440800,08-Jan-14,1900135823,150000.00,Ashberry Healthcare Ltd,104776
WARRINGTON BOROUGH COUNCIL,http://opendatacommunities.org/id/unitary-authority/warrington ,FWB,Care Purchase Budget,54490,CP ExternalOther Exp,440800,08-Jan-14,1900135824,50000.00,Heathside Elderly Persons Home,104777
WARRINGTON BOROUGH COUNCIL,http://opendatacommunities.org/id/unitary-authority/warrington ,FWB,Care Purchase Budget,54490,CP ExternalOther Exp,440800,17-Jan-14,1900136859,5259.00,Heathside Elderly Persons Home,104777
WARRINGTON BOROUGH COUNCIL,http://opendatacommunities.org/id/unitary-authority/warrington ,FWB,Care Purchase - ABI,54260,CP-LongStayExternal,441150,23-Jan-14,1900137195,1564.00,Hilton Residential Homes Ltd,104783
WARRINGTON BOROUGH COUNCIL,http://opendatacommunities.org/id/unitary-authority/warrington ,FWB,Care Purchase Budget,54490,CP ExternalOther Exp,440800,02-Jan-14,1900135538,6782.00,Keate House Residential Home,104849
WARRINGTON BOROUGH COUNCIL,http://opendatacommunities.org/id/unitary-authority/warrington ,FWB,Care Purchase Budget,54490,CP ExternalOther Exp,440800,07-Jan-14,1900135730,35000.00,Keate House Residential Home,104849
WARRINGTON BOROUGH COUNCIL,http://opendatacommunities.org/id/unitary-authority/warrington ,FWB,Care Purchase Budget,54490,CP ExternalOther Exp,440800,22-Jan-14,1900137041,4384.00,Keate House Residential Home,104849
WARRINGTON BOROUGH COUNCIL,http://opendatacommunities.org/id/unitary-authority/warrington ,RSC,Coroners Service,11100,Post Mortem Fees-Rep,440250,23-Jan-14,1900137097,970.00,Dr W E Kenyon,104851
WARRINGTON BOROUGH COUNCIL,http://opendatacommunities.org/id/unitary-authority/warrington ,FWB,Care Purchase - Learning Disability,54450,CP-LongStayExternal,441150,15-Jan-14,1900136625,9448.00,The David Lewis Centre,104879
WARRINGTON BOROUGH COUNCIL,http://opendatacommunities.org/id/unitary-authority/warrington ,FWB,Care Purchase - Learning Disability,54450,CP-Nursing Care-External,441200,15-Jan-14,1900136626,10016.00,The David Lewis Centre,104879
WARRINGTON BOROUGH COUNCIL,http://opendatacommunities.org/id/unitary-authority/warrington ,FWB,Care Purchase Budget,54490,CP - Cont Care - External,441350,15-Jan-14,1900136627,13864.00,The David Lewis Centre,104879
WARRINGTON BOROUGH COUNCIL,http://opendatacommunities.org/id/unitary-authority/warrington ,FWB,Care Purchase - PD,54440,CP-LongStayExternal,441150,17-Jan-14,1900136875,6895.00,The David Lewis Centre,104879
WARRINGTON BOROUGH COUNCIL,http://opendatacommunities.org/id/unitary-authority/warrington ,FWB,Care Purchase - Learning Disability,54450,CP-Day Care-External,441100,02-Jan-14,1900135480,3375.00,Macintyre Care,104907
WARRINGTON BOROUGH COUNCIL,http://opendatacommunities.org/id/unitary-authority/warrington ,FWB,Care Purchase - Learning Disability,54450,CP-Day Care-External,441100,02-Jan-14,1900135481,910.00,Macintyre Care,104907
WARRINGTON BOROUGH COUNCIL,http://opendatacommunities.org/id/unitary-authority/warrington ,FWB,Care Purchase - Learning Disability,54450,CP-Day Care-External,441100,02-Jan-14,1900135483,910.00,Macintyre Care,104907
WARRINGTON BOROUGH COUNCIL,http://opendatacommunities.org/id/unitary-authority/warrington ,FWB,Care Purchase - Learning Disability,54450,CP-Day Care-External,441100,02-Jan-14,1900135484,910.00,Macintyre Care,104907
WARRINGTON BOROUGH COUNCIL,http://opendatacommunities.org/id/unitary-authority/warrington ,FWB,Care Purchase - Learning Disability,54450,CP-Day Care-External,441100,02-Jan-14,1900135485,546.00,Macintyre Care,104907
WARRINGTON BOROUGH COUNCIL,http://opendatacommunities.org/id/unitary-authority/warrington ,FWB,Care Purchase - Learning Disability,54450,CP-Day Care-External,441100,02-Jan-14,1900135486,546.00,Macintyre Care,104907
WARRINGTON BOROUGH COUNCIL,http://opendatacommunities.org/id/unitary-authority/warrington ,FWB,Care Purchase - Learning Disability,54450,CP-Domicil.External,440950,07-Jan-14,1900135757,5228.00,Macintyre Care,104907
WARRINGTON BOROUGH COUNCIL,http://opendatacommunities.org/id/unitary-authority/warrington ,FWB,Care Purchase - Learning Disability,54450,CP-Domicil.External,440950,07-Jan-14,1900135758,18662.00,Macintyre Care,104907
WARRINGTON BOROUGH COUNCIL,http://opendatacommunities.org/id/unitary-authority/warrington ,FWB,Care Purchase - Learning Disability,54450,CP-LongStayExternal,441150,15-Jan-14,1900136589,5076.00,Macintyre Care,104907
WARRINGTON BOROUGH COUNCIL,http://opendatacommunities.org/id/unitary-authority/warrington ,FWB,Care Purchase - Learning Disability,54450,CP-Day Care-External,441100,15-Jan-14,1900136591,16423.00,Macintyre Care,104907
WARRINGTON BOROUGH COUNCIL,http://opendatacommunities.org/id/unitary-authority/warrington ,FWB,Care Purchase - Learning Disability,54450,CP-Domicil.External,440950,23-Jan-14,1900137187,18534.00,Macintyre Care,104907
WARRINGTON BOROUGH COUNCIL,http://opendatacommunities.org/id/unitary-authority/warrington ,FWB,Care Purchase - Learning Disability,54450,CP-Domicil.External,440950,23-Jan-14,1900137192,5113.00,Macintyre Care,104907
WARRINGTON BOROUGH COUNCIL,http://opendatacommunities.org/id/unitary-authority/warrington ,FWB,Care Purchase - Learning Disability,54450,CP-Domicil.External,440950,28-Jan-14,1900137351,104724.00,Macintyre Care,104907
WARRINGTON BOROUGH COUNCIL,http://opendatacommunities.org/id/unitary-authority/warrington ,FWB,Care Purchase - Learning Disability,54450,Supporting People - External,441250,28-Jan-14,1900137351,25730.00,Macintyre Care,104907
WARRINGTON BOROUGH COUNCIL,http://opendatacommunities.org/id/unitary-authority/warrington ,FWB,Care Purchase - Learning Disability,54450,CP-Domicil.External,440950,28-Jan-14,1900137401,105719.00,Macintyre Care,104907
WARRINGTON BOROUGH COUNCIL,http://opendatacommunities.org/id/unitary-authority/warrington ,FWB,Care Purchase - Learning Disability,54450,Supporting People - External,441250,28-Jan-14,1900137401,25806.00,Macintyre Care,104907
WARRINGTON BOROUGH COUNCIL,http://opendatacommunities.org/id/unitary-authority/warrington ,FWB,Care Purchase - Learning Disability,54450,CP Adult Placement,443450,29-Jan-14,1900137410,1044.00,Macintyre Care,104907
WARRINGTON BOROUGH COUNCIL,http://opendatacommunities.org/id/unitary-authority/warrington ,FWB,Care Purchase - Learning Disability,54450,CP Adult Placement,443450,29-Jan-14,1900137411,578.00,Macintyre Care,104907
WARRINGTON BOROUGH COUNCIL,http://opendatacommunities.org/id/unitary-authority/warrington ,FWB,Care Purchase - Learning Disability,54450,CP Adult Placement,443450,29-Jan-14,1900137466,2593.00,Macintyre Care,104907
WARRINGTON BOROUGH COUNCIL,http://opendatacommunities.org/id/unitary-authority/warrington ,FWB,Care Purchase - Learning Disability,54450,CP Adult Placement,443450,29-Jan-14,1900137467,2281.00,Macintyre Care,104907
WARRINGTON BOROUGH COUNCIL,http://opendatacommunities.org/id/unitary-authority/warrington ,FWB,Care Purchase - Learning Disability,54450,CP Adult Placement,443450,29-Jan-14,1900137468,578.00,Macintyre Care,104907
WARRINGTON BOROUGH COUNCIL,http://opendatacommunities.org/id/unitary-authority/warrington ,FWB,Care Purchase - Learning Disability,54450,CP Adult Placement,443450,29-Jan-14,1900137474,2239.00,Macintyre Care,104907
WARRINGTON BOROUGH COUNCIL,http://opendatacommunities.org/id/unitary-authority/warrington ,FWB,Care Purchase - Learning Disability,54450,CP Adult Placement,443450,29-Jan-14,1900137476,2239.00,Macintyre Care,104907
WARRINGTON BOROUGH COUNCIL,http://opendatacommunities.org/id/unitary-authority/warrington ,FWB,Care Purchase - Learning Disability,54450,CP Adult Placement,443450,29-Jan-14,1900137477,2322.00,Macintyre Care,104907
WARRINGTON BOROUGH COUNCIL,http://opendatacommunities.org/id/unitary-authority/warrington ,FWB,Care Purchase - Learning Disability,54450,CP Adult Placement,443450,29-Jan-14,1900137478,2829.00,Macintyre Care,104907
WARRINGTON BOROUGH COUNCIL,http://opendatacommunities.org/id/unitary-authority/warrington ,FWB,Care Purchase - Learning Disability,54450,CP Adult Placement,443450,29-Jan-14,1900137479,2706.00,Macintyre Care,104907
WARRINGTON BOROUGH COUNCIL,http://opendatacommunities.org/id/unitary-authority/warrington ,EG1,Building Cleaning Revenue,41112,Cleaning Materials,400450,20-Jan-14,1900136899,2800.00,Management Computer Systems Ltd,104915
WARRINGTON BOROUGH COUNCIL,http://opendatacommunities.org/id/unitary-authority/warrington ,FWB,Care Purchase - OP & OT West,54470,CP-Domicil.External,440950,17-Jan-14,1900136872,2915.00,Mayfield Home Care Agency,104928
WARRINGTON BOROUGH COUNCIL,http://opendatacommunities.org/id/unitary-authority/warrington ,FWB,Care Purchase - OP & OT South,54480,CP-Domicil.External,440950,17-Jan-14,1900136872,1208.00,Mayfield Home Care Agency,104928
WARRINGTON BOROUGH COUNCIL,http://opendatacommunities.org/id/unitary-authority/warrington ,FWB,Care Purchase - OP & OT Central,54420,CP-Domicil.External,440950,17-Jan-14,1900136872,896.00,Mayfield Home Care Agency,104928
WARRINGTON BOROUGH COUNCIL,http://opendatacommunities.org/id/unitary-authority/warrington ,FWB,Care Purchase AMH,54135,CP-Domicil.External,440950,17-Jan-14,1900136872,1290.00,Mayfield Home Care Agency,104928
WARRINGTON BOROUGH COUNCIL,http://opendatacommunities.org/id/unitary-authority/warrington ,FWB,Care Purchase - Learning Disability,54450,CP-Domicil.External,440950,17-Jan-14,1900136872,2485.00,Mayfield Home Care Agency,104928
WARRINGTON BOROUGH COUNCIL,http://opendatacommunities.org/id/unitary-authority/warrington ,FWB,Care Purchase Budget,54490,CP - Cont Care - External,441350,17-Jan-14,1900136872,12689.00,Mayfield Home Care Agency,104928
WARRINGTON BOROUGH COUNCIL,http://opendatacommunities.org/id/unitary-authority/warrington ,EG0,Markets,43711,Resaleables,400600,02-Jan-14,1900135554,2982.00,National Express Ltd,104957
WARRINGTON BOROUGH COUNCIL,http://opendatacommunities.org/id/unitary-authority/warrington ,RSC,Coroners Service,11100,Post Mortem Fees-Rep,440250,09-Jan-14,1900135867,2458.00,Dr A Nicol,104970
WARRINGTON BOROUGH COUNCIL,http://opendatacommunities.org/id/unitary-authority/warrington ,RSC,Coroners Service,11100,Post Mortem Fees-Rep,440250,29-Jan-14,1900137491,1038.00,Dr A Nicol,104970
WARRINGTON BOROUGH COUNCIL,http://opendatacommunities.org/id/unitary-authority/warrington ,FWB,Care Purchase -OP & OT East,54430,CP-Domicil.External,440950,20-Jan-14,1900136902,14417.00,Nightingales Homecare Services Agen,104972
WARRINGTON BOROUGH COUNCIL,http://opendatacommunities.org/id/unitary-authority/warrington ,FWB,Care Purchase - OP & OT South,54480,CP-Domicil.External,440950,20-Jan-14,1900136902,11969.00,Nightingales Homecare Services Agen,104972
WARRINGTON BOROUGH COUNCIL,http://opendatacommunities.org/id/unitary-authority/warrington ,FWB,Care Purchase - OP & OT Central,54420,CP-Domicil.External,440950,20-Jan-14,1900136902,9261.00,Nightingales Homecare Services Agen,104972
WARRINGTON BOROUGH COUNCIL,http://opendatacommunities.org/id/unitary-authority/warrington ,FWB,Care Purchase - OP & OT West,54470,CP-Domicil.External,440950,20-Jan-14,1900136902,7501.00,Nightingales Homecare Services Agen,104972
WARRINGTON BOROUGH COUNCIL,http://opendatacommunities.org/id/unitary-authority/warrington ,FWB,Care Purchase - PD,54440,CP-Domicil.External,440950,20-Jan-14,1900136902,8728.00,Nightingales Homecare Services Agen,104972
WARRINGTON BOROUGH COUNCIL,http://opendatacommunities.org/id/unitary-authority/warrington ,FWB,Care Purchase - PD,54440,Supporting People - External,441250,20-Jan-14,1900136902,907.00,Nightingales Homecare Services Agen,104972
WARRINGTON BOROUGH COUNCIL,http://opendatacommunities.org/id/unitary-authority/warrington ,FWB,CYPS - Rents & Charges,32422,Water & Sewerage Chg,240000,09-Jan-14,1900136341,1968.00,United Utilities Water Limited,104982
WARRINGTON BOROUGH COUNCIL,http://opendatacommunities.org/id/unitary-authority/warrington ,HOL,Single Billing Holding Account,91130,Water & Sewerage Chg,240000,09-Jan-14,1900136348,14261.00,United Utilities Water Limited,104982
WARRINGTON BOROUGH COUNCIL,http://opendatacommunities.org/id/unitary-authority/warrington ,FWB,CYPS - Rents & Charges,32422,Water & Sewerage Chg,240000,10-Jan-14,1900136371,9350.00,United Utilities Water Limited,104982
WARRINGTON BOROUGH COUNCIL,http://opendatacommunities.org/id/unitary-authority/warrington ,FWB,CYPS - Rents & Charges,32422,Water Meter Charges,240050,21-Jan-14,1900136995,7560.00,United Utilities Water Limited,104982
WARRINGTON BOROUGH COUNCIL,http://opendatacommunities.org/id/unitary-authority/warrington ,FWB,Equipment Store,54930,Water The Wharf,240100,27-Jan-14,1900137309,625.00,United Utilities Water Limited,104982
WARRINGTON BOROUGH COUNCIL,http://opendatacommunities.org/id/unitary-authority/warrington ,FWB,Care Purchase Budget,54490,CP ExternalOther Exp,440800,07-Jan-14,1900135739,20000.00,Old Rectory Private Nursing Home,104990
WARRINGTON BOROUGH COUNCIL,http://opendatacommunities.org/id/unitary-authority/warrington ,FWB,Care Purchase Budget,54490,CP ExternalOther Exp,440800,10-Jan-14,1900136376,4623.00,Old Rectory Private Nursing Home,104990
WARRINGTON BOROUGH COUNCIL,http://opendatacommunities.org/id/unitary-authority/warrington ,FWB,Care Purchase - Learning Disability,54450,CP-Domicil.External,440950,02-Jan-14,1900135547,2814.00,The Ormerod Home Trust Ltd,104998
WARRINGTON BOROUGH COUNCIL,http://opendatacommunities.org/id/unitary-authority/warrington ,FWB,Care Purchase - Learning Disability,54450,CP-Domicil.External,440950,02-Jan-14,1900135548,2814.00,The Ormerod Home Trust Ltd,104998
WARRINGTON BOROUGH COUNCIL,http://opendatacommunities.org/id/unitary-authority/warrington ,FWB,Care Purchase - Learning Disability,54450,CP-Domicil.External,440950,02-Jan-14,1900135551,2814.00,The Ormerod Home Trust Ltd,104998
WARRINGTON BOROUGH COUNCIL,http://opendatacommunities.org/id/unitary-authority/warrington ,FWB,Care Purchase - Learning Disability,54450,CP-Domicil.External,440950,29-Jan-14,1900137425,2814.00,The Ormerod Home Trust Ltd,104998
WARRINGTON BOROUGH COUNCIL,http://opendatacommunities.org/id/unitary-authority/warrington ,EG0,Core Operational Business,41730,Materials,400500,29-Jan-14,1900137415,858.00,Parker Merchanting Ltd,105007
WARRINGTON BOROUGH COUNCIL,http://opendatacommunities.org/id/unitary-authority/warrington ,FWB,Care Purchase - Learning Disability,54450,CP-Domicil.External,440950,07-Jan-14,1900135745,650.00,P S S,105048
WARRINGTON BOROUGH COUNCIL,http://opendatacommunities.org/id/unitary-authority/warrington ,FWB,Care Purchase - Learning Disability,54450,CP-Domicil.External,440950,16-Jan-14,1900136685,650.00,P S S,105048
WARRINGTON BOROUGH COUNCIL,http://opendatacommunities.org/id/unitary-authority/warrington ,FWB,Care Purchase - OP & OT Central,54420,CP-Domicil.External,440950,09-Jan-14,1900135880,6936.00,Medico Nursing and Homecare,105063
WARRINGTON BOROUGH COUNCIL,http://opendatacommunities.org/id/unitary-authority/warrington ,FWB,Care Purchase - OP & OT South,54480,CP-Domicil.External,440950,09-Jan-14,1900135880,3785.00,Medico Nursing and Homecare,105063
WARRINGTON BOROUGH COUNCIL,http://opendatacommunities.org/id/unitary-authority/warrington ,FWB,Care Purchase -OP & OT East,54430,CP-Domicil.External,440950,09-Jan-14,1900135880,2446.00,Medico Nursing and Homecare,105063
WARRINGTON BOROUGH COUNCIL,http://opendatacommunities.org/id/unitary-authority/warrington ,FWB,Care Purchase - OP & OT West,54470,CP-Domicil.External,440950,09-Jan-14,1900135880,1751.00,Medico Nursing and Homecare,105063
WARRINGTON BOROUGH COUNCIL,http://opendatacommunities.org/id/unitary-authority/warrington ,FWB,Care Purchase AMH,54135,CP-Domicil.External,440950,09-Jan-14,1900135880,1531.00,Medico Nursing and Homecare,105063
WARRINGTON BOROUGH COUNCIL,http://opendatacommunities.org/id/unitary-authority/warrington ,FWB,Care Purchase - PD,54440,CP-Domicil.External,440950,09-Jan-14,1900135880,4374.00,Medico Nursing and Homecare,105063
WARRINGTON BOROUGH COUNCIL,http://opendatacommunities.org/id/unitary-authority/warrington ,FWB,Care Purchase - OP & OT Central,54420,CP-Domicil.External,440950,27-Jan-14,1900137292,6608.00,Medico Nursing and Homecare,105063
WARRINGTON BOROUGH COUNCIL,http://opendatacommunities.org/id/unitary-authority/warrington ,FWB,Care Purchase - OP & OT South,54480,CP-Domicil.External,440950,27-Jan-14,1900137292,3446.00,Medico Nursing and Homecare,105063
WARRINGTON BOROUGH COUNCIL,http://opendatacommunities.org/id/unitary-authority/warrington ,FWB,Care Purchase - OP & OT West,54470,CP-Domicil.External,440950,27-Jan-14,1900137292,1731.00,Medico Nursing and Homecare,105063
WARRINGTON BOROUGH COUNCIL,http://opendatacommunities.org/id/unitary-authority/warrington ,FWB,Care Purchase -OP & OT East,54430,CP-Domicil.External,440950,27-Jan-14,1900137292,1710.00,Medico Nursing and Homecare,105063
WARRINGTON BOROUGH COUNCIL,http://opendatacommunities.org/id/unitary-authority/warrington ,FWB,Care Purchase AMH,54135,CP-Domicil.External,440950,27-Jan-14,1900137292,1316.00,Medico Nursing and Homecare,105063
WARRINGTON BOROUGH COUNCIL,http://opendatacommunities.org/id/unitary-authority/warrington ,FWB,Care Purchase - PD,54440,CP-Domicil.External,440950,27-Jan-14,1900137292,3616.00,Medico Nursing and Homecare,105063
WARRINGTON BOROUGH COUNCIL,http://opendatacommunities.org/id/unitary-authority/warrington ,FWB,Care Purchase - OP & OT Central,54420,CP-Domicil.External,440950,23-Jan-14,1900137090,3626.00,Florence Roby Limited,105079
WARRINGTON BOROUGH COUNCIL,http://opendatacommunities.org/id/unitary-authority/warrington ,FWB,Care Purchase - OP & OT South,54480,CP-Domicil.External,440950,23-Jan-14,1900137090,1619.00,Florence Roby Limited,105079
WARRINGTON BOROUGH COUNCIL,http://opendatacommunities.org/id/unitary-authority/warrington ,FWB,Care Purchase -OP & OT East,54430,CP-Domicil.External,440950,23-Jan-14,1900137090,828.00,Florence Roby Limited,105079
WARRINGTON BOROUGH COUNCIL,http://opendatacommunities.org/id/unitary-authority/warrington ,FWB,Care Purchase - PD,54440,CP-Domicil.External,440950,23-Jan-14,1900137090,1600.00,Florence Roby Limited,105079
WARRINGTON BOROUGH COUNCIL,http://opendatacommunities.org/id/unitary-authority/warrington ,FWB,Care Purchase Budget,54490,CP ExternalOther Exp,440800,07-Jan-14,1900135734,18000.00,Rosevilla Residential Home,105084
WARRINGTON BOROUGH COUNCIL,http://opendatacommunities.org/id/unitary-authority/warrington ,FWB,Care Purchase - Learning Disability,54450,CP-LongStayExternal,441150,08-Jan-14,1900135842,18603.00,St Helens Mbc,105097
WARRINGTON BOROUGH COUNCIL,http://opendatacommunities.org/id/unitary-authority/warrington ,FWB,Care Purchase - PD,54440,CP-LongStayExternal,441150,15-Jan-14,1900136590,4584.00,Scope,105109
WARRINGTON BOROUGH COUNCIL,http://opendatacommunities.org/id/unitary-authority/warrington ,RSC,Coroners Service,11100,Post Mortem Fees-Rep,440250,09-Jan-14,1900135864,1154.00,Dr D S Shareef,105121
WARRINGTON BOROUGH COUNCIL,http://opendatacommunities.org/id/unitary-authority/warrington ,FWB,Care Purchase - OP & OT West,54470,CP-Domicil.External,440950,24-Jan-14,1900137251,19719.00,Premier Care Cheshire Ltd,105142
WARRINGTON BOROUGH COUNCIL,http://opendatacommunities.org/id/unitary-authority/warrington ,FWB,Care Purchase - OP & OT Central,54420,CP-Domicil.External,440950,24-Jan-14,1900137251,14939.00,Premier Care Cheshire Ltd,105142
WARRINGTON BOROUGH COUNCIL,http://opendatacommunities.org/id/unitary-authority/warrington ,FWB,Care Purchase -OP & OT East,54430,CP-Domicil.External,440950,24-Jan-14,1900137251,13802.00,Premier Care Cheshire Ltd,105142
WARRINGTON BOROUGH COUNCIL,http://opendatacommunities.org/id/unitary-authority/warrington ,FWB,Care Purchase - OP & OT South,54480,CP-Domicil.External,440950,24-Jan-14,1900137251,8671.00,Premier Care Cheshire Ltd,105142
WARRINGTON BOROUGH COUNCIL,http://opendatacommunities.org/id/unitary-authority/warrington ,FWB,Care Purchase AMH,54135,CP-Domicil.External,440950,24-Jan-14,1900137251,2920.00,Premier Care Cheshire Ltd,105142
WARRINGTON BOROUGH COUNCIL,http://opendatacommunities.org/id/unitary-authority/warrington ,FWB,Care Purchase - Learning Disability,54450,CP-Domicil.External,440950,24-Jan-14,1900137251,2526.00,Premier Care Cheshire Ltd,105142
WARRINGTON BOROUGH COUNCIL,http://opendatacommunities.org/id/unitary-authority/warrington ,FWB,Care Purchase - PD,54440,CP-Domicil.External,440950,24-Jan-14,1900137251,9536.00,Premier Care Cheshire Ltd,105142
WARRINGTON BOROUGH COUNCIL,http://opendatacommunities.org/id/unitary-authority/warrington ,FWB,Care Purchase Budget,54490,CP - Cont Care - External,441350,24-Jan-14,1900137251,538.00,Premier Care Cheshire Ltd,105142
WARRINGTON BOROUGH COUNCIL,http://opendatacommunities.org/id/unitary-authority/warrington ,FWB,Care Purchase Budget,54490,CP ExternalOther Exp,440800,08-Jan-14,1900135826,53000.00,Summerville Nursing Home -Private C,105162
WARRINGTON BOROUGH COUNCIL,http://opendatacommunities.org/id/unitary-authority/warrington ,FWB,Care Purchase Budget,54490,CP ExternalOther Exp,440800,10-Jan-14,1900136377,6882.00,Summerville Nursing Home -Private C,105162
WARRINGTON BOROUGH COUNCIL,http://opendatacommunities.org/id/unitary-authority/warrington ,FWB,Care Purchase Budget,54490,CP Free Nursing Care External,443500,22-Jan-14,1900137050,2807.00,Summerville Nursing Home -Private C,105162
WARRINGTON BOROUGH COUNCIL,http://opendatacommunities.org/id/unitary-authority/warrington ,FWB,Care Purchase Budget,54490,Out of Hours Kennel Fees,440600,22-Jan-14,1900137061,5252.00,Summerville Nursing Home -Private C,105162
WARRINGTON BOROUGH COUNCIL,http://opendatacommunities.org/id/unitary-authority/warrington ,FWB,Care Purchase Budget,54490,CP ExternalOther Exp,440800,07-Jan-14,1900135735,23000.00,Thelwall Grange Nursing Home,105174
WARRINGTON BOROUGH COUNCIL,http://opendatacommunities.org/id/unitary-authority/warrington ,FWB,Care Purchase Budget,54490,CP ExternalOther Exp,440800,10-Jan-14,1900136378,9622.00,Thelwall Grange Nursing Home,105174
WARRINGTON BOROUGH COUNCIL,http://opendatacommunities.org/id/unitary-authority/warrington ,FWB,Care Purchase Budget,54490,CP ExternalOther Exp,440800,08-Jan-14,1900135829,52000.00,Minster Care Management Ltd,105179
WARRINGTON BOROUGH COUNCIL,http://opendatacommunities.org/id/unitary-authority/warrington ,FWB,CYPS - Rents & Charges,32422,Consult.& Prof. Serv,440000,07-Jan-14,1900135785,6022.00,Uniqwin UK,105210
WARRINGTON BOROUGH COUNCIL,http://opendatacommunities.org/id/unitary-authority/warrington ,RSC,ICT Networks,23400,ICT Comms - Line Rental,450200,29-Jan-14,1900137459,1200.00,Vodafone Corporate Ltd,105222
WARRINGTON BOROUGH COUNCIL,http://opendatacommunities.org/id/unitary-authority/warrington ,FWB,Care Purchase Budget,54490,CP ExternalOther Exp,440800,08-Jan-14,1900135830,75000.00,Warrington Community Care,105229
WARRINGTON BOROUGH COUNCIL,http://opendatacommunities.org/id/unitary-authority/warrington ,FWB,Care Purchase Budget,54490,CP ExternalOther Exp,440800,29-Jan-14,1900137462,2325.00,Warrington Community Care,105229
WARRINGTON BOROUGH COUNCIL,http://opendatacommunities.org/id/unitary-authority/warrington ,FWB,Care Purchase -OP & OT East,54430,CP-LongStayExternal,441150,02-Jan-14,1900135561,5089.00,WCL - Warrington Community Living,105230
WARRINGTON BOROUGH COUNCIL,http://opendatacommunities.org/id/unitary-authority/warrington ,FWB,Care Purchase - Learning Disability,54450,CP-LongStayExternal,441150,02-Jan-14,1900135561,28701.00,WCL - Warrington Community Living,105230
WARRINGTON BOROUGH COUNCIL,http://opendatacommunities.org/id/unitary-authority/warrington ,FWB,Care Purchase Budget,54490,Voids,515150,02-Jan-14,1900135561,2915.00,WCL - Warrington Community Living,105230
WARRINGTON BOROUGH COUNCIL,http://opendatacommunities.org/id/unitary-authority/warrington ,FWB,Care Purchase - OP & OT West,54470,CP-Nursing Care-External,441200,09-Jan-14,1900135875,1940.00,Barchester Homes Westvale House,105246
WARRINGTON BOROUGH COUNCIL,http://opendatacommunities.org/id/unitary-authority/warrington ,FWB,Care Purchase - OP & OT West,54470,CP-Nursing Care-External,441200,09-Jan-14,1900136345,36838.00,Barchester Homes Westvale House,105246
WARRINGTON BOROUGH COUNCIL,http://opendatacommunities.org/id/unitary-authority/warrington ,FWB,Care Purchase - OP & OT Central,54420,CP-Nursing Care-External,441200,09-Jan-14,1900136345,2474.00,Barchester Homes Westvale House,105246
WARRINGTON BOROUGH COUNCIL,http://opendatacommunities.org/id/unitary-authority/warrington ,FWB,Care Purchase - OP & OT South,54480,CP-Nursing Care-External,441200,09-Jan-14,1900136345,1872.00,Barchester Homes Westvale House,105246
WARRINGTON BOROUGH COUNCIL,http://opendatacommunities.org/id/unitary-authority/warrington ,FWB,Care Purchase -OP & OT East,54430,CP-Nursing Care-External,441200,09-Jan-14,1900136345,1872.00,Barchester Homes Westvale House,105246
WARRINGTON BOROUGH COUNCIL,http://opendatacommunities.org/id/unitary-authority/warrington ,FWB,Care Purchase - PD,54440,CP-Nursing Care-External,441200,09-Jan-14,1900136345,1872.00,Barchester Homes Westvale House,105246
WARRINGTON BOROUGH COUNCIL,http://opendatacommunities.org/id/unitary-authority/warrington ,FWB,Care Purchase Budget,54490,CP - Cont Care - External,441350,09-Jan-14,1900136345,13656.00,Barchester Homes Westvale House,105246
WARRINGTON BOROUGH COUNCIL,http://opendatacommunities.org/id/unitary-authority/warrington ,FWB,Carers Co-ordinator,53240,CP - Cont Care - External,441350,09-Jan-14,1900136345,629.00,Barchester Homes Westvale House,105246
WARRINGTON BOROUGH COUNCIL,http://opendatacommunities.org/id/unitary-authority/warrington ,FWB,Care Purchase Budget,54490,CP Free Nursing Care External,443500,14-Jan-14,1900136505,15740.00,Barchester Homes Westvale House,105246
WARRINGTON BOROUGH COUNCIL,http://opendatacommunities.org/id/unitary-authority/warrington ,FWB,Care Purchase - OP & OT West,54470,CP-Nursing Care-External,441200,22-Jan-14,1900137048,1940.00,Barchester Homes Westvale House,105246
WARRINGTON BOROUGH COUNCIL,http://opendatacommunities.org/id/unitary-authority/warrington ,FWB,Care Purchase - Learning Disability,54450,CP-Domicil.External,440950,16-Jan-14,1900136804,2622.00,Wirral Autistic Society,105251
WARRINGTON BOROUGH COUNCIL,http://opendatacommunities.org/id/unitary-authority/warrington ,FWB,Care Purchase - Learning Disability,54450,CP-Day Care-External,441100,16-Jan-14,1900136804,1180.00,Wirral Autistic Society,105251
WARRINGTON BOROUGH COUNCIL,http://opendatacommunities.org/id/unitary-authority/warrington ,HOL,Single Billing Holding Account,91130,Insurance Premium,443350,16-Jan-14,1900136656,1463153.00,Zurich Insurance Company,105263
WARRINGTON BOROUGH COUNCIL,http://opendatacommunities.org/id/unitary-authority/warrington ,HOL,Insurance Fund,91100,Insurance Premium,443350,16-Jan-14,1900136659,11740.00,Zurich Insurance Company,105263
WARRINGTON BOROUGH COUNCIL,http://opendatacommunities.org/id/unitary-authority/warrington ,HOL,Insurance Fund,91100,Insurance Claims,443400,16-Jan-14,1900136814,5412.00,Zurich Insurance Company,105263
WARRINGTON BOROUGH COUNCIL,http://opendatacommunities.org/id/unitary-authority/warrington ,FWB,Care Purchase - OP & OT Central,54420,CP-Domicil.External,440950,22-Jan-14,1900137056,3662.00,Castlerock Recruitment Group,105279
WARRINGTON BOROUGH COUNCIL,http://opendatacommunities.org/id/unitary-authority/warrington ,FWB,Care Purchase - OP & OT South,54480,CP-Domicil.External,440950,22-Jan-14,1900137056,1573.00,Castlerock Recruitment Group,105279
WARRINGTON BOROUGH COUNCIL,http://opendatacommunities.org/id/unitary-authority/warrington ,FWB,Care Purchase -OP & OT East,54430,CP-Domicil.External,440950,22-Jan-14,1900137056,918.00,Castlerock Recruitment Group,105279
WARRINGTON BOROUGH COUNCIL,http://opendatacommunities.org/id/unitary-authority/warrington ,FWB,Care Purchase - PD,54440,CP-Domicil.External,440950,22-Jan-14,1900137056,1600.00,Castlerock Recruitment Group,105279
WARRINGTON BOROUGH COUNCIL,http://opendatacommunities.org/id/unitary-authority/warrington ,FWB,Care Purchase - OP & OT Central,54420,CP-Domicil.External,440950,22-Jan-14,1900137059,3622.00,Castlerock Recruitment Group,105279
WARRINGTON BOROUGH COUNCIL,http://opendatacommunities.org/id/unitary-authority/warrington ,FWB,Care Purchase - OP & OT South,54480,CP-Domicil.External,440950,22-Jan-14,1900137059,1520.00,Castlerock Recruitment Group,105279
WARRINGTON BOROUGH COUNCIL,http://opendatacommunities.org/id/unitary-authority/warrington ,FWB,Care Purchase -OP & OT East,54430,CP-Domicil.External,440950,22-Jan-14,1900137059,820.00,Castlerock Recruitment Group,105279
WARRINGTON BOROUGH COUNCIL,http://opendatacommunities.org/id/unitary-authority/warrington ,FWB,Care Purchase - PD,54440,CP-Domicil.External,440950,22-Jan-14,1900137059,1560.00,Castlerock Recruitment Group,105279
WARRINGTON BOROUGH COUNCIL,http://opendatacommunities.org/id/unitary-authority/warrington ,FWB,Care Purchase - OP & OT Central,54420,CP-Domicil.External,440950,22-Jan-14,1900137069,3638.00,Castlerock Recruitment Group,105279
WARRINGTON BOROUGH COUNCIL,http://opendatacommunities.org/id/unitary-authority/warrington ,FWB,Care Purchase - OP & OT South,54480,CP-Domicil.External,440950,22-Jan-14,1900137069,1632.00,Castlerock Recruitment Group,105279
WARRINGTON BOROUGH COUNCIL,http://opendatacommunities.org/id/unitary-authority/warrington ,FWB,Care Purchase -OP & OT East,54430,CP-Domicil.External,440950,22-Jan-14,1900137069,827.00,Castlerock Recruitment Group,105279
WARRINGTON BOROUGH COUNCIL,http://opendatacommunities.org/id/unitary-authority/warrington ,FWB,Care Purchase - PD,54440,CP-Domicil.External,440950,22-Jan-14,1900137069,1532.00,Castlerock Recruitment Group,105279
WARRINGTON BOROUGH COUNCIL,http://opendatacommunities.org/id/unitary-authority/warrington ,FWB,Care Purchase - OP & OT Central,54420,CP-Domicil.External,440950,23-Jan-14,1900137103,3626.00,Castlerock Recruitment Group,105279
WARRINGTON BOROUGH COUNCIL,http://opendatacommunities.org/id/unitary-authority/warrington ,FWB,Care Purchase - OP & OT South,54480,CP-Domicil.External,440950,23-Jan-14,1900137103,1619.00,Castlerock Recruitment Group,105279
WARRINGTON BOROUGH COUNCIL,http://opendatacommunities.org/id/unitary-authority/warrington ,FWB,Care Purchase -OP & OT East,54430,CP-Domicil.External,440950,23-Jan-14,1900137103,828.00,Castlerock Recruitment Group,105279
WARRINGTON BOROUGH COUNCIL,http://opendatacommunities.org/id/unitary-authority/warrington ,FWB,Care Purchase - PD,54440,CP-Domicil.External,440950,23-Jan-14,1900137103,1600.00,Castlerock Recruitment Group,105279
WARRINGTON BOROUGH COUNCIL,http://opendatacommunities.org/id/unitary-authority/warrington ,RSC,Coroners Service,11100,Analysts Fees,440300,23-Jan-14,1900137143,1976.00,Roar Forensics Ltd,105295
WARRINGTON BOROUGH COUNCIL,http://opendatacommunities.org/id/unitary-authority/warrington ,ENO,Housing Projects,82008,Safe & Secure Energy House Assistance,554100,21-Jan-14,1900136981,1700.00,A1 Roof Seal Ltd,105313
WARRINGTON BOROUGH COUNCIL,http://opendatacommunities.org/id/unitary-authority/warrington ,FWB,Statutory Homeless Properties,43652,Annual Maintenance,442100,30-Jan-14,1900137550,728.00,Clovemead Ltd,105336
WARRINGTON BOROUGH COUNCIL,http://opendatacommunities.org/id/unitary-authority/warrington ,CYP,Childrens Other,81004,Contract Works,492550,13-Jan-14,1900136467,3387.00,James Co Associates Ltd,105375
WARRINGTON BOROUGH COUNCIL,http://opendatacommunities.org/id/unitary-authority/warrington ,ENO,Housing Projects,82008,Disabled Persons Grant 1996,554000,03-Jan-14,1900135604,1016.00,ThyssenKrupp Encasa Ltd,105382
WARRINGTON BOROUGH COUNCIL,http://opendatacommunities.org/id/unitary-authority/warrington ,ENO,Housing Projects,82008,Disabled Persons Grant 1996,554000,20-Jan-14,1900136955,1741.00,ThyssenKrupp Encasa Ltd,105382
WARRINGTON BOROUGH COUNCIL,http://opendatacommunities.org/id/unitary-authority/warrington ,ENO,Housing Projects,82008,Disabled Persons Grant 1996,554000,29-Jan-14,1900137507,1726.00,ThyssenKrupp Encasa Ltd,105382
WARRINGTON BOROUGH COUNCIL,http://opendatacommunities.org/id/unitary-authority/warrington ,ENO,Housing Projects,82008,Disabled Persons Grant 1996,554000,29-Jan-14,1900137535,1776.00,ThyssenKrupp Encasa Ltd,105382
WARRINGTON BOROUGH COUNCIL,http://opendatacommunities.org/id/unitary-authority/warrington ,ENO,Housing Projects,82008,Disabled Persons Grant 1996,554000,16-Jan-14,1900136690,7000.00,Domestic Services And Installations,105462
WARRINGTON BOROUGH COUNCIL,http://opendatacommunities.org/id/unitary-authority/warrington ,ENO,Housing Projects,82008,Disabled Persons Grant 1996,554000,03-Jan-14,1900135602,1700.00,Acorn Building Projects Ltd,105557
WARRINGTON BOROUGH COUNCIL,http://opendatacommunities.org/id/unitary-authority/warrington ,ENO,Housing Projects,82008,Disabled Persons Grant 1996,554000,16-Jan-14,1900136682,12000.00,Acorn Building Projects Ltd,105557
WARRINGTON BOROUGH COUNCIL,http://opendatacommunities.org/id/unitary-authority/warrington ,ENO,Housing Projects,82008,Safe & Secure Energy House Assistance,554100,21-Jan-14,1900137010,1974.00,Acorn Building Projects Ltd,105557
WARRINGTON BOROUGH COUNCIL,http://opendatacommunities.org/id/unitary-authority/warrington ,ENO,Housing Projects,82008,Disabled Persons Grant 1996,554000,27-Jan-14,1900137283,3511.00,Acorn Building Projects Ltd,105557
WARRINGTON BOROUGH COUNCIL,http://opendatacommunities.org/id/unitary-authority/warrington ,FWB,Care Purchase - Learning Disability,54450,Direct Payments,552000,07-Jan-14,1900136055,1240.00,Redacted Personal Data,105576
WARRINGTON BOROUGH COUNCIL,http://opendatacommunities.org/id/unitary-authority/warrington ,FWB,Care Purchase - Learning Disability,54450,Direct Payments,552000,07-Jan-14,1900136057,538.00,Redacted Personal Data,105598
WARRINGTON BOROUGH COUNCIL,http://opendatacommunities.org/id/unitary-authority/warrington ,FWB,Care Purchase - Learning Disability,54450,Direct Payments,552000,07-Jan-14,1900136059,1010.00,Redacted Personal Data,105621
WARRINGTON BOROUGH COUNCIL,http://opendatacommunities.org/id/unitary-authority/warrington ,FWB,Care Purchase - Learning Disability,54450,Direct Payments,552000,07-Jan-14,1900136063,638.00,Redacted Personal Data,105625
WARRINGTON BOROUGH COUNCIL,http://opendatacommunities.org/id/unitary-authority/warrington ,FWB,Care Purchase - Learning Disability,54450,Direct Payments,552000,07-Jan-14,1900136068,669.00,Redacted Personal Data,105641
WARRINGTON BOROUGH COUNCIL,http://opendatacommunities.org/id/unitary-authority/warrington ,HOL,Single Billing Holding Account,91130,Non BMP General Repairs,200050,20-Jan-14,1900136887,14531.00,Manchester Working Limited,105646
WARRINGTON BOROUGH COUNCIL,http://opendatacommunities.org/id/unitary-authority/warrington ,HOL,Single Billing Holding Account,91130,Specific Work,200200,20-Jan-14,1900136889,7205.00,Manchester Working Limited,105646
WARRINGTON BOROUGH COUNCIL,http://opendatacommunities.org/id/unitary-authority/warrington ,HOL,Single Billing Holding Account,91130,Specific Work,200200,20-Jan-14,1900136890,12815.00,Manchester Working Limited,105646
WARRINGTON BOROUGH COUNCIL,http://opendatacommunities.org/id/unitary-authority/warrington ,HOL,Single Billing Holding Account,91130,Non BMP General Repairs,200050,20-Jan-14,1900136891,708.00,Manchester Working Limited,105646
WARRINGTON BOROUGH COUNCIL,http://opendatacommunities.org/id/unitary-authority/warrington ,HOL,Single Billing Holding Account,91130,Non BMP General Repairs,200050,20-Jan-14,1900136932,858.00,Manchester Working Limited,105646
WARRINGTON BOROUGH COUNCIL,http://opendatacommunities.org/id/unitary-authority/warrington ,FWB,Care Purchase - PD,54440,Direct Payments,552000,07-Jan-14,1900136069,784.00,Redacted Personal Data,105665
WARRINGTON BOROUGH COUNCIL,http://opendatacommunities.org/id/unitary-authority/warrington ,FWB,Care Purchase - OP & OT Central,54420,Direct Payments,552000,07-Jan-14,1900136070,576.00,Redacted Personal Data,105666
WARRINGTON BOROUGH COUNCIL,http://opendatacommunities.org/id/unitary-authority/warrington ,FWB,Care Purchase - OP & OT South,54480,Direct Payments,552000,07-Jan-14,1900136072,1570.00,Redacted Personal Data,105687
WARRINGTON BOROUGH COUNCIL,http://opendatacommunities.org/id/unitary-authority/warrington ,FWB,Care Purchase - PD,54440,Direct Payments,552000,07-Jan-14,1900136074,2912.00,Redacted Personal Data,105727
WARRINGTON BOROUGH COUNCIL,http://opendatacommunities.org/id/unitary-authority/warrington ,FWB,Care Purchase - OP & OT Central,54420,Direct Payments,552000,07-Jan-14,1900136076,964.00,Redacted Personal Data,105729
WARRINGTON BOROUGH COUNCIL,http://opendatacommunities.org/id/unitary-authority/warrington ,FWB,Care Purchase - PD,54440,Direct Payments,552000,07-Jan-14,1900136078,849.00,Redacted Personal Data,105758
WARRINGTON BOROUGH COUNCIL,http://opendatacommunities.org/id/unitary-authority/warrington ,FWB,Care Purchase - OP & OT South,54480,CP-Day Care-External,441100,02-Jan-14,1900135525,5401.00,CareConcepts (Appleton) Ltd,105804
WARRINGTON BOROUGH COUNCIL,http://opendatacommunities.org/id/unitary-authority/warrington ,FWB,Care Purchase -OP & OT East,54430,CP-Day Care-External,441100,02-Jan-14,1900135525,4854.00,CareConcepts (Appleton) Ltd,105804
WARRINGTON BOROUGH COUNCIL,http://opendatacommunities.org/id/unitary-authority/warrington ,FWB,Care Purchase - OP & OT West,54470,CP-Day Care-External,441100,02-Jan-14,1900135525,1702.00,CareConcepts (Appleton) Ltd,105804
WARRINGTON BOROUGH COUNCIL,http://opendatacommunities.org/id/unitary-authority/warrington ,FWB,Care Purchase - OP & OT Central,54420,CP-Day Care-External,441100,02-Jan-14,1900135525,718.00,CareConcepts (Appleton) Ltd,105804
WARRINGTON BOROUGH COUNCIL,http://opendatacommunities.org/id/unitary-authority/warrington ,FWB,Care Purchase Budget,54490,CP - Cont Care - External,441350,02-Jan-14,1900135525,924.00,CareConcepts (Appleton) Ltd,105804
WARRINGTON BOROUGH COUNCIL,http://opendatacommunities.org/id/unitary-authority/warrington ,FWB,Care Purchase Budget,54490,Voids,515150,02-Jan-14,1900135525,6001.00,CareConcepts (Appleton) Ltd,105804
WARRINGTON BOROUGH COUNCIL,http://opendatacommunities.org/id/unitary-authority/warrington ,FWB,Care Purchase - OP & OT South,54480,CP-LongStayExternal,441150,03-Jan-14,1900135593,4763.00,CareConcepts (Appleton) Ltd,105804
WARRINGTON BOROUGH COUNCIL,http://opendatacommunities.org/id/unitary-authority/warrington ,FWB,Care Purchase - OP & OT South,54480,CP-Nursing Care-External,441200,03-Jan-14,1900135593,32901.00,CareConcepts (Appleton) Ltd,105804
WARRINGTON BOROUGH COUNCIL,http://opendatacommunities.org/id/unitary-authority/warrington ,FWB,Care Purchase -OP & OT East,54430,CP-Nursing Care-External,441200,03-Jan-14,1900135593,4092.00,CareConcepts (Appleton) Ltd,105804
WARRINGTON BOROUGH COUNCIL,http://opendatacommunities.org/id/unitary-authority/warrington ,FWB,Care Purchase - OP & OT Central,54420,CP-Nursing Care-External,441200,03-Jan-14,1900135593,2116.00,CareConcepts (Appleton) Ltd,105804
WARRINGTON BOROUGH COUNCIL,http://opendatacommunities.org/id/unitary-authority/warrington ,FWB,Care Purchase - OP & OT West,54470,CP-Nursing Care-External,441200,03-Jan-14,1900135593,2012.00,CareConcepts (Appleton) Ltd,105804
WARRINGTON BOROUGH COUNCIL,http://opendatacommunities.org/id/unitary-authority/warrington ,FWB,Care Purchase Budget,54490,CP - Cont Care - External,441350,03-Jan-14,1900135593,35884.00,CareConcepts (Appleton) Ltd,105804
WARRINGTON BOROUGH COUNCIL,http://opendatacommunities.org/id/unitary-authority/warrington ,FWB,Care Purchase Budget,54490,CP Free Nursing Care External,443500,03-Jan-14,1900135593,10132.00,CareConcepts (Appleton) Ltd,105804
WARRINGTON BOROUGH COUNCIL,http://opendatacommunities.org/id/unitary-authority/warrington ,FWB,Care Purchase - IC,54290,CP - Intermediate Care - External,441300,29-Jan-14,1900137420,37602.00,CareConcepts (Appleton) Ltd,105804
WARRINGTON BOROUGH COUNCIL,http://opendatacommunities.org/id/unitary-authority/warrington ,FWB,Care Purchase - OP & OT South,54480,CP-Day Care-External,441100,29-Jan-14,1900137422,4612.00,CareConcepts (Appleton) Ltd,105804
WARRINGTON BOROUGH COUNCIL,http://opendatacommunities.org/id/unitary-authority/warrington ,FWB,Care Purchase -OP & OT East,54430,CP-Day Care-External,441100,29-Jan-14,1900137422,4061.00,CareConcepts (Appleton) Ltd,105804
WARRINGTON BOROUGH COUNCIL,http://opendatacommunities.org/id/unitary-authority/warrington ,FWB,Care Purchase - OP & OT Central,54420,CP-Day Care-External,441100,29-Jan-14,1900137422,2554.00,CareConcepts (Appleton) Ltd,105804
WARRINGTON BOROUGH COUNCIL,http://opendatacommunities.org/id/unitary-authority/warrington ,FWB,Care Purchase - OP & OT West,54470,CP-Day Care-External,441100,29-Jan-14,1900137422,1173.00,CareConcepts (Appleton) Ltd,105804
WARRINGTON BOROUGH COUNCIL,http://opendatacommunities.org/id/unitary-authority/warrington ,FWB,Care Purchase Budget,54490,CP - Cont Care - External,441350,29-Jan-14,1900137422,573.00,CareConcepts (Appleton) Ltd,105804
WARRINGTON BOROUGH COUNCIL,http://opendatacommunities.org/id/unitary-authority/warrington ,FWB,Care Purchase Budget,54490,Voids,515150,29-Jan-14,1900137422,6628.00,CareConcepts (Appleton) Ltd,105804
WARRINGTON BOROUGH COUNCIL,http://opendatacommunities.org/id/unitary-authority/warrington ,FWB,Care Purchase - OP & OT South,54480,CP-LongStayExternal,441150,29-Jan-14,1900137485,5936.00,CareConcepts (Appleton) Ltd,105804
WARRINGTON BOROUGH COUNCIL,http://opendatacommunities.org/id/unitary-authority/warrington ,FWB,Care Purchase - OP & OT South,54480,CP-Nursing Care-External,441200,29-Jan-14,1900137485,29246.00,CareConcepts (Appleton) Ltd,105804
WARRINGTON BOROUGH COUNCIL,http://opendatacommunities.org/id/unitary-authority/warrington ,FWB,Care Purchase -OP & OT East,54430,CP-Nursing Care-External,441200,29-Jan-14,1900137485,4092.00,CareConcepts (Appleton) Ltd,105804
WARRINGTON BOROUGH COUNCIL,http://opendatacommunities.org/id/unitary-authority/warrington ,FWB,Care Purchase - OP & OT Central,54420,CP-Nursing Care-External,441200,29-Jan-14,1900137485,2116.00,CareConcepts (Appleton) Ltd,105804
WARRINGTON BOROUGH COUNCIL,http://opendatacommunities.org/id/unitary-authority/warrington ,FWB,Care Purchase - OP & OT West,54470,CP-Nursing Care-External,441200,29-Jan-14,1900137485,2012.00,CareConcepts (Appleton) Ltd,105804
WARRINGTON BOROUGH COUNCIL,http://opendatacommunities.org/id/unitary-authority/warrington ,FWB,Care Purchase Budget,54490,CP - Cont Care - External,441350,29-Jan-14,1900137485,35449.00,CareConcepts (Appleton) Ltd,105804
WARRINGTON BOROUGH COUNCIL,http://opendatacommunities.org/id/unitary-authority/warrington ,FWB,Care Purchase Budget,54490,CP Free Nursing Care External,443500,29-Jan-14,1900137485,9301.00,CareConcepts (Appleton) Ltd,105804
WARRINGTON BOROUGH COUNCIL,http://opendatacommunities.org/id/unitary-authority/warrington ,FWB,Care Purchase - OP & OT Central,54420,Direct Payments,552000,07-Jan-14,1900136079,834.00,Redacted Personal Data,105861
WARRINGTON BOROUGH COUNCIL,http://opendatacommunities.org/id/unitary-authority/warrington ,FWB,Care Purchase - PD,54440,Direct Payments,552000,07-Jan-14,1900136081,1273.00,Redacted Personal Data,105909
WARRINGTON BOROUGH COUNCIL,http://opendatacommunities.org/id/unitary-authority/warrington ,RSC,Coroners Service,11100,Post Mortem Fees-Rep,440250,28-Jan-14,1900137336,2453.00,Dr Suboda M Weerasinghe,105924
WARRINGTON BOROUGH COUNCIL,http://opendatacommunities.org/id/unitary-authority/warrington ,FWB,Care Purchase - Learning Disability,54450,Direct Payments,552000,07-Jan-14,1900136083,637.00,Redacted Personal Data,106066
WARRINGTON BOROUGH COUNCIL,http://opendatacommunities.org/id/unitary-authority/warrington ,RSC,Coroners Service,11100,Post Mortem Fees-Rep,440250,09-Jan-14,1900135859,596.00,Dr Jo McPartland,106129
WARRINGTON BOROUGH COUNCIL,http://opendatacommunities.org/id/unitary-authority/warrington ,RSC,Customer Contact Centre,52201,Rent Of Premises,220000,15-Jan-14,1900136637,18000.00,Whitecrest Estate Agents,106130
WARRINGTON BOROUGH COUNCIL,http://opendatacommunities.org/id/unitary-authority/warrington ,FWB,Care Purchase - PD,54440,Direct Payments,552000,07-Jan-14,1900136085,582.00,Redacted Personal Data,106145
WARRINGTON BOROUGH COUNCIL,http://opendatacommunities.org/id/unitary-authority/warrington ,RSC,Coroners Service,11100,Post Mortem Fees-Rep,440250,23-Jan-14,1900137107,563.00,Alder Hey Childrens NHS Foundation,106199
WARRINGTON BOROUGH COUNCIL,http://opendatacommunities.org/id/unitary-authority/warrington ,FWB,Care Purchase - Learning Disability,54450,CP ExternalOther Exp,440800,03-Jan-14,1900135599,3025.00,G-Map Services,106244
WARRINGTON BOROUGH COUNCIL,http://opendatacommunities.org/id/unitary-authority/warrington ,FWB,Care Purchase - Learning Disability,54450,CP ExternalOther Exp,440800,28-Jan-14,1900137398,2420.00,G-Map Services,106244
WARRINGTON BOROUGH COUNCIL,http://opendatacommunities.org/id/unitary-authority/warrington ,CYP,Primary,81001,Consult.& Prof. Serv,440000,07-Jan-14,1900135789,630.00,Ross Quality Control Limited,106280
WARRINGTON BOROUGH COUNCIL,http://opendatacommunities.org/id/unitary-authority/warrington ,FWB,Foster Allowances,31106,Travel Allowance,550250,02-Jan-14,1900135552,544.00,Redacted Personal Data,106283
WARRINGTON BOROUGH COUNCIL,http://opendatacommunities.org/id/unitary-authority/warrington ,FWB,Foster Allowances,31106,Fostering Allowance,550050,30-Jan-14,1900137538,548.00,Redacted Personal Data,106283
WARRINGTON BOROUGH COUNCIL,http://opendatacommunities.org/id/unitary-authority/warrington ,FWB,Care Purchase - OP & OT West,54470,Direct Payments,552000,07-Jan-14,1900136087,706.00,Redacted Personal Data,106441
WARRINGTON BOROUGH COUNCIL,http://opendatacommunities.org/id/unitary-authority/warrington ,FWB,Care Purchase - PD,54440,Direct Payments,552000,07-Jan-14,1900136091,855.00,Redacted Personal Data,106630
WARRINGTON BOROUGH COUNCIL,http://opendatacommunities.org/id/unitary-authority/warrington ,FWB,Care Purchase - Learning Disability,54450,Voids,515150,29-Jan-14,1900137430,653.00,Golden Lane Housing,106663
WARRINGTON BOROUGH COUNCIL,http://opendatacommunities.org/id/unitary-authority/warrington ,FWB,Care Purchase - Learning Disability,54450,Voids,515150,29-Jan-14,1900137432,653.00,Golden Lane Housing,106663
WARRINGTON BOROUGH COUNCIL,http://opendatacommunities.org/id/unitary-authority/warrington ,FWB,Child Disability,32212,Direct Payments,552000,07-Jan-14,1900136093,687.00,Redacted Personal Data,106708
WARRINGTON BOROUGH COUNCIL,http://opendatacommunities.org/id/unitary-authority/warrington ,CYP,Childrens & Young People,81000,ICT Comms - Equipment Purchase,450100,23-Jan-14,1900137168,12003.00,Virgin Media Business,106824
WARRINGTON BOROUGH COUNCIL,http://opendatacommunities.org/id/unitary-authority/warrington ,FWB,Connexions 14-19,32065,ICT Comms - Line Rental,450200,23-Jan-14,1900137168,2050.00,Virgin Media Business,106824
WARRINGTON BOROUGH COUNCIL,http://opendatacommunities.org/id/unitary-authority/warrington ,RSC,Schools & Libraries Internet Project,23030,ICT Comms - Line Rental,450200,23-Jan-14,1900137168,4800.00,Virgin Media Business,106824
WARRINGTON BOROUGH COUNCIL,http://opendatacommunities.org/id/unitary-authority/warrington ,RSC,ICT & Business Improvement,23020,ICT Comms - Line Rental,450200,23-Jan-14,1900137168,1200.00,Virgin Media Business,106824
WARRINGTON BOROUGH COUNCIL,http://opendatacommunities.org/id/unitary-authority/warrington ,RSC,Schools & Libraries Internet Project,23030,ICT Comms - Line Rental,450200,23-Jan-14,1900137169,3240.00,Virgin Media Business,106824
WARRINGTON BOROUGH COUNCIL,http://opendatacommunities.org/id/unitary-authority/warrington ,ENO,Housing Projects,82008,Disabled Persons Grant 1996,554000,14-Jan-14,1900136525,7649.00,Metro Developments,106845
WARRINGTON BOROUGH COUNCIL,http://opendatacommunities.org/id/unitary-authority/warrington ,FWB,Care Purchase - Learning Disability,54450,Direct Payments,552000,07-Jan-14,1900136096,668.00,Redacted Personal Data,106866
WARRINGTON BOROUGH COUNCIL,http://opendatacommunities.org/id/unitary-authority/warrington ,RSC,Coroners Service,11100,Post Mortem Fees-Rep,440250,23-Jan-14,1900137117,1786.00,Dr Debdeep Dey,106869
WARRINGTON BOROUGH COUNCIL,http://opendatacommunities.org/id/unitary-authority/warrington ,CYP,Childrens Other,81004,Contract Works,492550,07-Jan-14,1900135781,3836.00,Blackburn Diocesan Board of Educati,107093
WARRINGTON BOROUGH COUNCIL,http://opendatacommunities.org/id/unitary-authority/warrington ,FWB,Financial Protection Team,56130,Computer Software - Maintenance,450850,06-Jan-14,1900135677,1768.00,Soft Box Limited,107154
WARRINGTON BOROUGH COUNCIL,http://opendatacommunities.org/id/unitary-authority/warrington ,RSC,Coroners Service,11100,Analysts Fees,440300,09-Jan-14,1900135879,720.00,LGC Ltd,107222
WARRINGTON BOROUGH COUNCIL,http://opendatacommunities.org/id/unitary-authority/warrington ,RSC,Coroners Service,11100,Analysts Fees,440300,09-Jan-14,1900135885,700.00,LGC Ltd,107222
WARRINGTON BOROUGH COUNCIL,http://opendatacommunities.org/id/unitary-authority/warrington ,RSC,Coroners Service,11100,Analysts Fees,440300,09-Jan-14,1900135904,5680.00,LGC Ltd,107222
WARRINGTON BOROUGH COUNCIL,http://opendatacommunities.org/id/unitary-authority/warrington ,FWB,Care Purchase - Learning Disability,54450,Direct Payments,552000,07-Jan-14,1900136102,679.00,Redacted Personal Data,107297
WARRINGTON BOROUGH COUNCIL,http://opendatacommunities.org/id/unitary-authority/warrington ,FWB,Care Purchase - PD,54440,Direct Payments,552000,07-Jan-14,1900136104,606.00,Redacted Personal Data,107299
WARRINGTON BOROUGH COUNCIL,http://opendatacommunities.org/id/unitary-authority/warrington ,CYP,Childrens Other,81004,Equipment Purchase & Contract,400000,09-Jan-14,1900136342,3360.00,Nine Hundred Communications Ltd,107315
WARRINGTON BOROUGH COUNCIL,http://opendatacommunities.org/id/unitary-authority/warrington ,FWB,Care Purchase - PD,54440,Direct Payments,552000,07-Jan-14,1900136105,645.00,Redacted Personal Data,107363
WARRINGTON BOROUGH COUNCIL,http://opendatacommunities.org/id/unitary-authority/warrington ,FWB,Foster Allowances,31106,Agency Supply - GF,180000,08-Jan-14,1900135805,575.00,Redacted Personal Data,107397
WARRINGTON BOROUGH COUNCIL,http://opendatacommunities.org/id/unitary-authority/warrington ,FWB,Fostering Team,31105,Agency Supply - GF,180000,29-Jan-14,1900137517,550.00,Redacted Personal Data,107397
WARRINGTON BOROUGH COUNCIL,http://opendatacommunities.org/id/unitary-authority/warrington ,FWB,Homelessness,43650,Emergency Accommodation Allowance,550500,20-Jan-14,1900136893,867.00,The Furnishing Service,107402
WARRINGTON BOROUGH COUNCIL,http://opendatacommunities.org/id/unitary-authority/warrington ,FWB,Statutory Homeless Properties,43652,Furniture & Fittings,400150,20-Jan-14,1900136894,2877.00,The Furnishing Service,107402
WARRINGTON BOROUGH COUNCIL,http://opendatacommunities.org/id/unitary-authority/warrington ,FWB,Care Purchase -OP & OT East,54430,Direct Payments,552000,07-Jan-14,1900136107,687.00,Redacted Personal Data,107436
WARRINGTON BOROUGH COUNCIL,http://opendatacommunities.org/id/unitary-authority/warrington ,FWB,Care Purchase - Learning Disability,54450,Direct Payments,552000,07-Jan-14,1900136108,1202.00,Redacted Personal Data,107437
WARRINGTON BOROUGH COUNCIL,http://opendatacommunities.org/id/unitary-authority/warrington ,HOL,Single Billing Holding Account,91130,Agency Supply - GF,180000,14-Jan-14,1900136491,76826.00,Hays Specialist Recruitment Ltd,107512
WARRINGTON BOROUGH COUNCIL,http://opendatacommunities.org/id/unitary-authority/warrington ,HOL,Single Billing Holding Account,91130,Agency Supply - GF,180000,20-Jan-14,1900136934,27506.00,Hays Specialist Recruitment Ltd,107512
WARRINGTON BOROUGH COUNCIL,http://opendatacommunities.org/id/unitary-authority/warrington ,HOL,Single Billing Holding Account,91130,Agency Supply - GF,180000,28-Jan-14,1900137333,38204.00,Hays Specialist Recruitment Ltd,107512
WARRINGTON BOROUGH COUNCIL,http://opendatacommunities.org/id/unitary-authority/warrington ,HOL,Single Billing Holding Account,91130,Agency Supply - GF,180000,30-Jan-14,1900137560,37402.00,Hays Specialist Recruitment Ltd,107512
WARRINGTON BOROUGH COUNCIL,http://opendatacommunities.org/id/unitary-authority/warrington ,CYP,Childrens Other,81004,Materials,400500,07-Jan-14,1900135786,2760.00,Rockmicro Ltd,107536
WARRINGTON BOROUGH COUNCIL,http://opendatacommunities.org/id/unitary-authority/warrington ,RSC,Coroners Service,11100,Post Mortem Fees-Rep,440250,09-Jan-14,1900135869,678.00,Dr Michael Wall,107545
WARRINGTON BOROUGH COUNCIL,http://opendatacommunities.org/id/unitary-authority/warrington ,FWB,Care Purchase - PD,54440,Direct Payments,552000,07-Jan-14,1900136111,1019.00,Redacted Personal Data,107665
WARRINGTON BOROUGH COUNCIL,http://opendatacommunities.org/id/unitary-authority/warrington ,FWB,Care Purchase - OP & OT West,54470,Direct Payments,552000,07-Jan-14,1900136112,561.00,Redacted Personal Data,107667
WARRINGTON BOROUGH COUNCIL,http://opendatacommunities.org/id/unitary-authority/warrington ,FWB,DSG Early Years PVI Settings,32417,Private & Voluntary 3 Year Olds,470100,29-Jan-14,1900137418,1500.00,Butterflys Nursery,107718
WARRINGTON BOROUGH COUNCIL,http://opendatacommunities.org/id/unitary-authority/warrington ,FWB,Care Purchase - Learning Disability,54450,CP-LongStayExternal,441150,15-Jan-14,1900136604,2880.00,Thornton Manor,107806
WARRINGTON BOROUGH COUNCIL,http://opendatacommunities.org/id/unitary-authority/warrington ,FWB,Care Purchase - Learning Disability,54450,CP-Nursing Care-External,441200,15-Jan-14,1900136605,2445.00,Thornton Manor,107806
WARRINGTON BOROUGH COUNCIL,http://opendatacommunities.org/id/unitary-authority/warrington ,FWB,Care Purchase - Learning Disability,54450,CP-Day Care-External,441100,09-Jan-14,1900136349,5591.00,Oliver House Priory,107946
WARRINGTON BOROUGH COUNCIL,http://opendatacommunities.org/id/unitary-authority/warrington ,FWB,DSG Independent School Fees,32011,Independent School Fees,490200,14-Jan-14,1900136533,19000.00,Oliver House Priory,107946
WARRINGTON BOROUGH COUNCIL,http://opendatacommunities.org/id/unitary-authority/warrington ,FWB,DSG Independent School Fees,32011,Independent School Fees,490200,14-Jan-14,1900136534,4500.00,Oliver House Priory,107946
WARRINGTON BOROUGH COUNCIL,http://opendatacommunities.org/id/unitary-authority/warrington ,FWB,Care Purchase - Learning Disability,54450,CP-Day Care-External,441100,15-Jan-14,1900136572,5591.00,Oliver House Priory,107946
WARRINGTON BOROUGH COUNCIL,http://opendatacommunities.org/id/unitary-authority/warrington ,FWB,Care Purchase - Learning Disability,54450,CP-LongStayExternal,441150,15-Jan-14,1900136578,19951.00,Oliver House Priory,107946
WARRINGTON BOROUGH COUNCIL,http://opendatacommunities.org/id/unitary-authority/warrington ,FWB,DSG Independent School Fees,32011,Independent School Fees,490200,29-Jan-14,1900137519,1410.00,Oliver House Priory,107946
WARRINGTON BOROUGH COUNCIL,http://opendatacommunities.org/id/unitary-authority/warrington ,FWB,DSG Independent School Fees,32011,Independent School Fees,490200,29-Jan-14,1900137520,1561.00,Oliver House Priory,107946
WARRINGTON BOROUGH COUNCIL,http://opendatacommunities.org/id/unitary-authority/warrington ,RSC,Coroners Service,11100,Post Mortem Fees-Rep,440250,23-Jan-14,1900137113,949.00,Dr Cheng Li,107950
WARRINGTON BOROUGH COUNCIL,http://opendatacommunities.org/id/unitary-authority/warrington ,FWB,Care Purchase - OP & OT Central,54420,Direct Payments,552000,07-Jan-14,1900136121,637.00,Redacted Personal Data,107960
WARRINGTON BOROUGH COUNCIL,http://opendatacommunities.org/id/unitary-authority/warrington ,FWB,Care Purchase - Learning Disability,54450,CP-Nursing Care-External,441200,03-Jan-14,1900135196,4800.00,Health & Social Care Partnerships,107996
WARRINGTON BOROUGH COUNCIL,http://opendatacommunities.org/id/unitary-authority/warrington ,FWB,Care Purchase - Learning Disability,54450,CP-Nursing Care-External,441200,15-Jan-14,1900136573,9240.00,Health & Social Care Partnerships,107996
WARRINGTON BOROUGH COUNCIL,http://opendatacommunities.org/id/unitary-authority/warrington ,FWB,Care Purchase - Learning Disability,54450,CP-Nursing Care-External,441200,15-Jan-14,1900136574,4200.00,Health & Social Care Partnerships,107996
WARRINGTON BOROUGH COUNCIL,http://opendatacommunities.org/id/unitary-authority/warrington ,FWB,Care Purchase - Learning Disability,54450,CP-Nursing Care-External,441200,15-Jan-14,1900136575,4800.00,Health & Social Care Partnerships,107996
WARRINGTON BOROUGH COUNCIL,http://opendatacommunities.org/id/unitary-authority/warrington ,FWB,Care Purchase - Learning Disability,54450,CP-Nursing Care-External,441200,15-Jan-14,1900136576,6000.00,Health & Social Care Partnerships,107996
WARRINGTON BOROUGH COUNCIL,http://opendatacommunities.org/id/unitary-authority/warrington ,FWB,Care Purchase Budget,54490,CP - Cont Care - External,441350,15-Jan-14,1900136577,9600.00,Health & Social Care Partnerships,107996
WARRINGTON BOROUGH COUNCIL,http://opendatacommunities.org/id/unitary-authority/warrington ,FWB,Care Purchase - Learning Disability,54450,CP-Nursing Care-External,441200,15-Jan-14,1900136623,4200.00,Health & Social Care Partnerships,107996
WARRINGTON BOROUGH COUNCIL,http://opendatacommunities.org/id/unitary-authority/warrington ,FWB,Care Purchase - Learning Disability,54450,CP-Nursing Care-External,441200,15-Jan-14,1900136624,4800.00,Health & Social Care Partnerships,107996
WARRINGTON BOROUGH COUNCIL,http://opendatacommunities.org/id/unitary-authority/warrington ,FWB,Care Purchase - Learning Disability,54450,CP-Nursing Care-External,441200,15-Jan-14,1900136628,4200.00,Health & Social Care Partnerships,107996
WARRINGTON BOROUGH COUNCIL,http://opendatacommunities.org/id/unitary-authority/warrington ,FWB,Care Purchase - Learning Disability,54450,CP-LongStayExternal,441150,15-Jan-14,1900136629,4200.00,Health & Social Care Partnerships,107996
WARRINGTON BOROUGH COUNCIL,http://opendatacommunities.org/id/unitary-authority/warrington ,RSC,ICT Networks,23400,ICT Comms - Line Rental,450200,08-Jan-14,1900135796,1733.00,Intrinsic Technology Limited,108170
WARRINGTON BOROUGH COUNCIL,http://opendatacommunities.org/id/unitary-authority/warrington ,RSC,ICT Networks,23400,ICT Comms - Line Usage,450300,08-Jan-14,1900135796,1480.00,Intrinsic Technology Limited,108170
WARRINGTON BOROUGH COUNCIL,http://opendatacommunities.org/id/unitary-authority/warrington ,RSC,ICT Networks,23400,ICT Comms - Line Rental,450200,08-Jan-14,1900135797,1618.00,Intrinsic Technology Limited,108170
WARRINGTON BOROUGH COUNCIL,http://opendatacommunities.org/id/unitary-authority/warrington ,RSC,ICT Networks,23400,ICT Comms - Line Usage,450300,08-Jan-14,1900135797,1348.00,Intrinsic Technology Limited,108170
WARRINGTON BOROUGH COUNCIL,http://opendatacommunities.org/id/unitary-authority/warrington ,RSC,Coroners Service,11100,Removal Bodies & Exc,440350,23-Jan-14,1900137153,749.00,Dutton and Hallmark,108180
WARRINGTON BOROUGH COUNCIL,http://opendatacommunities.org/id/unitary-authority/warrington ,RSC,Coroners Service,11100,Removal Bodies & Exc,440350,23-Jan-14,1900137155,601.00,Dutton and Hallmark,108180
WARRINGTON BOROUGH COUNCIL,http://opendatacommunities.org/id/unitary-authority/warrington ,FWB,DSG Early Years PVI Settings,32417,Private & Voluntary 3 Year Olds,470100,08-Jan-14,1900135801,1000.00,Redacted Personal Data,108266
WARRINGTON BOROUGH COUNCIL,http://opendatacommunities.org/id/unitary-authority/warrington ,COR,Fees & Subscriptions,60020,Audit Comm-Fee,441550,03-Jan-14,1900135592,42120.00,Grant Thornton UK LLP,108316
WARRINGTON BOROUGH COUNCIL,http://opendatacommunities.org/id/unitary-authority/warrington ,FWB,Care Purchase - OP & OT Central,54420,CP-LongStayExternal,441150,02-Jan-14,1900135518,1640.00,Ideal Carehomes (Number One) Ltd,108328
WARRINGTON BOROUGH COUNCIL,http://opendatacommunities.org/id/unitary-authority/warrington ,FWB,Care Purchase - OP & OT Central,54420,CP-LongStayExternal,441150,23-Jan-14,1900137181,1640.00,Ideal Carehomes (Number One) Ltd,108328
WARRINGTON BOROUGH COUNCIL,http://opendatacommunities.org/id/unitary-authority/warrington ,RSC,Coroners Service,11100,Consult.& Prof. Serv,440000,09-Jan-14,1900135851,2400.00,Kenyon International Emergency Serv,108386
WARRINGTON BOROUGH COUNCIL,http://opendatacommunities.org/id/unitary-authority/warrington ,ACO,Assistant Chief Executive Other,84003,Legal Costs Incurred,440200,06-Jan-14,1900135628,1536.00,Beachcroft LLP,108402
WARRINGTON BOROUGH COUNCIL,http://opendatacommunities.org/id/unitary-authority/warrington ,FWB,Care Purchase - OP & OT West,54470,CP-LongStayExternal,441150,10-Jan-14,1900136383,1713.00,Ennerdale Nursing & Residential Hom,108529
WARRINGTON BOROUGH COUNCIL,http://opendatacommunities.org/id/unitary-authority/warrington ,FWB,Care Purchase - OP & OT West,54470,CP-LongStayExternal,441150,17-Jan-14,1900136871,1713.00,Ennerdale Nursing & Residential Hom,108529
WARRINGTON BOROUGH COUNCIL,http://opendatacommunities.org/id/unitary-authority/warrington ,RSC,Support Services,10400,Training,190150,13-Jan-14,1900136454,995.00,IRRV,108574
WARRINGTON BOROUGH COUNCIL,http://opendatacommunities.org/id/unitary-authority/warrington ,ENO,Housing Projects,82008,Disabled Persons Grant 1996,554000,16-Jan-14,1900136693,898.00,Prism Medical UK,108616
WARRINGTON BOROUGH COUNCIL,http://opendatacommunities.org/id/unitary-authority/warrington ,FWB,Care Purchase - ABI,54260,CP-LongStayExternal,441150,16-Jan-14,1900136643,6381.00,HWCGS Care Ltd,108619
WARRINGTON BOROUGH COUNCIL,http://opendatacommunities.org/id/unitary-authority/warrington ,FWB,Care Purchase - Learning Disability,54450,CP-LongStayExternal,441150,16-Jan-14,1900136661,6649.00,HWCGS Care Ltd,108619
WARRINGTON BOROUGH COUNCIL,http://opendatacommunities.org/id/unitary-authority/warrington ,FWB,Care Purchase - Learning Disability,54450,CP-LongStayExternal,441150,16-Jan-14,1900136662,6649.00,HWCGS Care Ltd,108619
WARRINGTON BOROUGH COUNCIL,http://opendatacommunities.org/id/unitary-authority/warrington ,FWB,Care Purchase - Learning Disability,54450,CP-LongStayExternal,441150,16-Jan-14,1900136677,6649.00,HWCGS Care Ltd,108619
WARRINGTON BOROUGH COUNCIL,http://opendatacommunities.org/id/unitary-authority/warrington ,FWB,Care Purchase - ABI,54260,CP-LongStayExternal,441150,16-Jan-14,1900136680,6381.00,HWCGS Care Ltd,108619
WARRINGTON BOROUGH COUNCIL,http://opendatacommunities.org/id/unitary-authority/warrington ,FWB,Care Purchase - ABI,54260,CP-LongStayExternal,441150,16-Jan-14,1900136681,6381.00,HWCGS Care Ltd,108619
WARRINGTON BOROUGH COUNCIL,http://opendatacommunities.org/id/unitary-authority/warrington ,RSC,Communications,13000,Events Costs,490000,10-Jan-14,1900136410,1342.00,The Disability Trading Company Ltd,108623
WARRINGTON BOROUGH COUNCIL,http://opendatacommunities.org/id/unitary-authority/warrington ,FWB,Care Purchase AMH,54135,CP-LongStayExternal,441150,17-Jan-14,1900136860,1291.00,Broadreach House Charity,108812
WARRINGTON BOROUGH COUNCIL,http://opendatacommunities.org/id/unitary-authority/warrington ,FWB,Care Purchase AMH,54135,CP-LongStayExternal,441150,17-Jan-14,1900136861,1136.00,Broadreach House Charity,108812
WARRINGTON BOROUGH COUNCIL,http://opendatacommunities.org/id/unitary-authority/warrington ,FWB,Care Purchase AMH,54135,CP-LongStayExternal,441150,17-Jan-14,1900136862,3407.00,Broadreach House Charity,108812
WARRINGTON BOROUGH COUNCIL,http://opendatacommunities.org/id/unitary-authority/warrington ,FWB,Care Purchase AMH,54135,CP-LongStayExternal,441150,27-Jan-14,1900137276,2979.00,Broadreach House Charity,108812
WARRINGTON BOROUGH COUNCIL,http://opendatacommunities.org/id/unitary-authority/warrington ,FWB,Telecare / Sensory,54560,Consult.& Prof. Serv,440000,02-Jan-14,1900135503,979.00,Action on Hearing Loss,108881
WARRINGTON BOROUGH COUNCIL,http://opendatacommunities.org/id/unitary-authority/warrington ,FWB,Care Purchase - Learning Disability,54450,CP-LongStayExternal,441150,15-Jan-14,1900136630,11896.00,Progress Care and Education Ltd,108888
WARRINGTON BOROUGH COUNCIL,http://opendatacommunities.org/id/unitary-authority/warrington ,FWB,Care Purchase -OP & OT East,54430,CP-LongStayExternal,441150,15-Jan-14,1900136597,2480.00,Barchester The Wheatlands,108909
WARRINGTON BOROUGH COUNCIL,http://opendatacommunities.org/id/unitary-authority/warrington ,FWB,Intermediate Care,54770,Gen. Personal Needs,490850,09-Jan-14,1900135877,1419.00,Bridgewater Community Healthcare,108932
WARRINGTON BOROUGH COUNCIL,http://opendatacommunities.org/id/unitary-authority/warrington ,FWB,Contracts - SM Commissioning Team 1,55910,Public Health Contract Payments,540000,13-Jan-14,1900136486,4167.00,Bridgewater Community Healthcare,108932
WARRINGTON BOROUGH COUNCIL,http://opendatacommunities.org/id/unitary-authority/warrington ,FWB,Contracts - SM Commissioning Team 1,55910,Public Health Contract Payments,540000,30-Jan-14,1900137558,187083.00,Bridgewater Community Healthcare,108932
WARRINGTON BOROUGH COUNCIL,http://opendatacommunities.org/id/unitary-authority/warrington ,FWB,Care Purchase Budget,54490,CP ExternalOther Exp,440800,07-Jan-14,1900135733,2945.00,Leyton Healthcare Limited,108970
WARRINGTON BOROUGH COUNCIL,http://opendatacommunities.org/id/unitary-authority/warrington ,FWB,Care Purchase Budget,54490,CP ExternalOther Exp,440800,08-Jan-14,1900135813,117000.00,Leyton Healthcare Limited,108970
WARRINGTON BOROUGH COUNCIL,http://opendatacommunities.org/id/unitary-authority/warrington ,FWB,Fostering Team,31105,Agency Supply - GF,180000,21-Jan-14,1900137019,560.00,K Kerfoot Ltd,109052
WARRINGTON BOROUGH COUNCIL,http://opendatacommunities.org/id/unitary-authority/warrington ,FWB,Fostering Team,31105,Agency Supply - GF,180000,22-Jan-14,1900137031,560.00,K Kerfoot Ltd,109052
WARRINGTON BOROUGH COUNCIL,http://opendatacommunities.org/id/unitary-authority/warrington ,FWB,Fostering Team,31105,Agency Supply - GF,180000,29-Jan-14,1900137518,560.00,K Kerfoot Ltd,109052
WARRINGTON BOROUGH COUNCIL,http://opendatacommunities.org/id/unitary-authority/warrington ,FWB,Supporting People Administration,53250,Consult.& Prof. Serv,440000,14-Jan-14,1900136522,1575.00,University of St Andrews,109078
WARRINGTON BOROUGH COUNCIL,http://opendatacommunities.org/id/unitary-authority/warrington ,FWB,Legal Fees - Safeguarding,30100,Legal Costs Incurred,440200,20-Jan-14,1900136926,2568.00,GLP Solicitors,109085
WARRINGTON BOROUGH COUNCIL,http://opendatacommunities.org/id/unitary-authority/warrington ,FWB,Care Purchase - Learning Disability,54450,CP-Domicil.External,440950,09-Jan-14,1900135873,650.00,Sanctuary Carr-Gomm,109157
WARRINGTON BOROUGH COUNCIL,http://opendatacommunities.org/id/unitary-authority/warrington ,FWB,Care Purchase Budget,54490,CP ExternalOther Exp,440800,02-Jan-14,1900135539,11304.00,London & Manchester Healthcare Ltd,109185
WARRINGTON BOROUGH COUNCIL,http://opendatacommunities.org/id/unitary-authority/warrington ,FWB,Care Purchase Budget,54490,CP ExternalOther Exp,440800,08-Jan-14,1900135819,110000.00,London & Manchester Healthcare Ltd,109185
WARRINGTON BOROUGH COUNCIL,http://opendatacommunities.org/id/unitary-authority/warrington ,FWB,DSG Hospital Education & Medical Tuition,32006,Recoupment Charges,490700,23-Jan-14,1900137070,2511.00,Cheadle Royal Hospital,109262
WARRINGTON BOROUGH COUNCIL,http://opendatacommunities.org/id/unitary-authority/warrington ,FWB,DSG Hospital Education & Medical Tuition,32006,Recoupment Charges,490700,23-Jan-14,1900137071,2976.00,Cheadle Royal Hospital,109262
WARRINGTON BOROUGH COUNCIL,http://opendatacommunities.org/id/unitary-authority/warrington ,EG0,Administration,44340,Events on the Highway,531350,02-Jan-14,1900135495,1000.00,Blue Arrow Traffic Management Ltd,109292
WARRINGTON BOROUGH COUNCIL,http://opendatacommunities.org/id/unitary-authority/warrington ,FWB,Care Purchase Budget,54490,CP ExternalOther Exp,440800,07-Jan-14,1900135736,30000.00,Four Seasons ta St Oswalds Care Hom,109422
WARRINGTON BOROUGH COUNCIL,http://opendatacommunities.org/id/unitary-authority/warrington ,FWB,Care Purchase Budget,54490,CP ExternalOther Exp,440800,14-Jan-14,1900136506,6778.00,Four Seasons ta St Oswalds Care Hom,109422
WARRINGTON BOROUGH COUNCIL,http://opendatacommunities.org/id/unitary-authority/warrington ,FWB,Agency Placements,30904,Fostering Accommodation,441050,24-Jan-14,1900137257,1095.00,Arena Verve Place,109607
WARRINGTON BOROUGH COUNCIL,http://opendatacommunities.org/id/unitary-authority/warrington ,FWB,Care Purchase - OP & OT South,54480,CP-LongStayExternal,441150,02-Jan-14,1900135490,1615.00,Burrswood House Nursing & Residenti,109619
WARRINGTON BOROUGH COUNCIL,http://opendatacommunities.org/id/unitary-authority/warrington ,FWB,Care Purchase - OP & OT South,54480,CP-LongStayExternal,441150,16-Jan-14,1900136665,1615.00,Burrswood House Nursing & Residenti,109619
WARRINGTON BOROUGH COUNCIL,http://opendatacommunities.org/id/unitary-authority/warrington ,FWB,Care Purchase Budget,54490,CP ExternalOther Exp,440800,08-Jan-14,1900135827,82000.00,Bondcare St Andrews,109634
WARRINGTON BOROUGH COUNCIL,http://opendatacommunities.org/id/unitary-authority/warrington ,FWB,Care Purchase Budget,54490,CP ExternalOther Exp,440800,13-Jan-14,1900136488,9202.00,Bondcare St Andrews,109634
WARRINGTON BOROUGH COUNCIL,http://opendatacommunities.org/id/unitary-authority/warrington ,FWB,Care Purchase Budget,54490,CP ExternalOther Exp,440800,07-Jan-14,1900135744,4717.00,HC-One Limited Callands,109640
WARRINGTON BOROUGH COUNCIL,http://opendatacommunities.org/id/unitary-authority/warrington ,FWB,Care Purchase Budget,54490,CP ExternalOther Exp,440800,08-Jan-14,1900135816,160000.00,HC-One Limited Callands,109640
WARRINGTON BOROUGH COUNCIL,http://opendatacommunities.org/id/unitary-authority/warrington ,FWB,Care Purchase - OP & OT South,54480,CP-LongStayExternal,441150,15-Jan-14,1900136580,1912.00,Sanctuary Care Limited,109765
WARRINGTON BOROUGH COUNCIL,http://opendatacommunities.org/id/unitary-authority/warrington ,FWB,Care Purchase - OP & OT South,54480,CP-LongStayExternal,441150,15-Jan-14,1900136581,1912.00,Sanctuary Care Limited,109765
WARRINGTON BOROUGH COUNCIL,http://opendatacommunities.org/id/unitary-authority/warrington ,FWB,Care Purchase - OP & OT South,54480,CP-LongStayExternal,441150,15-Jan-14,1900136602,1912.00,Sanctuary Care Limited,109765
WARRINGTON BOROUGH COUNCIL,http://opendatacommunities.org/id/unitary-authority/warrington ,ENO,Housing Projects,82008,Disabled Persons Grant 1996,554000,21-Jan-14,1900136977,3680.00,Accessible Bathroom Solutions Ltd,109769
WARRINGTON BOROUGH COUNCIL,http://opendatacommunities.org/id/unitary-authority/warrington ,FWB,Neighbourhood Co-o East,51306,Payment of Grants,470050,09-Jan-14,1900136357,700.00,Rixton with Glazebrook PP Group,109846
WARRINGTON BOROUGH COUNCIL,http://opendatacommunities.org/id/unitary-authority/warrington ,RSC,Coroners Service,11100,Consult.& Prof. Serv,440000,23-Jan-14,1900137105,810.00,Sheffield Chidrens NHS Found Trust,109965
WARRINGTON BOROUGH COUNCIL,http://opendatacommunities.org/id/unitary-authority/warrington ,ENO,Housing Projects,82008,Safe & Secure Energy House Assistance,554100,16-Jan-14,1900136687,2386.00,Valmar Windows Limited,109982
WARRINGTON BOROUGH COUNCIL,http://opendatacommunities.org/id/unitary-authority/warrington ,FWB,Alder Lodge Supporting People,43651,Servicing Contracts,200150,09-Jan-14,1900136366,4956.00,Cumbria Security Services (North) L,110006
WARRINGTON BOROUGH COUNCIL,http://opendatacommunities.org/id/unitary-authority/warrington ,FWB,Neighbourhood Co-o East,51306,Payment of Grants,470050,06-Jan-14,1900135693,2000.00,Croft Youth Activity Centre,110028
WARRINGTON BOROUGH COUNCIL,http://opendatacommunities.org/id/unitary-authority/warrington ,FWB,Care Purchase - Learning Disability,54450,CP-Domicil.External,440950,02-Jan-14,1900135533,720.00,Great Opportunities Together CIC,110076
WARRINGTON BOROUGH COUNCIL,http://opendatacommunities.org/id/unitary-authority/warrington ,FWB,Care Purchase - Learning Disability,54450,CP-Day Care-External,441100,02-Jan-14,1900135533,720.00,Great Opportunities Together CIC,110076
WARRINGTON BOROUGH COUNCIL,http://opendatacommunities.org/id/unitary-authority/warrington ,FWB,Care Purchase - Learning Disability,54450,CP-Domicil.External,440950,16-Jan-14,1900136802,600.00,Great Opportunities Together CIC,110076
WARRINGTON BOROUGH COUNCIL,http://opendatacommunities.org/id/unitary-authority/warrington ,FWB,Care Purchase - Learning Disability,54450,CP-Day Care-External,441100,16-Jan-14,1900136802,600.00,Great Opportunities Together CIC,110076
WARRINGTON BOROUGH COUNCIL,http://opendatacommunities.org/id/unitary-authority/warrington ,FWB,Care Purchase - OP & OT West,54470,CP-LongStayExternal,441150,15-Jan-14,1900136596,1739.00,Simonsfield Care Home,110134
WARRINGTON BOROUGH COUNCIL,http://opendatacommunities.org/id/unitary-authority/warrington ,FWB,Care Purchase AMH,54135,CP-Domicil.External,440950,07-Jan-14,1900135746,2909.00,Caring Alternatives limited,110164
WARRINGTON BOROUGH COUNCIL,http://opendatacommunities.org/id/unitary-authority/warrington ,FWB,Care Purchase AMH,54135,CP-Domicil.External,440950,07-Jan-14,1900135747,2909.00,Caring Alternatives limited,110164
WARRINGTON BOROUGH COUNCIL,http://opendatacommunities.org/id/unitary-authority/warrington ,FWB,Care Purchase AMH,54135,CP-Domicil.External,440950,23-Jan-14,1900137191,2909.00,Caring Alternatives limited,110164
WARRINGTON BOROUGH COUNCIL,http://opendatacommunities.org/id/unitary-authority/warrington ,FWB,Care Purchase AMH,54135,CP-Domicil.External,440950,07-Jan-14,1900135740,4000.00,East Cheshire Housing Consortium,110170
WARRINGTON BOROUGH COUNCIL,http://opendatacommunities.org/id/unitary-authority/warrington ,FWB,Care Purchase AMH,54135,CP-Domicil.External,440950,24-Jan-14,1900137245,4000.00,East Cheshire Housing Consortium,110170
WARRINGTON BOROUGH COUNCIL,http://opendatacommunities.org/id/unitary-authority/warrington ,RSC,Sports Development,51200,Payment of Grants,470050,30-Jan-14,1900137551,4310.00,Warrington Voluntary Action,110206
WARRINGTON BOROUGH COUNCIL,http://opendatacommunities.org/id/unitary-authority/warrington ,RSC,B'Wood Leis.Lnk Bhs,51006,Recharge - Grounds Maintenance,280950,20-Jan-14,1900136935,660.00,Countrywide Grounds Maintenance,110238
WARRINGTON BOROUGH COUNCIL,http://opendatacommunities.org/id/unitary-authority/warrington ,FWB,Care Purchase -OP & OT East,54430,CP-LongStayExternal,441150,15-Jan-14,1900136619,2560.00,Adriana Ltd Ta The Priory,110286
WARRINGTON BOROUGH COUNCIL,http://opendatacommunities.org/id/unitary-authority/warrington ,FWB,Care Purchase - OP & OT West,54470,CP-Nursing Care-External,441200,17-Jan-14,1900136858,1712.00,St Nicholas Nursing Home,110287
WARRINGTON BOROUGH COUNCIL,http://opendatacommunities.org/id/unitary-authority/warrington ,FWB,Care Purchase - Learning Disability,54450,CP-LongStayExternal,441150,10-Jan-14,1900136379,6920.00,Clervaux Trust Ltd,110288
WARRINGTON BOROUGH COUNCIL,http://opendatacommunities.org/id/unitary-authority/warrington ,FWB,Care Purchase - Learning Disability,54450,CP-LongStayExternal,441150,10-Jan-14,1900136380,6920.00,Clervaux Trust Ltd,110288
WARRINGTON BOROUGH COUNCIL,http://opendatacommunities.org/id/unitary-authority/warrington ,COR,Car Leasing Scheme - Salary Sacrifice,52126,Car Leasing Charges,350000,09-Jan-14,1900135892,3407.00,NHS Foundation Trust,110359
WARRINGTON BOROUGH COUNCIL,http://opendatacommunities.org/id/unitary-authority/warrington ,COR,Car Leasing Scheme - Salary Sacrifice,52126,Car Leasing Charges,350000,09-Jan-14,1900135892,670.00,NHS Foundation Trust,110359
WARRINGTON BOROUGH COUNCIL,http://opendatacommunities.org/id/unitary-authority/warrington ,COR,Car Leasing Scheme - Salary Sacrifice,52126,Car Leasing Charges,350000,09-Jan-14,1900135894,2684.00,NHS Foundation Trust,110359
WARRINGTON BOROUGH COUNCIL,http://opendatacommunities.org/id/unitary-authority/warrington ,COR,Car Leasing Scheme - Salary Sacrifice,52126,Car Leasing Charges,350000,09-Jan-14,1900135894,670.00,NHS Foundation Trust,110359
WARRINGTON BOROUGH COUNCIL,http://opendatacommunities.org/id/unitary-authority/warrington ,COR,Car Leasing Scheme - Salary Sacrifice,52126,Car Leasing Charges,350000,09-Jan-14,1900135897,1875.00,NHS Foundation Trust,110359
WARRINGTON BOROUGH COUNCIL,http://opendatacommunities.org/id/unitary-authority/warrington ,COR,Car Leasing Scheme - Salary Sacrifice,52126,Car Leasing Charges,350000,09-Jan-14,1900135897,670.00,NHS Foundation Trust,110359
WARRINGTON BOROUGH COUNCIL,http://opendatacommunities.org/id/unitary-authority/warrington ,COR,Car Leasing Scheme - Salary Sacrifice,52126,Car Leasing Charges,350000,09-Jan-14,1900135899,6667.00,NHS Foundation Trust,110359
WARRINGTON BOROUGH COUNCIL,http://opendatacommunities.org/id/unitary-authority/warrington ,COR,Car Leasing Scheme - Salary Sacrifice,52126,Car Leasing Charges,350000,09-Jan-14,1900135899,670.00,NHS Foundation Trust,110359
WARRINGTON BOROUGH COUNCIL,http://opendatacommunities.org/id/unitary-authority/warrington ,COR,Car Leasing Scheme - Salary Sacrifice,52126,Car Leasing Charges,350000,09-Jan-14,1900135899,667.00,NHS Foundation Trust,110359
WARRINGTON BOROUGH COUNCIL,http://opendatacommunities.org/id/unitary-authority/warrington ,COR,Car Leasing Scheme - Salary Sacrifice,52126,Car Leasing Charges,350000,09-Jan-14,1900135901,3376.00,NHS Foundation Trust,110359
WARRINGTON BOROUGH COUNCIL,http://opendatacommunities.org/id/unitary-authority/warrington ,COR,Car Leasing Scheme - Salary Sacrifice,52126,Car Leasing Charges,350000,09-Jan-14,1900135901,670.00,NHS Foundation Trust,110359
WARRINGTON BOROUGH COUNCIL,http://opendatacommunities.org/id/unitary-authority/warrington ,COR,Car Leasing Scheme - Salary Sacrifice,52126,Car Leasing Charges,350000,14-Jan-14,1900136516,3972.00,NHS Foundation Trust,110359
WARRINGTON BOROUGH COUNCIL,http://opendatacommunities.org/id/unitary-authority/warrington ,COR,Car Leasing Scheme - Salary Sacrifice,52126,Car Leasing Charges,350000,14-Jan-14,1900136516,670.00,NHS Foundation Trust,110359
WARRINGTON BOROUGH COUNCIL,http://opendatacommunities.org/id/unitary-authority/warrington ,COR,Car Leasing Scheme - Salary Sacrifice,52126,Car Leasing Charges,350000,14-Jan-14,1900136517,4984.00,NHS Foundation Trust,110359
WARRINGTON BOROUGH COUNCIL,http://opendatacommunities.org/id/unitary-authority/warrington ,COR,Car Leasing Scheme - Salary Sacrifice,52126,Car Leasing Charges,350000,14-Jan-14,1900136517,670.00,NHS Foundation Trust,110359
WARRINGTON BOROUGH COUNCIL,http://opendatacommunities.org/id/unitary-authority/warrington ,COR,Car Leasing Scheme - Salary Sacrifice,52126,Car Leasing Charges,350000,14-Jan-14,1900136541,4260.00,NHS Foundation Trust,110359
WARRINGTON BOROUGH COUNCIL,http://opendatacommunities.org/id/unitary-authority/warrington ,COR,Car Leasing Scheme - Salary Sacrifice,52126,Car Leasing Charges,350000,14-Jan-14,1900136541,670.00,NHS Foundation Trust,110359
WARRINGTON BOROUGH COUNCIL,http://opendatacommunities.org/id/unitary-authority/warrington ,COR,Car Leasing Scheme - Salary Sacrifice,52126,Car Leasing Charges,350000,14-Jan-14,1900136542,3160.00,NHS Foundation Trust,110359
WARRINGTON BOROUGH COUNCIL,http://opendatacommunities.org/id/unitary-authority/warrington ,COR,Car Leasing Scheme - Salary Sacrifice,52126,Car Leasing Charges,350000,14-Jan-14,1900136542,670.00,NHS Foundation Trust,110359
WARRINGTON BOROUGH COUNCIL,http://opendatacommunities.org/id/unitary-authority/warrington ,COR,Car Leasing Scheme - Salary Sacrifice,52126,Car Leasing Charges,350000,14-Jan-14,1900136543,4822.00,NHS Foundation Trust,110359
WARRINGTON BOROUGH COUNCIL,http://opendatacommunities.org/id/unitary-authority/warrington ,COR,Car Leasing Scheme - Salary Sacrifice,52126,Car Leasing Charges,350000,14-Jan-14,1900136543,670.00,NHS Foundation Trust,110359
WARRINGTON BOROUGH COUNCIL,http://opendatacommunities.org/id/unitary-authority/warrington ,COR,Car Leasing Scheme - Salary Sacrifice,52126,Car Leasing Charges,350000,14-Jan-14,1900136544,3178.00,NHS Foundation Trust,110359
WARRINGTON BOROUGH COUNCIL,http://opendatacommunities.org/id/unitary-authority/warrington ,COR,Car Leasing Scheme - Salary Sacrifice,52126,Car Leasing Charges,350000,14-Jan-14,1900136544,670.00,NHS Foundation Trust,110359
WARRINGTON BOROUGH COUNCIL,http://opendatacommunities.org/id/unitary-authority/warrington ,COR,Car Leasing Scheme - Salary Sacrifice,52126,Car Leasing Charges,350000,20-Jan-14,1900136927,3455.00,NHS Foundation Trust,110359
WARRINGTON BOROUGH COUNCIL,http://opendatacommunities.org/id/unitary-authority/warrington ,COR,Car Leasing Scheme - Salary Sacrifice,52126,Car Leasing Charges,350000,20-Jan-14,1900136927,670.00,NHS Foundation Trust,110359
WARRINGTON BOROUGH COUNCIL,http://opendatacommunities.org/id/unitary-authority/warrington ,COR,Car Leasing Scheme - Salary Sacrifice,52126,Car Leasing Charges,350000,20-Jan-14,1900136928,3058.00,NHS Foundation Trust,110359
WARRINGTON BOROUGH COUNCIL,http://opendatacommunities.org/id/unitary-authority/warrington ,COR,Car Leasing Scheme - Salary Sacrifice,52126,Car Leasing Charges,350000,20-Jan-14,1900136928,670.00,NHS Foundation Trust,110359
WARRINGTON BOROUGH COUNCIL,http://opendatacommunities.org/id/unitary-authority/warrington ,COR,Car Leasing Scheme - Salary Sacrifice,52126,Car Leasing Charges,350000,20-Jan-14,1900136929,2719.00,NHS Foundation Trust,110359
WARRINGTON BOROUGH COUNCIL,http://opendatacommunities.org/id/unitary-authority/warrington ,COR,Car Leasing Scheme - Salary Sacrifice,52126,Car Leasing Charges,350000,20-Jan-14,1900136929,670.00,NHS Foundation Trust,110359
WARRINGTON BOROUGH COUNCIL,http://opendatacommunities.org/id/unitary-authority/warrington ,COR,Car Leasing Scheme - Salary Sacrifice,52126,Car Leasing Charges,350000,21-Jan-14,1900136993,1505.00,NHS Foundation Trust,110359
WARRINGTON BOROUGH COUNCIL,http://opendatacommunities.org/id/unitary-authority/warrington ,COR,Car Leasing Scheme - Salary Sacrifice,52126,Car Leasing Charges,350000,27-Jan-14,1900137287,2662.00,NHS Foundation Trust,110359
WARRINGTON BOROUGH COUNCIL,http://opendatacommunities.org/id/unitary-authority/warrington ,COR,Car Leasing Scheme - Salary Sacrifice,52126,Car Leasing Charges,350000,27-Jan-14,1900137287,670.00,NHS Foundation Trust,110359
WARRINGTON BOROUGH COUNCIL,http://opendatacommunities.org/id/unitary-authority/warrington ,FWB,Care Purchase - Learning Disability,54450,CP-LongStayExternal,441150,22-Jan-14,1900137053,1497.00,Icare Service Limited,110435
WARRINGTON BOROUGH COUNCIL,http://opendatacommunities.org/id/unitary-authority/warrington ,FWB,Care Purchase - Learning Disability,54450,CP-LongStayExternal,441150,22-Jan-14,1900137055,5420.00,Icare Service Limited,110435
WARRINGTON BOROUGH COUNCIL,http://opendatacommunities.org/id/unitary-authority/warrington ,FWB,Care Purchase - Learning Disability,54450,CP-Domicil.External,440950,22-Jan-14,1900137057,5476.00,Icare Service Limited,110435
WARRINGTON BOROUGH COUNCIL,http://opendatacommunities.org/id/unitary-authority/warrington ,FWB,Care Purchase - Learning Disability,54450,CP-Domicil.External,440950,22-Jan-14,1900137058,2453.00,Icare Service Limited,110435
WARRINGTON BOROUGH COUNCIL,http://opendatacommunities.org/id/unitary-authority/warrington ,FWB,Care Purchase - Learning Disability,54450,CP-Day Care-External,441100,22-Jan-14,1900137058,5133.00,Icare Service Limited,110435
WARRINGTON BOROUGH COUNCIL,http://opendatacommunities.org/id/unitary-authority/warrington ,FWB,Care Purchase - Learning Disability,54450,CP-Domicil.External,440950,24-Jan-14,1900137248,2453.00,Icare Service Limited,110435
WARRINGTON BOROUGH COUNCIL,http://opendatacommunities.org/id/unitary-authority/warrington ,FWB,Care Purchase - Learning Disability,54450,CP-Day Care-External,441100,24-Jan-14,1900137248,4010.00,Icare Service Limited,110435
WARRINGTON BOROUGH COUNCIL,http://opendatacommunities.org/id/unitary-authority/warrington ,FWB,Homelessness,43650,B.& B.Allowances,525050,20-Jan-14,1900136895,730.00,Mr K Willams Adelphi Vaults,110456
WARRINGTON BOROUGH COUNCIL,http://opendatacommunities.org/id/unitary-authority/warrington ,FWB,Homelessness,43650,B.& B.Allowances,525050,20-Jan-14,1900136897,580.00,Mr K Willams Adelphi Vaults,110456
WARRINGTON BOROUGH COUNCIL,http://opendatacommunities.org/id/unitary-authority/warrington ,FWB,Care Purchase - OP & OT South,54480,CP-LongStayExternal,441150,15-Jan-14,1900136593,1728.00,The Belmont Care Home,110487
WARRINGTON BOROUGH COUNCIL,http://opendatacommunities.org/id/unitary-authority/warrington ,FWB,Care Purchase -OP & OT East,54430,CP-LongStayExternal,441150,16-Jan-14,1900136691,1800.00,St Georges Residential Care Home,110495
WARRINGTON BOROUGH COUNCIL,http://opendatacommunities.org/id/unitary-authority/warrington ,FWB,Care Purchase Budget,54490,CP ExternalOther Exp,440800,07-Jan-14,1900135728,30000.00,Harbour Healthcare 1 Ltd,110527
WARRINGTON BOROUGH COUNCIL,http://opendatacommunities.org/id/unitary-authority/warrington ,FWB,Care Purchase -OP & OT East,54430,CP-LongStayExternal,441150,02-Jan-14,1900135520,1494.00,Sun Hill,110568
WARRINGTON BOROUGH COUNCIL,http://opendatacommunities.org/id/unitary-authority/warrington ,FWB,Care Purchase - PD,54440,CP-LongStayExternal,441150,10-Jan-14,1900136381,2441.00,Spinal Unit Action Group,110574
WARRINGTON BOROUGH COUNCIL,http://opendatacommunities.org/id/unitary-authority/warrington ,FWB,Care Purchase - PD,54440,CP-LongStayExternal,441150,20-Jan-14,1900136936,2441.00,Spinal Unit Action Group,110574
WARRINGTON BOROUGH COUNCIL,http://opendatacommunities.org/id/unitary-authority/warrington ,EG0,Atlantic Gateway,42150,Consult.& Prof. Serv,440000,08-Jan-14,1900135834,1235.00,Langtree Group Plc,110599
WARRINGTON BOROUGH COUNCIL,http://opendatacommunities.org/id/unitary-authority/warrington ,RSC,Livewire Trust,53190,Water & Sewerage Chg,240000,28-Jan-14,1900137361,15136.00,Livewire,110692
WARRINGTON BOROUGH COUNCIL,http://opendatacommunities.org/id/unitary-authority/warrington ,RSC,Reablement,53600,Security Guards,441000,23-Jan-14,1900137084,3350.00,Redacted Personal Data,110726
WARRINGTON BOROUGH COUNCIL,http://opendatacommunities.org/id/unitary-authority/warrington ,FWB,Care Purchase - OP & OT West,54470,CP-LongStayExternal,441150,15-Jan-14,1900136620,2600.00,Chase House Limited,110786
WARRINGTON BOROUGH COUNCIL,http://opendatacommunities.org/id/unitary-authority/warrington ,COR,Oxygen Finance,60260,Corporate Initiative,491000,21-Jan-14,1700007651,545.00,ISG Construction Limited,110824
WARRINGTON BOROUGH COUNCIL,http://opendatacommunities.org/id/unitary-authority/warrington ,COR,Oxygen Finance,60260,Corporate Initiative,491000,30-Jan-14,1700007706,552.00,ISG Construction Limited,110824
WARRINGTON BOROUGH COUNCIL,http://opendatacommunities.org/id/unitary-authority/warrington ,FWB,Care Purchase AMH,54135,CP-Domicil.External,440950,08-Jan-14,1900135845,5230.00,SLC Raglin Ltd,111037
WARRINGTON BOROUGH COUNCIL,http://opendatacommunities.org/id/unitary-authority/warrington ,FWB,Care Purchase AMH,54135,CP-Domicil.External,440950,08-Jan-14,1900135846,5230.00,SLC Raglin Ltd,111037
WARRINGTON BOROUGH COUNCIL,http://opendatacommunities.org/id/unitary-authority/warrington ,FWB,Care Purchase AMH,54135,CP-Domicil.External,440950,08-Jan-14,1900135847,5230.00,SLC Raglin Ltd,111037
WARRINGTON BOROUGH COUNCIL,http://opendatacommunities.org/id/unitary-authority/warrington ,FWB,Care Purchase AMH,54135,CP-Domicil.External,440950,27-Jan-14,1900137297,5230.00,SLC Raglin Ltd,111037
WARRINGTON BOROUGH COUNCIL,http://opendatacommunities.org/id/unitary-authority/warrington ,FWB,Care Purchase - Learning Disability,54450,CP-Domicil.External,440950,15-Jan-14,1900136603,9534.00,Zeno Limited,111080
WARRINGTON BOROUGH COUNCIL,http://opendatacommunities.org/id/unitary-authority/warrington ,FWB,Care Purchase - Learning Disability,54450,CP-Domicil.External,440950,15-Jan-14,1900136606,11824.00,Zeno Limited,111080
WARRINGTON BOROUGH COUNCIL,http://opendatacommunities.org/id/unitary-authority/warrington ,FWB,CIN Team 1,31001,Looked after children in Warrington,301000,24-Jan-14,1900137253,552.00,ABM Solicitors,111085
WARRINGTON BOROUGH COUNCIL,http://opendatacommunities.org/id/unitary-authority/warrington ,FWB,Adoption Team,31107,Consult.& Prof. Serv,440000,09-Jan-14,1900136354,2800.00,Redacted Personal Data,111105
WARRINGTON BOROUGH COUNCIL,http://opendatacommunities.org/id/unitary-authority/warrington ,FWB,SCM St Joseph's Primary School,33147,Response Maintenance,200000,24-Jan-14,1900137212,696.00,Hoult Group Services,111129
WARRINGTON BOROUGH COUNCIL,http://opendatacommunities.org/id/unitary-authority/warrington ,FWB,SCM Penketh Primary School,33146,Response Maintenance,200000,24-Jan-14,1900137242,874.00,Hoult Group Services,111129
WARRINGTON BOROUGH COUNCIL,http://opendatacommunities.org/id/unitary-authority/warrington ,RSC,Coroners Service,11100,Reimbursement for Deputy Coroner,440400,23-Jan-14,1900137120,5026.00,Redacted Personal Data,111176
WARRINGTON BOROUGH COUNCIL,http://opendatacommunities.org/id/unitary-authority/warrington ,ENO,Housing Projects,82008,Disabled Persons Grant 1996,554000,27-Jan-14,1900137320,3526.00,Reilly Brothers Builders,111223
WARRINGTON BOROUGH COUNCIL,http://opendatacommunities.org/id/unitary-authority/warrington ,RSC,Coroners Service,11100,Consult.& Prof. Serv,440000,09-Jan-14,1900135849,1449.00,Dr David Roger Thomas,111235
WARRINGTON BOROUGH COUNCIL,http://opendatacommunities.org/id/unitary-authority/warrington ,FWB,Neighbourhood Co-o Central,51309,Payment of Grants,470050,21-Jan-14,1900136975,600.00,St Margarets Partnership,111248
WARRINGTON BOROUGH COUNCIL,http://opendatacommunities.org/id/unitary-authority/warrington ,CYP,Childrens Other,81004,Contract Works,492550,21-Jan-14,1900136996,2788.00,Adrian Denton Services,111347
WARRINGTON BOROUGH COUNCIL,http://opendatacommunities.org/id/unitary-authority/warrington ,ENP,Environment & Regeneration,82000,Specific Work,200200,16-Jan-14,1900136695,13963.00,PRP Architects,111361
WARRINGTON BOROUGH COUNCIL,http://opendatacommunities.org/id/unitary-authority/warrington ,ENP,Environment & Regeneration,82000,Specific Work,200200,16-Jan-14,1900136701,11432.00,PRP Architects,111361
WARRINGTON BOROUGH COUNCIL,http://opendatacommunities.org/id/unitary-authority/warrington ,FWB,Care Purchase Budget,54490,CP - Cont Care - External,441350,15-Jan-14,1900136592,3904.00,Wyncourt Nursing Home,111372
WARRINGTON BOROUGH COUNCIL,http://opendatacommunities.org/id/unitary-authority/warrington ,FWB,Care Purchase - OP & OT South,54480,CP-Nursing Care-External,441200,07-Jan-14,1900135748,1976.00,Barchester Healthcare Cheshire Gran,111378
WARRINGTON BOROUGH COUNCIL,http://opendatacommunities.org/id/unitary-authority/warrington ,FWB,Care Purchase - OP & OT South,54480,CP-LongStayExternal,441150,07-Jan-14,1900135749,1932.00,Barchester Healthcare Cheshire Gran,111378
WARRINGTON BOROUGH COUNCIL,http://opendatacommunities.org/id/unitary-authority/warrington ,FWB,Care Purchase Budget,54490,CP - Cont Care - External,441350,07-Jan-14,1900135752,2560.00,Barchester Healthcare Cheshire Gran,111378
WARRINGTON BOROUGH COUNCIL,http://opendatacommunities.org/id/unitary-authority/warrington ,FWB,Care Purchase Budget,54490,CP - Cont Care - External,441350,07-Jan-14,1900135756,2103.00,Barchester Healthcare Cheshire Gran,111378
WARRINGTON BOROUGH COUNCIL,http://opendatacommunities.org/id/unitary-authority/warrington ,FWB,Care Purchase Budget,54490,CP - Cont Care - External,441350,29-Jan-14,1900137443,2560.00,Barchester Healthcare Cheshire Gran,111378
WARRINGTON BOROUGH COUNCIL,http://opendatacommunities.org/id/unitary-authority/warrington ,FWB,Care Purchase - OP & OT South,54480,CP-LongStayExternal,441150,29-Jan-14,1900137445,1932.00,Barchester Healthcare Cheshire Gran,111378
WARRINGTON BOROUGH COUNCIL,http://opendatacommunities.org/id/unitary-authority/warrington ,FWB,Care Purchase - OP & OT South,54480,CP-Nursing Care-External,441200,29-Jan-14,1900137446,1976.00,Barchester Healthcare Cheshire Gran,111378
WARRINGTON BOROUGH COUNCIL,http://opendatacommunities.org/id/unitary-authority/warrington ,FWB,Care Purchase Budget,54490,CP ExternalOther Exp,440800,07-Jan-14,1900135726,20000.00,W H Investments Ltd,111422
WARRINGTON BOROUGH COUNCIL,http://opendatacommunities.org/id/unitary-authority/warrington ,FWB,Care Purchase Budget,54490,CP ExternalOther Exp,440800,14-Jan-14,1900136504,4652.00,W H Investments Ltd,111422
WARRINGTON BOROUGH COUNCIL,http://opendatacommunities.org/id/unitary-authority/warrington ,FWB,Care Purchase Budget,54490,CP ExternalOther Exp,440800,27-Jan-14,1900137277,7141.00,W H Investments Ltd,111422
WARRINGTON BOROUGH COUNCIL,http://opendatacommunities.org/id/unitary-authority/warrington ,FWB,Academy Adjustments,32419,Enhanced Teaching Assistant Fund,550950,09-Jan-14,1900136360,25168.00,University Academy Warrington,111431
WARRINGTON BOROUGH COUNCIL,http://opendatacommunities.org/id/unitary-authority/warrington ,FWB,Academy Adjustments,32419,Enhanced Teaching Assistant Fund,550950,09-Jan-14,1900136360,25168.00,University Academy Warrington,111431
WARRINGTON BOROUGH COUNCIL,http://opendatacommunities.org/id/unitary-authority/warrington ,FWB,Academy Adjustments,32419,Enhanced Teaching Assistant Fund,550950,09-Jan-14,1900136360,25168.00,University Academy Warrington,111431
WARRINGTON BOROUGH COUNCIL,http://opendatacommunities.org/id/unitary-authority/warrington ,FWB,Academy Adjustments,32419,Enhanced Teaching Assistant Fund,550950,09-Jan-14,1900136360,25168.00,University Academy Warrington,111431
WARRINGTON BOROUGH COUNCIL,http://opendatacommunities.org/id/unitary-authority/warrington ,FWB,Academy Adjustments,32419,Enhanced Teaching Assistant Fund,550950,09-Jan-14,1900136360,25168.00,University Academy Warrington,111431
WARRINGTON BOROUGH COUNCIL,http://opendatacommunities.org/id/unitary-authority/warrington ,FWB,Academy Adjustments,32419,Enhanced Teaching Assistant Fund,550950,09-Jan-14,1900136360,25168.00,University Academy Warrington,111431
WARRINGTON BOROUGH COUNCIL,http://opendatacommunities.org/id/unitary-authority/warrington ,FWB,Academy Adjustments,32419,Enhanced Teaching Assistant Fund,550950,09-Jan-14,1900136360,25168.00,University Academy Warrington,111431
WARRINGTON BOROUGH COUNCIL,http://opendatacommunities.org/id/unitary-authority/warrington ,FWB,Academy Adjustments,32419,Enhanced Teaching Assistant Fund,550950,09-Jan-14,1900136360,25168.00,University Academy Warrington,111431
WARRINGTON BOROUGH COUNCIL,http://opendatacommunities.org/id/unitary-authority/warrington ,FWB,Academy Adjustments,32419,Enhanced Teaching Assistant Fund,550950,09-Jan-14,1900136360,25168.00,University Academy Warrington,111431
WARRINGTON BOROUGH COUNCIL,http://opendatacommunities.org/id/unitary-authority/warrington ,FWB,Service Manager - ASC Provision,54200,Consult.& Prof. Serv,440000,03-Jan-14,1900135600,24850.00,Stepping out Business Development,111490
WARRINGTON BOROUGH COUNCIL,http://opendatacommunities.org/id/unitary-authority/warrington ,FWB,Care Purchase - Learning Disability,54450,CP-Domicil.External,440950,07-Jan-14,1900135763,2227.00,Future Directions Community Interes,111498
WARRINGTON BOROUGH COUNCIL,http://opendatacommunities.org/id/unitary-authority/warrington ,FWB,Care Purchase - ABI,54260,CP-Domicil.External,440950,07-Jan-14,1900135763,1243.00,Future Directions Community Interes,111498
WARRINGTON BOROUGH COUNCIL,http://opendatacommunities.org/id/unitary-authority/warrington ,FWB,Care Purchase - Learning Disability,54450,CP-Domicil.External,440950,08-Jan-14,1900135831,49955.00,Future Directions Community Interes,111498
WARRINGTON BOROUGH COUNCIL,http://opendatacommunities.org/id/unitary-authority/warrington ,FWB,Care Purchase - Learning Disability,54450,Supporting People - External,441250,08-Jan-14,1900135831,7097.00,Future Directions Community Interes,111498
WARRINGTON BOROUGH COUNCIL,http://opendatacommunities.org/id/unitary-authority/warrington ,FWB,Care Purchase - Learning Disability,54450,CP-Domicil.External,440950,08-Jan-14,1900135832,49955.00,Future Directions Community Interes,111498
WARRINGTON BOROUGH COUNCIL,http://opendatacommunities.org/id/unitary-authority/warrington ,FWB,Care Purchase - Learning Disability,54450,Supporting People - External,441250,08-Jan-14,1900135832,7097.00,Future Directions Community Interes,111498
WARRINGTON BOROUGH COUNCIL,http://opendatacommunities.org/id/unitary-authority/warrington ,FWB,Care Purchase - Learning Disability,54450,CP-Domicil.External,440950,29-Jan-14,1900137435,7304.00,Future Directions Community Interes,111498
WARRINGTON BOROUGH COUNCIL,http://opendatacommunities.org/id/unitary-authority/warrington ,FWB,Care Purchase - ABI,54260,CP-Domicil.External,440950,29-Jan-14,1900137435,1282.00,Future Directions Community Interes,111498
WARRINGTON BOROUGH COUNCIL,http://opendatacommunities.org/id/unitary-authority/warrington ,FWB,Care Purchase - Learning Disability,54450,CP-Domicil.External,440950,29-Jan-14,1900137437,4999.00,Future Directions Community Interes,111498
WARRINGTON BOROUGH COUNCIL,http://opendatacommunities.org/id/unitary-authority/warrington ,FWB,Care Purchase - ABI,54260,CP-Domicil.External,440950,29-Jan-14,1900137437,1282.00,Future Directions Community Interes,111498
WARRINGTON BOROUGH COUNCIL,http://opendatacommunities.org/id/unitary-authority/warrington ,FWB,Care Purchase -OP & OT East,54430,CP-Nursing Care-External,441200,16-Jan-14,1900136664,1510.00,Oldham Property Investment Limited,111532
WARRINGTON BOROUGH COUNCIL,http://opendatacommunities.org/id/unitary-authority/warrington ,FWB,Care Purchase - Learning Disability,54450,CP ExternalOther Exp,440800,28-Jan-14,1900137397,1005.00,Arena Group Ltd,111535
WARRINGTON BOROUGH COUNCIL,http://opendatacommunities.org/id/unitary-authority/warrington ,FWB,Care Purchase -OP & OT East,54430,CP-Nursing Care-External,441200,16-Jan-14,1900136663,2022.00,Quality Care Wales Ltd,111537
WARRINGTON BOROUGH COUNCIL,http://opendatacommunities.org/id/unitary-authority/warrington ,EG1,Waste Disposal,41830,Recycling Credits,442750,23-Jan-14,1900137164,761.00,St Roccos Shops Limited,111655
WARRINGTON BOROUGH COUNCIL,http://opendatacommunities.org/id/unitary-authority/warrington ,EG1,Waste Disposal,41830,Recycling Credits,442750,23-Jan-14,1900137166,744.00,St Roccos Shops Limited,111655
WARRINGTON BOROUGH COUNCIL,http://opendatacommunities.org/id/unitary-authority/warrington ,FWB,Care Purchase - OP & OT West,54470,CP-Nursing Care-External,441200,02-Jan-14,1900135524,1771.00,Bowerfield House MMCG,111713
WARRINGTON BOROUGH COUNCIL,http://opendatacommunities.org/id/unitary-authority/warrington ,RSC,Coroners Service,11100,Consult.& Prof. Serv,440000,09-Jan-14,1900135871,685.00,The Bridge Hotel,111773
WARRINGTON BOROUGH COUNCIL,http://opendatacommunities.org/id/unitary-authority/warrington ,FWB,Contracts - OM HPHL Team,55940,Public Health Contract Payments,540000,21-Jan-14,1900136998,630.00,Redacted Personal Data,111806
WARRINGTON BOROUGH COUNCIL,http://opendatacommunities.org/id/unitary-authority/warrington ,FWB,Care Purchase - OP & OT West,54470,CP-LongStayExternal,441150,15-Jan-14,1900136618,1516.00,Lymewood Court,111953
WARRINGTON BOROUGH COUNCIL,http://opendatacommunities.org/id/unitary-authority/warrington ,EG1,Facilities Management,41422,Payment of Grants,470050,21-Jan-14,1900136991,5500.00,FCC Environment UK - Wren Account,112039
WARRINGTON BOROUGH COUNCIL,http://opendatacommunities.org/id/unitary-authority/warrington ,FWB,Care Purchase AMH,54135,CP-Domicil.External,440950,16-Jan-14,1900136696,8924.00,Continuum Support Ltd,112065
WARRINGTON BOROUGH COUNCIL,http://opendatacommunities.org/id/unitary-authority/warrington ,FWB,Care Purchase AMH,54135,CP-Domicil.External,440950,16-Jan-14,1900136697,9468.00,Continuum Support Ltd,112065
WARRINGTON BOROUGH COUNCIL,http://opendatacommunities.org/id/unitary-authority/warrington ,FWB,Care Purchase - OP & OT South,54480,CP-Nursing Care-External,441200,16-Jan-14,1900136651,1864.00,Allingham House Care Centre,112069
